Workbook

Sheet CoverSheet
A1: Ongoing Progress Update and Disbursement Request
A2: Cover Sheet: Instructions • This template is compatible with MS Excel 2013 and later versions. Some drop-downs and formulae may not work with earlier versions and specifically MS Excel 2010. Hence, PRs with earlier MS versions are requested to upgrade to MS Excel 2013 to have the full functionalities of the tool. • Principal Recipients are first required to complete the Cover Sheet with the General Grant Information listed in the boxes below. They can refer to their Grant Face Sheet/Grant Confirmation to fill part of this information. • Principal Recipients are required to fill in the information related to the periods covered by the progress update and disbursement request. • Principal Recipients are required to select the type of submission, i.e. whether they are submitting a Mid-Year (or Quarterly) Progress Update or a Year-End Progress Update/Disbursement Request. This is important as the forms will change depending on the type of submission selected.
A4: GENERAL GRANT INFORMATION
A5: Country: | D5: Georgia | F5: PROGRESS UPDATE PERIOD FOR PROGRAMMATIC REPORTING
A6: (Disease) Component | D6: Tuberculosis | F6: Progress Update - Reporting Period: | I6: Cycle: | J6: Annual | K6: Number: | L6: 5
A7: Grant Name/Number: | D7: GEO-T-NCDC | F7: Progress Update - Period Covered: | I7: Beginning Date: | J7: 2016-01-01 | K7: End Date: | L7: 2016-12-31
A8: Principal Recipient: | D8: NCDC
A9: LFA Name: | D9: UNOPS | F9: PROGRESS UPDATE PERIOD FOR FINANCIAL REPORTING
A10: Program Start Date: | D10: 2014-04-01 | F10: Progress Update - Period Covered: | I10: Beginning Date: | J10: 2016-01-01 | K10: End Date: | L10: 2016-12-31
A11: Currency: | D11: EUR
F12: DISBURSEMENT REQUEST
F13: Disbursement Request - Disbursement Period: | I13: Cycle: | K13: Number: | L13: N/A
F14: Disbursement Request - Period Covered: | I14: Beginning Date: | J14: N/A | K14: End Date: | L14: N/A
D15: Are you submitting: • A Progress Update (PU); or • A Progress Update/Disbursement Request (PU/DR).

Sheet Data (hidden)
A1: Component | B1: Catalog Module Name | C1: Intervention Name | D1: Old Component | E1: Module - Intervention | I1: Component | L1: Component | M1: Catalog Module Name | O1: Component | P1: Impact/Outcome | S1: Data Sources
A2: Malaria | B2: Specific prevention interventions (SPI) | C2: Intermittent preventive treatment (IPT) - In pregnancy | D2: Malaria | E2: =CONCATENATE(B2," - ",C2) -> Specific prevention interventions (SPI) - Intermittent preventive treatment (IPT) - In pregnancy | I2: Malaria | L2: Malaria | M2: Specific prevention interventions (SPI) | N2: Module1 | O2: Malaria | P2: Impact | Q2: =CONCATENATE(O2,P2) -> MalariaImpact | R2: Type1 | S2: HMIS
A3: Malaria | B3: Specific prevention interventions (SPI) | C3: Intermittent preventive treatment (IPT) - In infancy | D3: Malaria | E3: =CONCATENATE(B3," - ",C3) -> Specific prevention interventions (SPI) - Intermittent preventive treatment (IPT) - In infancy | I3: Tuberculosis | L3: Malaria | M3: Vector control | N3: Module2 | O3: Tuberculosis | P3: Impact | Q3: =CONCATENATE(O3,P3) -> TuberculosisImpact | R3: Type2 | S3: Patient records
A4: Malaria | B4: Specific prevention interventions (SPI) | C4: Seasonal malaria chemoprevention | D4: Malaria | E4: Specific prevention interventions (SPI) - Seasonal malaria chemoprevention | I4: HIV/TB | L4: Malaria | M4: Case management | N4: Module3 | O4: HIV/TB | P4: Impact | Q4: HIV/TBImpact | R4: Type3 | S4: Training records
A5: Malaria | B5: Specific prevention interventions (SPI) | C5: IEC/BCC | D5: Malaria | E5: Specific prevention interventions (SPI) - IEC/BCC | I5: HIV/AIDS | L5: Tuberculosis | M5: TB care and prevention | N5: Module4 | O5: HIV/AIDS | P5: Impact | Q5: HIV/AIDSImpact | R5: Type4 | S5: MICS (Multiple Indicator Cluster Survey)
A6: Malaria | B6: Vector control | C6: Long-lasting insecticidal nets (LLIN) - Mass campaign | D6: Malaria | E6: Vector control - Long-lasting insecticidal nets (LLIN) - Mass campaign | I6: Health Systems Strengthening | L6: Tuberculosis | M6: MDR-TB | N6: Module5 | O6: Health Systems Strengthening | P6: Impact | Q6: Health Systems StrengtheningImpact | R6: Type5 | S6: DHS/DHS+ (Demographic and Health Survey)
A7: Malaria | B7: Vector control | C7: Long-lasting insecticidal nets (LLIN) - Continuous distribution | D7: Malaria | E7: Vector control - Long-lasting insecticidal nets (LLIN) - Continuous distribution | L7: HIV/TB | M7: TB care and prevention | N7: Module6 | O7: Malaria | P7: Outcome | Q7: MalariaOutcome | R7: Type6 | S7: AIS (AIDS Indicator Survey)
A8: Malaria | B8: Vector control | C8: Indoor residual spraying (IRS) | D8: Malaria | E8: Vector control - Indoor residual spraying (IRS) | L8: HIV/TB | M8: MDR-TB | N8: Module7 | O8: Tuberculosis | P8: Outcome | Q8: TuberculosisOutcome | R8: Type7 | S8: BSS (Behavioral Surveillance Survey)
A9: Malaria | B9: Vector control | C9: Other vector vontrol measures | D9: Malaria | E9: Vector control - Other vector vontrol measures | L9: HIV/TB | M9: Prevention programs for general population | N9: Module8 | O9: HIV/TB | P9: Outcome | Q9: HIV/TBOutcome | R9: Type8 | S9: Health Facility survey
A10: Malaria | B10: Vector control | C10: Entomological monitoring | D10: Malaria | E10: Vector control - Entomological monitoring | L10: HIV/TB | M10: Prevention programs for MSM and TGs | N10: Module9 | O10: HIV/AIDS | P10: Outcome | Q10: HIV/AIDSOutcome | R10: Type9 | S10: SAMS (Service Availability Mapping Survey)
A11: Malaria | B11: Case management | C11: Facility-based treatment | D11: Malaria | E11: Case management - Facility-based treatment | L11: HIV/TB | M11: Prevention programs for people who inject drugs (PWID) and their partners | N11: Module10 | O11: Health Systems Strengthening | P11: Outcome | Q11: Health Systems StrengtheningOutcome | R11: Type10 | S11: Households survey
A12: Malaria | B12: Case management | C12: Epidemic preparedness and response | D12: Malaria | E12: Case management - Epidemic preparedness and response | L12: HIV/TB | M12: Prevention programs for other vulnerable populations (please specify) | N12: Module11 | S12: Specific surveys and research (specify)
A13: Malaria | B13: Case management | C13: Integrated community case management (ICCM) | D13: Malaria | E13: Case management - Integrated community case management (ICCM) | L13: HIV/TB | M13: Prevention programs for adolescents and youth, in and out of school | N13: Module12 | S13: Reports (specify)
A14: Malaria | B14: Case management | C14: Active case detection and investigation (elimination phase) | D14: Malaria | E14: Case management - Active case detection and investigation (elimination phase) | L14: HIV/TB | M14: Prevention programs for sex workers and their clients | N14: Module13 | S14: Vital and disease-specific registry
A15: Malaria | B15: Case management | C15: Therapeutic efficacy surveillance | D15: Malaria | E15: Case management - Therapeutic efficacy surveillance | L15: HIV/TB | M15: PMTCT | N15: Module14 | S15: Operational Research
A16: Malaria | B16: Case management | C16: Severe malaria | D16: Malaria | E16: Case management - Severe malaria | L16: HIV/TB | M16: Treatment, care and support | N16: Module15 | S16: Health Provider survey
A17: Malaria | B17: Case management | C17: Private sector co-payment mechanism | D17: Malaria | E17: Case management - Private sector co-payment mechanism | L17: HIV/AIDS | M17: Prevention programs for general population | N17: Module16 | S17: National Health Account
A18: Malaria | B18: Case management | C18: Private sector case management (other) | D18: Malaria | E18: Case management - Private sector case management (other) | L18: HIV/AIDS | M18: Prevention programs for MSM and TGs | N18: Module17 | S18: Administrative records
A19: Malaria | B19: Case management | C19: Ensuring drug quality | D19: Malaria | E19: Case management - Ensuring drug quality | L19: HIV/AIDS | M19: Prevention programs for people who inject drugs (PWID) and their partners | N19: Module18 | S19: R&R TB system, quarterly reports
A20: Tuberculosis | B20: TB care and prevention | C20: Case detection and diagnosis | D20: Tuberculosis; HIV/TB | E20: TB care and prevention - Case detection and diagnosis | L20: HIV/AIDS | M20: Prevention programs for other vulnerable populations (please specify) | N20: Module19 | S20: R&R TB system, yearly management report
A21: Tuberculosis | B21: TB care and prevention | C21: Treatment | D21: Tuberculosis; HIV/TB | E21: TB care and prevention - Treatment | L21: HIV/AIDS | M21: Prevention programs for adolescents and youth, in and out of school | N21: Module20 | S21: TB prevalence survey
A22: Tuberculosis | B22: TB care and prevention | C22: Prevention | D22: Tuberculosis; HIV/TB | E22: TB care and prevention - Prevention | L22: HIV/AIDS | M22: Prevention programs for sex workers and their clients | N22: Module21 | S22: TB patient register
A23: Tuberculosis | B23: MDR-TB | C23: Case detection and diagnosis: MDR-TB | D23: Tuberculosis; HIV/TB | E23: MDR-TB - Case detection and diagnosis: MDR-TB | L23: HIV/AIDS | M23: PMTCT | N23: Module22 | S23: TB laboratory register
A24: Tuberculosis | B24: MDR-TB | C24: Treatment: MDR-TB | D24: Tuberculosis; HIV/TB | E24: MDR-TB - Treatment: MDR-TB | L24: HIV/AIDS | M24: Treatment, care and support | N24: Module23 | S24: TB treatment card
A25: Tuberculosis | B25: MDR-TB | C25: Prevention for MDR-TB | D25: Tuberculosis; HIV/TB | E25: MDR-TB - Prevention for MDR-TB | L25: HIV/AIDS | M25: TB/HIV | N25: Module24 | S25: Specify- Reports, Surveys, Questionnaires etc.
A26: HIV/TB | B26: TB care and prevention | C26: Case detection and diagnosis | D26: Tuberculosis; HIV/TB | E26: TB care and prevention - Case detection and diagnosis | L26: Tuberculosis | M26: TB/HIV | N26: Module25 | S26: MIS (Malaria Indicator Survey)
A27: HIV/TB | B27: TB care and prevention | C27: Treatment | D27: Tuberculosis; HIV/TB | E27: TB care and prevention - Treatment | L27: HIV/TB | M27: TB/HIV | N27: Module26 | S27: Situation Analysis
A28: HIV/TB | B28: TB care and prevention | C28: Prevention | D28: Tuberculosis; HIV/TB | E28: TB care and prevention - Prevention | L28: HIV/AIDS | M28: Removing legal barriers to access | N28: Module27 | S28: Key informant survey
A29: HIV/TB | B29: MDR-TB | C29: Case detection and diagnosis: MDR-TB | D29: Tuberculosis; HIV/TB | E29: MDR-TB - Case detection and diagnosis: MDR-TB | L29: HIV/AIDS | M29: HSS - Service delivery | N29: Module28 | S29: Surveillance systems
A30: HIV/TB | B30: MDR-TB | C30: Treatment: MDR-TB | D30: Tuberculosis; HIV/TB | E30: MDR-TB - Treatment: MDR-TB | L30: HIV/AIDS | M30: HSS - Health and community workforce | N30: Module29 | S30: Modelled
A31: HIV/TB | B31: MDR-TB | C31: Prevention for MDR-TB | D31: Tuberculosis; HIV/TB | E31: MDR-TB - Prevention for MDR-TB | L31: HIV/AIDS | M31: HSS - Health information systems and M&E | N31: Module30 | S31: Other survey, specify
A32: HIV/TB | B32: Prevention programs for general population | C32: RMNCH linkages and gender-based violence (GBV) | D32: HIV/AIDS; HIV/TB | E32: Prevention programs for general population - RMNCH linkages and gender-based violence (GBV) | L32: HIV/AIDS | M32: Program management | N32: Module31 | S32: IBBS
A33: HIV/TB | B33: Prevention programs for general population | C33: Other interventions for general population - Please specify | D33: HIV/AIDS; HIV/TB | E33: Prevention programs for general population - Other interventions for general population - Please specify | L33: HIV/AIDS | M33: HSS - Procurement supply chain management (PSCM) | N33: Module32
A34: HIV/TB | B34: Prevention programs for MSM and TGs | C34: Behavioral change as part of programs for MSM and TGs | D34: HIV/AIDS; HIV/TB | E34: Prevention programs for MSM and TGs - Behavioral change as part of programs for MSM and TGs | L34: HIV/AIDS | M34: HSS - Policy and governance | N34: Module33
A35: HIV/TB | B35: Prevention programs for MSM and TGs | C35: Condoms as part of programs for MSM and TGs | D35: HIV/AIDS; HIV/TB | E35: Prevention programs for MSM and TGs - Condoms as part of programs for MSM and TGs | L35: HIV/AIDS | M35: HSS - Healthcare financing | N35: Module34
A36: HIV/TB | B36: Prevention programs for MSM and TGs | C36: HIV testing and counseling as part of programs for MSM and TGs | D36: HIV/AIDS; HIV/TB | E36: Prevention programs for MSM and TGs - HIV testing and counseling as part of programs for MSM and TGs | L36: HIV/AIDS | M36: HSS - Financial management | N36: Module35
A37: HIV/TB | B37: Prevention programs for MSM and TGs | C37: Diagnosis and treatment of STIs as part of programs for MSM and TGs | D37: HIV/AIDS; HIV/TB | E37: Prevention programs for MSM and TGs - Diagnosis and treatment of STIs as part of programs for MSM and TGs | L37: Tuberculosis | M37: Removing legal barriers to access | N37: Module36
A38: HIV/TB | B38: Prevention programs for people who inject drugs (PWID) and their partners | C38: Needle and Syringe programs as part of programs for PWID and their partners | D38: HIV/AIDS; HIV/TB | E38: Prevention programs for people who inject drugs (PWID) and their partners - Needle and Syringe programs as part of programs for PWID and their partners | L38: Tuberculosis | M38: HSS - Service delivery | N38: Module37
A39: HIV/TB | B39: Prevention programs for people who inject drugs (PWID) and their partners | C39: OST and other drug dependence treatment (PWIDs and their partners) | D39: HIV/AIDS; HIV/TB | E39: Prevention programs for people who inject drugs (PWID) and their partners - OST and other drug dependence treatment (PWIDs and their partners) | L39: Tuberculosis | M39: HSS - Health and community workforce | N39: Module38
A40: HIV/TB | B40: Prevention programs for other vulnerable populations (please specify) | C40: Condoms as part of programs for other vulnerable populations | D40: HIV/AIDS; HIV/TB | E40: Prevention programs for other vulnerable populations (please specify) - Condoms as part of programs for other vulnerable populations | L40: Tuberculosis | M40: HSS - Health information systems and M&E | N40: Module39
A41: HIV/TB | B41: Prevention programs for other vulnerable populations (please specify) | C41: Behavioral change as part of programs for other vulnerable populations | D41: HIV/AIDS; HIV/TB | E41: Prevention programs for other vulnerable populations (please specify) - Behavioral change as part of programs for other vulnerable populations | L41: Tuberculosis | M41: Program management | N41: Module40
A42: HIV/TB | B42: Prevention programs for other vulnerable populations (please specify) | C42: Diagnosis and treatment of STIs (other vulnerable populations) | D42: HIV/AIDS; HIV/TB | E42: Prevention programs for other vulnerable populations (please specify) - Diagnosis and treatment of STIs (other vulnerable populations) | L42: Tuberculosis | M42: HSS - Procurement supply chain management (PSCM) | N42: Module41
A43: HIV/TB | B43: Prevention programs for other vulnerable populations (please specify) | C43: Other interventions for other vulnerable populations - Please specify | D43: HIV/AIDS; HIV/TB | E43: Prevention programs for other vulnerable populations (please specify) - Other interventions for other vulnerable populations - Please specify | L43: Tuberculosis | M43: HSS - Policy and governance | N43: Module42
A44: HIV/TB | B44: Prevention programs for adolescents and youth, in and out of school | C44: Behavioral change as part of programs for adolescent and youth | D44: HIV/AIDS; HIV/TB | E44: Prevention programs for adolescents and youth, in and out of school - Behavioral change as part of programs for adolescent and youth | L44: Tuberculosis | M44: HSS - Healthcare financing | N44: Module43
A45: HIV/TB | B45: Prevention programs for adolescents and youth, in and out of school | C45: Condoms part of programs for adolescent and youth | D45: HIV/AIDS; HIV/TB | E45: Prevention programs for adolescents and youth, in and out of school - Condoms part of programs for adolescent and youth | L45: Tuberculosis | M45: HSS - Financial management | N45: Module44
A46: HIV/TB | B46: Prevention programs for general population | C46: Behavioral change as part of programs for general population | D46: HIV/AIDS; HIV/TB | E46: Prevention programs for general population - Behavioral change as part of programs for general population | L46: Malaria | M46: Removing legal barriers to access | N46: Module45
A47: HIV/TB | B47: Prevention programs for general population | C47: Condoms as part of programs for general population | D47: HIV/AIDS; HIV/TB | E47: Prevention programs for general population - Condoms as part of programs for general population | L47: Malaria | M47: HSS - Service delivery | N47: Module46
A48: HIV/TB | B48: Prevention programs for general population | C48: Male circumcision | D48: HIV/AIDS; HIV/TB | E48: Prevention programs for general population - Male circumcision | L48: Malaria | M48: HSS - Health and community workforce | N48: Module47
A49: HIV/TB | B49: Prevention programs for MSM and TGs | C49: Diagnosis and treatment of viral hepatitis as part of programs for MSM and TGs | D49: HIV/AIDS; HIV/TB | E49: Prevention programs for MSM and TGs - Diagnosis and treatment of viral hepatitis as part of programs for MSM and TGs | L49: Malaria | M49: HSS - Health information systems and M&E | N49: Module48
A50: HIV/TB | B50: Prevention programs for MSM and TGs | C50: Other interventions for MSM and TGs - Please specify | D50: HIV/AIDS; HIV/TB | E50: Prevention programs for MSM and TGs - Other interventions for MSM and TGs - Please specify | L50: Malaria | M50: Program management | N50: Module49
A51: HIV/TB | B51: Prevention programs for sex workers and their clients | C51: Behavioral change as part of programs for sex workers and their clients | D51: HIV/AIDS; HIV/TB | E51: Prevention programs for sex workers and their clients - Behavioral change as part of programs for sex workers and their clients | L51: Malaria | M51: HSS - Procurement supply chain management (PSCM) | N51: Module50
A52: HIV/TB | B52: Prevention programs for people who inject drugs (PWID) and their partners | C52: Diagnosis and treatment of viral hepatitis (PWIDs and their partners) | D52: HIV/AIDS; HIV/TB | E52: Prevention programs for people who inject drugs (PWID) and their partners - Diagnosis and treatment of viral hepatitis (PWIDs and their partners) | L52: Malaria | M52: HSS - Policy and governance | N52: Module51
A53: HIV/TB | B53: Prevention programs for people who inject drugs (PWID) and their partners | C53: Other interventions for IDUs and their partners - Please specify | D53: HIV/AIDS; HIV/TB | E53: Prevention programs for people who inject drugs (PWID) and their partners - Other interventions for IDUs and their partners - Please specify | L53: Malaria | M53: HSS - Healthcare financing | N53: Module52
A54: HIV/TB | B54: Prevention programs for other vulnerable populations (please specify) | C54: HIV testing and counseling as part of programs for other vulnerable populations | D54: HIV/AIDS; HIV/TB | E54: Prevention programs for other vulnerable populations (please specify) - HIV testing and counseling as part of programs for other vulnerable populations | L54: Malaria | M54: HSS - Financial management | N54: Module53
A55: HIV/TB | B55: Prevention programs for adolescents and youth, in and out of school | C55: HIV testing and counseling as part of programs for adolescent and youth | D55: HIV/AIDS; HIV/TB | E55: Prevention programs for adolescents and youth, in and out of school - HIV testing and counseling as part of programs for adolescent and youth | L55: Health Systems Strengthening | M55: Removing legal barriers to access | N55: Module54
A56: HIV/TB | B56: Prevention programs for adolescents and youth, in and out of school | C56: RMNCH linkages and GBV as part of programs for adolescent youth | D56: HIV/AIDS; HIV/TB | E56: Prevention programs for adolescents and youth, in and out of school - RMNCH linkages and GBV as part of programs for adolescent youth | L56: Health Systems Strengthening | M56: HSS - Service delivery | N56: Module55
A57: HIV/TB | B57: Prevention programs for adolescents and youth, in and out of school | C57: Young Key Population interventions as part of programs for adolescent and youth | D57: HIV/AIDS; HIV/TB | E57: Prevention programs for adolescents and youth, in and out of school - Young Key Population interventions as part of programs for adolescent and youth | L57: Health Systems Strengthening | M57: HSS - Health and community workforce | N57: Module56
A58: HIV/TB | B58: Prevention programs for adolescents and youth, in and out of school | C58: Other interventions for adolescent and youth | D58: HIV/AIDS; HIV/TB | E58: Prevention programs for adolescents and youth, in and out of school - Other interventions for adolescent and youth | L58: Health Systems Strengthening | M58: HSS - Health information systems and M&E | N58: Module57
A59: HIV/TB | B59: Prevention programs for general population | C59: HIV testing and counseling as part of programs for general population | D59: HIV/AIDS; HIV/TB | E59: Prevention programs for general population - HIV testing and counseling as part of programs for general population | L59: Health Systems Strengthening | M59: Program management | N59: Module58
A60: HIV/TB | B60: Prevention programs for sex workers and their clients | C60: Condoms as part of programs for sex workers and their clients | D60: HIV/AIDS; HIV/TB | E60: Prevention programs for sex workers and their clients - Condoms as part of programs for sex workers and their clients | L60: Health Systems Strengthening | M60: HSS - Procurement supply chain management (PSCM) | N60: Module59
A61: HIV/TB | B61: Prevention programs for sex workers and their clients | C61: HIV testing and counseling as part of programs for sex workers and their clients | D61: HIV/AIDS; HIV/TB | E61: Prevention programs for sex workers and their clients - HIV testing and counseling as part of programs for sex workers and their clients | L61: Health Systems Strengthening | M61: HSS - Policy and governance | N61: Module60
A62: HIV/TB | B62: Prevention programs for sex workers and their clients | C62: Diagnosis and treatment of STIs (sex workers and their clients) | D62: HIV/AIDS; HIV/TB | E62: Prevention programs for sex workers and their clients - Diagnosis and treatment of STIs (sex workers and their clients) | L62: Health Systems Strengthening | M62: HSS - Healthcare financing | N62: Module61
A63: HIV/TB | B63: Prevention programs for sex workers and their clients | C63: Harm reduction as part of programs for sex workers and their clients | D63: HIV/AIDS; HIV/TB | E63: Prevention programs for sex workers and their clients - Harm reduction as part of programs for sex workers and their clients | L63: Health Systems Strengthening | M63: HSS - Financial management | N63: Module62
A64: HIV/TB | B64: PMTCT | C64: Prong 1: Primary prevention of HIV infection among women of childbearing age | D64: HIV/AIDS; HIV/TB | E64: PMTCT - Prong 1: Primary prevention of HIV infection among women of childbearing age | L64: HIV/TB | M64: Removing legal barriers to access | N64: Module63
A65: HIV/TB | B65: PMTCT | C65: Prong 2: Preventing unintended pregnancies among women living with HIV | D65: HIV/AIDS; HIV/TB | E65: PMTCT - Prong 2: Preventing unintended pregnancies among women living with HIV | L65: HIV/TB | M65: HSS - Service delivery | N65: Module64
A66: HIV/TB | B66: PMTCT | C66: Prong 3: Preventing vertical HIV transmission | D66: HIV/AIDS; HIV/TB | E66: PMTCT - Prong 3: Preventing vertical HIV transmission | L66: HIV/TB | M66: HSS - Health and community workforce | N66: Module65
A67: HIV/TB | B67: PMTCT | C67: Prong 4: Treatment, care & support to mothers living with HIV, their children & | D67: HIV/AIDS; HIV/TB | E67: =CONCATENATE(B67," - ",C67) -> PMTCT - Prong 4: Treatment, care & support to mothers living with HIV, their children & | L67: HIV/TB | M67: HSS - Health information systems and M&E | N67: Module66
A68: HIV/TB | B68: PMTCT | C68: Other interventions for PMTCT- Please specify | D68: HIV/AIDS; HIV/TB | E68: PMTCT - Other interventions for PMTCT- Please specify | L68: HIV/TB | M68: Program management | N68: Module67
A69: HIV/TB | B69: Prevention programs for sex workers and their clients | C69: Other interventions for sex workers and their clients - Please specify | D69: HIV/AIDS; HIV/TB | E69: Prevention programs for sex workers and their clients - Other interventions for sex workers and their clients - Please specify | L69: HIV/TB | M69: HSS - Procurement supply chain management (PSCM) | N69: Module68
A70: HIV/TB | B70: Prevention programs for people who inject drugs (PWID) and their partners | C70: Behavioural change as part of programs for PWID and their partners | D70: HIV/AIDS; HIV/TB | E70: Prevention programs for people who inject drugs (PWID) and their partners - Behavioural change as part of programs for PWID and their partners | L70: HIV/TB | M70: HSS - Policy and governance | N70: Module69
A71: HIV/TB | B71: Prevention programs for people who inject drugs (PWID) and their partners | C71: Condoms as part of programs for PWID and their partners | D71: HIV/AIDS; HIV/TB | E71: Prevention programs for people who inject drugs (PWID) and their partners - Condoms as part of programs for PWID and their partners | L71: HIV/TB | M71: HSS - Healthcare financing | N71: Module70
A72: HIV/TB | B72: Treatment, care and support | C72: Pre-ART care | D72: HIV/AIDS; HIV/TB | E72: Treatment, care and support - Pre-ART care | L72: HIV/TB | M72: HSS - Financial management | N72: Module71
A73: HIV/TB | B73: Treatment, care and support | C73: Antiretroviral Therapy (ART) | D73: HIV/AIDS; HIV/TB | E73: Treatment, care and support - Antiretroviral Therapy (ART) | L73: HIV/AIDS | M73: Community systems strengthening | N73: Module72
A74: HIV/TB | B74: Treatment, care and support | C74: Treatment monitoring | D74: HIV/AIDS; HIV/TB | E74: Treatment, care and support - Treatment monitoring | L74: HIV/AIDS | M74: Results based Financing | N74: Module73
A75: HIV/TB | B75: Treatment, care and support | C75: Treatment adherence | D75: HIV/AIDS; HIV/TB | E75: Treatment, care and support - Treatment adherence | L75: Tuberculosis | M75: Community systems strengthening | N75: Module74
A76: HIV/TB | B76: Treatment, care and support | C76: Prevention, diagnosis and treatment of opportunistic infections | D76: HIV/AIDS; HIV/TB | E76: Treatment, care and support - Prevention, diagnosis and treatment of opportunistic infections | L76: Tuberculosis | M76: Results based Financing | N76: Module75
A77: HIV/TB | B77: Prevention programs for people who inject drugs (PWID) and their partners | C77: Diagnosis and treatment of STIs as part of programs for PWID and their partners | D77: HIV/AIDS; HIV/TB | E77: Prevention programs for people who inject drugs (PWID) and their partners - Diagnosis and treatment of STIs as part of programs for PWID and their partners | L77: Malaria | M77: Community systems strengthening | N77: Module76
A78: HIV/TB | B78: Treatment, care and support | C78: Counseling and psycho-social support | D78: HIV/AIDS; HIV/TB | E78: Treatment, care and support - Counseling and psycho-social support | L78: Malaria | M78: Results based Financing | N78: Module77
A79: HIV/TB | B79: Treatment, care and support | C79: Out-patient care | D79: HIV/AIDS; HIV/TB | E79: Treatment, care and support - Out-patient care | L79: HIV/TB | M79: Community systems strengthening | N79: Module78
A80: HIV/TB | B80: Treatment, care and support | C80: In-patient care | D80: HIV/AIDS; HIV/TB | E80: Treatment, care and support - In-patient care | L80: HIV/TB | M80: Results based Financing | N80: Module79
A81: HIV/TB | B81: Treatment, care and support | C81: Other interventions for treatment - Please specify | D81: HIV/AIDS; HIV/TB | E81: Treatment, care and support - Other interventions for treatment - Please specify
A82: HIV/TB | B82: Prevention programs for general population | C82: Diagnosis and treatment of STIs as part of programs for general population | D82: HIV/AIDS; HIV/TB | E82: Prevention programs for general population - Diagnosis and treatment of STIs as part of programs for general population
A83: HIV/TB | B83: Prevention programs for general population | C83: Blood safety | D83: HIV/AIDS; HIV/TB | E83: Prevention programs for general population - Blood safety
A84: HIV/AIDS | B84: Prevention programs for general population | C84: Orphan and vulnerable children (OVC) package | D84: HIV/AIDS; HIV/TB | E84: Prevention programs for general population - Orphan and vulnerable children (OVC) package
A85: HIV/AIDS | B85: Prevention programs for general population | C85: RMNCH linkages and gender-based violence (GBV) | D85: HIV/AIDS; HIV/TB | E85: Prevention programs for general population - RMNCH linkages and gender-based violence (GBV)
A86: HIV/AIDS | B86: Prevention programs for general population | C86: Other interventions for general population - Please specify | D86: HIV/AIDS; HIV/TB | E86: Prevention programs for general population - Other interventions for general population - Please specify
A87: HIV/AIDS | B87: Prevention programs for MSM and TGs | C87: Behavioral change as part of programs for MSM and TGs | D87: HIV/AIDS; HIV/TB | E87: Prevention programs for MSM and TGs - Behavioral change as part of programs for MSM and TGs
A88: HIV/AIDS | B88: Prevention programs for MSM and TGs | C88: Condoms as part of programs for MSM and TGs | D88: HIV/AIDS; HIV/TB | E88: Prevention programs for MSM and TGs - Condoms as part of programs for MSM and TGs
A89: HIV/AIDS | B89: Prevention programs for MSM and TGs | C89: HIV testing and counseling as part of programs for MSM and TGs | D89: HIV/AIDS; HIV/TB | E89: Prevention programs for MSM and TGs - HIV testing and counseling as part of programs for MSM and TGs
A90: HIV/AIDS | B90: Prevention programs for MSM and TGs | C90: Diagnosis and treatment of STIs as part of programs for MSM and TGs | D90: HIV/AIDS; HIV/TB | E90: Prevention programs for MSM and TGs - Diagnosis and treatment of STIs as part of programs for MSM and TGs
A91: HIV/AIDS | B91: Prevention programs for people who inject drugs (PWID) and their partners | C91: Needle and Syringe programs as part of programs for PWID and their partners | D91: HIV/AIDS; HIV/TB | E91: Prevention programs for people who inject drugs (PWID) and their partners - Needle and Syringe programs as part of programs for PWID and their partners
A92: HIV/AIDS | B92: Prevention programs for people who inject drugs (PWID) and their partners | C92: OST and other drug dependence treatment (PWIDs and their partners) | D92: HIV/AIDS; HIV/TB | E92: Prevention programs for people who inject drugs (PWID) and their partners - OST and other drug dependence treatment (PWIDs and their partners)
A93: HIV/AIDS | B93: Prevention programs for other vulnerable populations (please specify) | C93: Condoms as part of programs for other vulnerable populations | D93: HIV/AIDS; HIV/TB | E93: Prevention programs for other vulnerable populations (please specify) - Condoms as part of programs for other vulnerable populations
A94: HIV/AIDS | B94: Prevention programs for other vulnerable populations (please specify) | C94: Behavioral change as part of programs for other vulnerable populations | D94: HIV/AIDS; HIV/TB | E94: Prevention programs for other vulnerable populations (please specify) - Behavioral change as part of programs for other vulnerable populations
A95: HIV/AIDS | B95: Prevention programs for other vulnerable populations (please specify) | C95: Diagnosis and treatment of STIs (other vulnerable populations) | D95: HIV/AIDS; HIV/TB | E95: Prevention programs for other vulnerable populations (please specify) - Diagnosis and treatment of STIs (other vulnerable populations)
A96: HIV/AIDS | B96: Prevention programs for other vulnerable populations (please specify) | C96: Other interventions for other vulnerable populations - Please specify | D96: HIV/AIDS; HIV/TB | E96: Prevention programs for other vulnerable populations (please specify) - Other interventions for other vulnerable populations - Please specify
A97: HIV/AIDS | B97: Prevention programs for adolescents and youth, in and out of school | C97: Behavioral change as part of programs for adolescent and youth | D97: HIV/AIDS; HIV/TB | E97: Prevention programs for adolescents and youth, in and out of school - Behavioral change as part of programs for adolescent and youth
A98: HIV/AIDS | B98: Prevention programs for adolescents and youth, in and out of school | C98: Condoms part of programs for adolescent and youth | D98: HIV/AIDS; HIV/TB | E98: Prevention programs for adolescents and youth, in and out of school - Condoms part of programs for adolescent and youth
A99: HIV/AIDS | B99: Prevention programs for general population | C99: Behavioral change as part of programs for general population | D99: HIV/AIDS; HIV/TB | E99: Prevention programs for general population - Behavioral change as part of programs for general population
A100: HIV/AIDS | B100: Prevention programs for general population | C100: Condoms as part of programs for general population | D100: HIV/AIDS; HIV/TB | E100: Prevention programs for general population - Condoms as part of programs for general population
A101: HIV/AIDS | B101: Prevention programs for general population | C101: Male circumcision | D101: HIV/AIDS; HIV/TB | E101: Prevention programs for general population - Male circumcision
A102: HIV/AIDS | B102: Prevention programs for MSM and TGs | C102: Diagnosis and treatment of viral hepatitis as part of programs for MSM and TGs | D102: HIV/AIDS; HIV/TB | E102: Prevention programs for MSM and TGs - Diagnosis and treatment of viral hepatitis as part of programs for MSM and TGs
A103: HIV/AIDS | B103: Prevention programs for MSM and TGs | C103: Other interventions for MSM and TGs - Please specify | D103: HIV/AIDS; HIV/TB | E103: Prevention programs for MSM and TGs - Other interventions for MSM and TGs - Please specify
A104: HIV/AIDS | B104: Prevention programs for sex workers and their clients | C104: Behavioral change as part of programs for sex workers and their clients | D104: HIV/AIDS; HIV/TB | E104: Prevention programs for sex workers and their clients - Behavioral change as part of programs for sex workers and their clients
A105: HIV/AIDS | B105: Prevention programs for people who inject drugs (PWID) and their partners | C105: Diagnosis and treatment of viral hepatitis (PWIDs and their partners) | D105: HIV/AIDS; HIV/TB | E105: Prevention programs for people who inject drugs (PWID) and their partners - Diagnosis and treatment of viral hepatitis (PWIDs and their partners)
A106: HIV/AIDS | B106: Prevention programs for people who inject drugs (PWID) and their partners | C106: Other interventions for IDUs and their partners - Please specify | D106: HIV/AIDS; HIV/TB | E106: Prevention programs for people who inject drugs (PWID) and their partners - Other interventions for IDUs and their partners - Please specify
A107: HIV/AIDS | B107: Prevention programs for other vulnerable populations (please specify) | C107: HIV testing and counseling as part of programs for other vulnerable populations | D107: HIV/AIDS; HIV/TB | E107: Prevention programs for other vulnerable populations (please specify) - HIV testing and counseling as part of programs for other vulnerable populations
A108: HIV/AIDS | B108: Prevention programs for adolescents and youth, in and out of school | C108: HIV testing and counseling as part of programs for adolescent and youth | D108: HIV/AIDS; HIV/TB | E108: Prevention programs for adolescents and youth, in and out of school - HIV testing and counseling as part of programs for adolescent and youth
A109: HIV/AIDS | B109: Prevention programs for adolescents and youth, in and out of school | C109: RMNCH linkages and GBV as part of programs for adolescent youth | D109: HIV/AIDS; HIV/TB | E109: Prevention programs for adolescents and youth, in and out of school - RMNCH linkages and GBV as part of programs for adolescent youth
A110: HIV/AIDS | B110: Prevention programs for adolescents and youth, in and out of school | C110: Young Key Population interventions as part of programs for adolescent and youth | D110: HIV/AIDS; HIV/TB | E110: Prevention programs for adolescents and youth, in and out of school - Young Key Population interventions as part of programs for adolescent and youth
A111: HIV/AIDS | B111: Prevention programs for adolescents and youth, in and out of school | C111: Other interventions for adolescent and youth | D111: HIV/AIDS; HIV/TB | E111: Prevention programs for adolescents and youth, in and out of school - Other interventions for adolescent and youth
A112: HIV/AIDS | B112: Prevention programs for general population | C112: HIV testing and counseling as part of programs for general population | D112: HIV/AIDS; HIV/TB | E112: Prevention programs for general population - HIV testing and counseling as part of programs for general population
A113: HIV/AIDS | B113: Prevention programs for sex workers and their clients | C113: Condoms as part of programs for sex workers and their clients | D113: HIV/AIDS; HIV/TB | E113: Prevention programs for sex workers and their clients - Condoms as part of programs for sex workers and their clients
A114: HIV/AIDS | B114: Prevention programs for sex workers and their clients | C114: HIV testing and counseling as part of programs for sex workers and their clients | D114: HIV/AIDS; HIV/TB | E114: Prevention programs for sex workers and their clients - HIV testing and counseling as part of programs for sex workers and their clients
A115: HIV/AIDS | B115: Prevention programs for sex workers and their clients | C115: Diagnosis and treatment of STIs (sex workers and their clients) | D115: HIV/AIDS; HIV/TB | E115: Prevention programs for sex workers and their clients - Diagnosis and treatment of STIs (sex workers and their clients)
A116: HIV/AIDS | B116: Prevention programs for sex workers and their clients | C116: Harm reduction as part of programs for sex workers and their clients | D116: HIV/AIDS; HIV/TB | E116: Prevention programs for sex workers and their clients - Harm reduction as part of programs for sex workers and their clients
A117: HIV/AIDS | B117: PMTCT | C117: Prong 1: Primary prevention of HIV infection among women of childbearing age | D117: HIV/AIDS; HIV/TB | E117: PMTCT - Prong 1: Primary prevention of HIV infection among women of childbearing age
A118: HIV/AIDS | B118: PMTCT | C118: Prong 2: Preventing unintended pregnancies among women living with HIV | D118: HIV/AIDS; HIV/TB | E118: PMTCT - Prong 2: Preventing unintended pregnancies among women living with HIV
A119: HIV/AIDS | B119: PMTCT | C119: Prong 3: Preventing vertical HIV transmission | D119: HIV/AIDS; HIV/TB | E119: PMTCT - Prong 3: Preventing vertical HIV transmission
A120: HIV/AIDS | B120: PMTCT | C120: Prong 4: Treatment, care & support to mothers living with HIV, their children & | D120: HIV/AIDS; HIV/TB | E120: PMTCT - Prong 4: Treatment, care & support to mothers living with HIV, their children &
A121: HIV/AIDS | B121: PMTCT | C121: Other interventions for PMTCT- Please specify | D121: HIV/AIDS; HIV/TB | E121: PMTCT - Other interventions for PMTCT- Please specify
A122: HIV/AIDS | B122: Prevention programs for sex workers and their clients | C122: Other interventions for sex workers and their clients - Please specify | D122: HIV/AIDS; HIV/TB | E122: Prevention programs for sex workers and their clients - Other interventions for sex workers and their clients - Please specify
A123: HIV/AIDS | B123: Prevention programs for people who inject drugs (PWID) and their partners | C123: Behavioural change as part of programs for PWID and their partners | D123: HIV/AIDS; HIV/TB | E123: Prevention programs for people who inject drugs (PWID) and their partners - Behavioural change as part of programs for PWID and their partners
A124: HIV/AIDS | B124: Prevention programs for people who inject drugs (PWID) and their partners | C124: Condoms as part of programs for PWID and their partners | D124: HIV/AIDS; HIV/TB | E124: Prevention programs for people who inject drugs (PWID) and their partners - Condoms as part of programs for PWID and their partners
A125: HIV/AIDS | B125: Treatment, care and support | C125: Pre-ART care | D125: HIV/AIDS; HIV/TB | E125: Treatment, care and support - Pre-ART care
A126: HIV/AIDS | B126: Treatment, care and support | C126: Antiretroviral Therapy (ART) | D126: HIV/AIDS; HIV/TB | E126: Treatment, care and support - Antiretroviral Therapy (ART)
A127: HIV/AIDS | B127: Treatment, care and support | C127: Treatment monitoring | D127: HIV/AIDS; HIV/TB | E127: Treatment, care and support - Treatment monitoring
A128: HIV/AIDS | B128: Treatment, care and support | C128: Treatment adherence | D128: HIV/AIDS; HIV/TB | E128: Treatment, care and support - Treatment adherence
A129: HIV/AIDS | B129: Treatment, care and support | C129: Prevention, diagnosis and treatment of opportunistic infections | D129: HIV/AIDS; HIV/TB | E129: Treatment, care and support - Prevention, diagnosis and treatment of opportunistic infections
A130: HIV/AIDS | B130: Prevention programs for people who inject drugs (PWID) and their partners | C130: Diagnosis and treatment of STIs as part of programs for PWID and their partners | D130: HIV/AIDS; HIV/TB | E130: Prevention programs for people who inject drugs (PWID) and their partners - Diagnosis and treatment of STIs as part of programs for PWID and their partners
A131: HIV/AIDS | B131: Treatment, care and support | C131: Counseling and psycho-social support | D131: HIV/AIDS; HIV/TB | E131: =CONCATENATE(B131," - ",C131) -> Treatment, care and support - Counseling and psycho-social support
A132: HIV/AIDS | B132: Treatment, care and support | C132: Out-patient care | D132: HIV/AIDS; HIV/TB | E132: Treatment, care and support - Out-patient care
A133: HIV/AIDS | B133: Treatment, care and support | C133: In-patient care | D133: HIV/AIDS; HIV/TB | E133: Treatment, care and support - In-patient care
A134: HIV/AIDS | B134: Treatment, care and support | C134: Other interventions for treatment - Please specify | D134: HIV/AIDS; HIV/TB | E134: Treatment, care and support - Other interventions for treatment - Please specify
A135: HIV/AIDS | B135: Prevention programs for general population | C135: Diagnosis and treatment of STIs as part of programs for general population | D135: HIV/AIDS; HIV/TB | E135: Prevention programs for general population - Diagnosis and treatment of STIs as part of programs for general population
A136: HIV/AIDS | B136: Prevention programs for general population | C136: Blood safety | D136: HIV/AIDS; HIV/TB | E136: Prevention programs for general population - Blood safety
A137: HIV/AIDS | B137: Prevention programs for general population | C137: Orphan and vulnerable children (OVC) package | D137: HIV/AIDS; HIV/TB | E137: Prevention programs for general population - Orphan and vulnerable children (OVC) package
A138: HIV/AIDS | B138: TB/HIV | C138: TB/HIV collaborative interventions | D138: HIV/AIDS; Tuberculosis; HIV/TB | E138: TB/HIV - TB/HIV collaborative interventions
A139: HIV/AIDS | B139: TB/HIV | C139: Engaging all care providers | D139: HIV/AIDS; Tuberculosis; HIV/TB | E139: TB/HIV - Engaging all care providers
A140: HIV/AIDS | B140: TB/HIV | C140: Community TB care delivery | D140: HIV/AIDS; Tuberculosis; HIV/TB | E140: TB/HIV - Community TB care delivery
A141: HIV/AIDS | B141: TB/HIV | C141: Key Affected Populations | D141: HIV/AIDS; Tuberculosis; HIV/TB | E141: TB/HIV - Key Affected Populations
A142: HIV/AIDS | B142: TB/HIV | C142: Collaborative activities with other programs and sectors | D142: HIV/AIDS; Tuberculosis; HIV/TB | E142: TB/HIV - Collaborative activities with other programs and sectors
A143: Tuberculosis | B143: TB/HIV | C143: TB/HIV collaborative interventions | D143: HIV/AIDS; Tuberculosis; HIV/TB | E143: TB/HIV - TB/HIV collaborative interventions
A144: Tuberculosis | B144: TB/HIV | C144: Engaging all care providers | D144: HIV/AIDS; Tuberculosis; HIV/TB | E144: TB/HIV - Engaging all care providers
A145: Tuberculosis | B145: TB/HIV | C145: Community TB care delivery | D145: HIV/AIDS; Tuberculosis; HIV/TB | E145: TB/HIV - Community TB care delivery
A146: Tuberculosis | B146: TB/HIV | C146: Key Affected Populations | D146: HIV/AIDS; Tuberculosis; HIV/TB | E146: TB/HIV - Key Affected Populations
A147: Tuberculosis | B147: TB/HIV | C147: Collaborative activities with other programs and sectors | D147: HIV/AIDS; Tuberculosis; HIV/TB | E147: TB/HIV - Collaborative activities with other programs and sectors
A148: HIV/TB | B148: TB/HIV | C148: TB/HIV collaborative interventions | D148: HIV/AIDS; Tuberculosis; HIV/TB | E148: TB/HIV - TB/HIV collaborative interventions
A149: HIV/TB | B149: TB/HIV | C149: Engaging all care providers | D149: HIV/AIDS; Tuberculosis; HIV/TB | E149: TB/HIV - Engaging all care providers
A150: HIV/TB | B150: TB/HIV | C150: Community TB care delivery | D150: HIV/AIDS; Tuberculosis; HIV/TB | E150: TB/HIV - Community TB care delivery
A151: HIV/TB | B151: TB/HIV | C151: Key Affected Populations | D151: HIV/AIDS; Tuberculosis; HIV/TB | E151: TB/HIV - Key Affected Populations
A152: HIV/TB | B152: TB/HIV | C152: Collaborative activities with other programs and sectors | D152: HIV/AIDS; Tuberculosis; HIV/TB | E152: TB/HIV - Collaborative activities with other programs and sectors
A153: HIV/AIDS | B153: Removing legal barriers to access | C153: Training on rights for officials, health workers and police | D153: HIV/AIDS; Tuberculosis; Malaria; Health Systems Strengthening; HIV/TB | E153: Removing legal barriers to access - Training on rights for officials, health workers and police
A154: HIV/AIDS | B154: HSS - Service delivery | C154: Service organization and facility management | D154: HIV/AIDS; Tuberculosis; Malaria; Health Systems Strengthening; HIV/TB | E154: HSS - Service delivery - Service organization and facility management
A155: HIV/AIDS | B155: HSS - Service delivery | C155: Improving laboratory systems | D155: HIV/AIDS; Tuberculosis; Malaria; Health Systems Strengthening; HIV/TB | E155: HSS - Service delivery - Improving laboratory systems
A156: HIV/AIDS | B156: HSS - Service delivery | C156: Improving service delivery infrastructure | D156: HIV/AIDS; Tuberculosis; Malaria; Health Systems Strengthening; HIV/TB | E156: HSS - Service delivery - Improving service delivery infrastructure
A157: HIV/AIDS | B157: HSS - Service delivery | C157: Other | D157: HIV/AIDS; Tuberculosis; Malaria; Health Systems Strengthening; HIV/TB | E157: HSS - Service delivery - Other
A158: HIV/AIDS | B158: HSS - Health and community workforce | C158: Health and community workers capacity building | D158: HIV/AIDS; Tuberculosis; Malaria; Health Systems Strengthening; HIV/TB | E158: HSS - Health and community workforce - Health and community workers capacity building
A159: HIV/AIDS | B159: HSS - Health information systems and M&E | C159: Administrative and finance data sources | D159: HIV/AIDS; Tuberculosis; Malaria; Health Systems Strengthening; HIV/TB | E159: HSS - Health information systems and M&E - Administrative and finance data sources
A160: HIV/AIDS | B160: HSS - Health information systems and M&E | C160: Vital registration system | D160: HIV/AIDS; Tuberculosis; Malaria; Health Systems Strengthening; HIV/TB | E160: HSS - Health information systems and M&E - Vital registration system
A161: HIV/AIDS | B161: HSS - Health information systems and M&E | C161: Routine reporting | D161: HIV/AIDS; Tuberculosis; Malaria; Health Systems Strengthening; HIV/TB | E161: HSS - Health information systems and M&E - Routine reporting
A162: HIV/AIDS | B162: HSS - Health information systems and M&E | C162: Analysis, review and transparency | D162: HIV/AIDS; Tuberculosis; Malaria; Health Systems Strengthening; HIV/TB | E162: HSS - Health information systems and M&E - Analysis, review and transparency
A163: HIV/AIDS | B163: HSS - Health information systems and M&E | C163: Surveys | D163: HIV/AIDS; Tuberculosis; Malaria; Health Systems Strengthening; HIV/TB | E163: HSS - Health information systems and M&E - Surveys
A164: HIV/AIDS | B164: Program management | C164: Policy, planning, coordination and management | D164: HIV/AIDS; Tuberculosis; Malaria; Health Systems Strengthening; HIV/TB | E164: Program management - Policy, planning, coordination and management
A165: HIV/AIDS | B165: Program management | C165: Grant management | D165: HIV/AIDS; Tuberculosis; Malaria; Health Systems Strengthening; HIV/TB | E165: Program management - Grant management
A166: HIV/AIDS | B166: HSS - Health and community workforce | C166: Scaling up health and community workers | D166: HIV/AIDS; Tuberculosis; Malaria; Health Systems Strengthening; HIV/TB | E166: HSS - Health and community workforce - Scaling up health and community workers
A167: HIV/AIDS | B167: HSS - Health and community workforce | C167: Retention and distribution of health and community workers | D167: HIV/AIDS; Tuberculosis; Malaria; Health Systems Strengthening; HIV/TB | E167: HSS - Health and community workforce - Retention and distribution of health and community workers
A168: HIV/AIDS | B168: HSS - Procurement supply chain management (PSCM) | C168: Operationalization of procurement and supply chain management system | D168: HIV/AIDS; Tuberculosis; Malaria; Health Systems Strengthening; HIV/TB | E168: HSS - Procurement supply chain management (PSCM) - Operationalization of procurement and supply chain management system
A169: HIV/AIDS | B169: HSS - Procurement supply chain management (PSCM) | C169: PSM infrastructure and development of tools | D169: HIV/AIDS; Tuberculosis; Malaria; Health Systems Strengthening; HIV/TB | E169: HSS - Procurement supply chain management (PSCM) - PSM infrastructure and development of tools
A170: HIV/AIDS | B170: HSS - Policy and governance | C170: Development and implementation of health legislation, strategies and policies | D170: HIV/AIDS; Tuberculosis; Malaria; Health Systems Strengthening; HIV/TB | E170: HSS - Policy and governance - Development and implementation of health legislation, strategies and policies
A171: HIV/AIDS | B171: Program management | C171: Supporting procurement and supply management | D171: HIV/AIDS; Tuberculosis; Malaria; Health Systems Strengthening; HIV/TB | E171: Program management - Supporting procurement and supply management
A172: HIV/AIDS | B172: HSS - Policy and governance | C172: Monitoring and reporting implementation of laws and policies | D172: HIV/AIDS; Tuberculosis; Malaria; Health Systems Strengthening; HIV/TB | E172: HSS - Policy and governance - Monitoring and reporting implementation of laws and policies
A173: HIV/AIDS | B173: HSS - Healthcare financing | C173: Financial sustainability | D173: HIV/AIDS; Tuberculosis; Malaria; Health Systems Strengthening; HIV/TB | E173: HSS - Healthcare financing - Financial sustainability
A174: HIV/AIDS | B174: HSS - Healthcare financing | C174: Equity of healthcare financing | D174: HIV/AIDS; Tuberculosis; Malaria; Health Systems Strengthening; HIV/TB | E174: HSS - Healthcare financing - Equity of healthcare financing
A175: HIV/AIDS | B175: HSS - Financial management | C175: Performance,transparency&accountability of financial management system in health | D175: HIV/AIDS; Tuberculosis; Malaria; Health Systems Strengthening; HIV/TB | E175: HSS - Financial management - Performance,transparency&accountability of financial management system in health
A176: HIV/AIDS | B176: Removing legal barriers to access | C176: Legal and policy environment assessment and law reform | D176: HIV/AIDS; Tuberculosis; Malaria; Health Systems Strengthening; HIV/TB | E176: Removing legal barriers to access - Legal and policy environment assessment and law reform
A177: HIV/AIDS | B177: Removing legal barriers to access | C177: Legal aid services and legal literacy | D177: HIV/AIDS; Tuberculosis; Malaria; Health Systems Strengthening; HIV/TB | E177: Removing legal barriers to access - Legal aid services and legal literacy
A178: HIV/AIDS | B178: Removing legal barriers to access | C178: Community-based monitoring of legal rights | D178: HIV/AIDS; Tuberculosis; Malaria; Health Systems Strengthening; HIV/TB | E178: Removing legal barriers to access - Community-based monitoring of legal rights
A179: HIV/AIDS | B179: Removing legal barriers to access | C179: Policy advocacy on legal rights | D179: HIV/AIDS; Tuberculosis; Malaria; Health Systems Strengthening; HIV/TB | E179: Removing legal barriers to access - Policy advocacy on legal rights
A180: Tuberculosis | B180: Removing legal barriers to access | C180: Training on rights for officials, health workers and police | D180: HIV/AIDS; Tuberculosis; Malaria; Health Systems Strengthening; HIV/TB | E180: Removing legal barriers to access - Training on rights for officials, health workers and police
A181: Tuberculosis | B181: HSS - Service delivery | C181: Service organization and facility management | D181: HIV/AIDS; Tuberculosis; Malaria; Health Systems Strengthening; HIV/TB | E181: HSS - Service delivery - Service organization and facility management
A182: Tuberculosis | B182: HSS - Service delivery | C182: Improving laboratory systems | D182: HIV/AIDS; Tuberculosis; Malaria; Health Systems Strengthening; HIV/TB | E182: HSS - Service delivery - Improving laboratory systems
A183: Tuberculosis | B183: HSS - Service delivery | C183: Improving service delivery infrastructure | D183: HIV/AIDS; Tuberculosis; Malaria; Health Systems Strengthening; HIV/TB | E183: HSS - Service delivery - Improving service delivery infrastructure
A184: Tuberculosis | B184: HSS - Service delivery | C184: Other | D184: HIV/AIDS; Tuberculosis; Malaria; Health Systems Strengthening; HIV/TB | E184: HSS - Service delivery - Other
A185: Tuberculosis | B185: HSS - Health and community workforce | C185: Health and community workers capacity building | D185: HIV/AIDS; Tuberculosis; Malaria; Health Systems Strengthening; HIV/TB | E185: HSS - Health and community workforce - Health and community workers capacity building
A186: Tuberculosis | B186: HSS - Health information systems and M&E | C186: Administrative and finance data sources | D186: HIV/AIDS; Tuberculosis; Malaria; Health Systems Strengthening; HIV/TB | E186: HSS - Health information systems and M&E - Administrative and finance data sources
A187: Tuberculosis | B187: HSS - Health information systems and M&E | C187: Vital registration system | D187: HIV/AIDS; Tuberculosis; Malaria; Health Systems Strengthening; HIV/TB | E187: HSS - Health information systems and M&E - Vital registration system
A188: Tuberculosis | B188: HSS - Health information systems and M&E | C188: Routine reporting | D188: HIV/AIDS; Tuberculosis; Malaria; Health Systems Strengthening; HIV/TB | E188: HSS - Health information systems and M&E - Routine reporting
A189: Tuberculosis | B189: HSS - Health information systems and M&E | C189: Analysis, review and transparency | D189: HIV/AIDS; Tuberculosis; Malaria; Health Systems Strengthening; HIV/TB | E189: HSS - Health information systems and M&E - Analysis, review and transparency
A190: Tuberculosis | B190: HSS - Health information systems and M&E | C190: Surveys | D190: HIV/AIDS; Tuberculosis; Malaria; Health Systems Strengthening; HIV/TB | E190: HSS - Health information systems and M&E - Surveys
A191: Tuberculosis | B191: Program management | C191: Policy, planning, coordination and management | D191: HIV/AIDS; Tuberculosis; Malaria; Health Systems Strengthening; HIV/TB | E191: Program management - Policy, planning, coordination and management
A192: Tuberculosis | B192: Program management | C192: Grant management | D192: HIV/AIDS; Tuberculosis; Malaria; Health Systems Strengthening; HIV/TB | E192: Program management - Grant management
A193: Tuberculosis | B193: HSS - Health and community workforce | C193: Scaling up health and community workers | D193: HIV/AIDS; Tuberculosis; Malaria; Health Systems Strengthening; HIV/TB | E193: HSS - Health and community workforce - Scaling up health and community workers
A194: Tuberculosis | B194: HSS - Health and community workforce | C194: Retention and distribution of health and community workers | D194: HIV/AIDS; Tuberculosis; Malaria; Health Systems Strengthening; HIV/TB | E194: HSS - Health and community workforce - Retention and distribution of health and community workers
A195: Tuberculosis | B195: HSS - Procurement supply chain management (PSCM) | C195: Operationalization of procurement and supply chain management system | D195: HIV/AIDS; Tuberculosis; Malaria; Health Systems Strengthening; HIV/TB | E195: =CONCATENATE(B195," - ",C195) -> HSS - Procurement supply chain management (PSCM) - Operationalization of procurement and supply chain management system
A196: Tuberculosis | B196: HSS - Procurement supply chain management (PSCM) | C196: PSM infrastructure and development of tools | D196: HIV/AIDS; Tuberculosis; Malaria; Health Systems Strengthening; HIV/TB | E196: HSS - Procurement supply chain management (PSCM) - PSM infrastructure and development of tools
A197: Tuberculosis | B197: HSS - Policy and governance | C197: Development and implementation of health legislation, strategies and policies | D197: HIV/AIDS; Tuberculosis; Malaria; Health Systems Strengthening; HIV/TB | E197: HSS - Policy and governance - Development and implementation of health legislation, strategies and policies
A198: Tuberculosis | B198: Program management | C198: Supporting procurement and supply management | D198: HIV/AIDS; Tuberculosis; Malaria; Health Systems Strengthening; HIV/TB | E198: Program management - Supporting procurement and supply management
A199: Tuberculosis | B199: HSS - Policy and governance | C199: Monitoring and reporting implementation of laws and policies | D199: HIV/AIDS; Tuberculosis; Malaria; Health Systems Strengthening; HIV/TB | E199: HSS - Policy and governance - Monitoring and reporting implementation of laws and policies
A200: Tuberculosis | B200: HSS - Healthcare financing | C200: Financial sustainability | D200: HIV/AIDS; Tuberculosis; Malaria; Health Systems Strengthening; HIV/TB | E200: HSS - Healthcare financing - Financial sustainability
... 107 more rows

Sheet Impact Outcome Indicators_1A
A1: On-going Progress Update and Disbursement Request
A2: Section 1: Programmatic Progress
A3: Note: The table below should contain those Impact/Outcome indicators that are (1) due for reporting during the current year of a grant and (2) those reporting on which is overdue from the previous periods.
A4: A. Impact / Outcome Indicators | Q4: For LFA Use Only | AC4: For the Global Fund Use Only
A5: Impact / Outcome | B5: Indicator Description | G5: Baseline (if applicable) | I5: Year of Target | J5: Intended Target | K5: Report Due Date | L5: Actual Result | M5: Data Source of Results | N5: Comments on results on Impact/Outcome indicators and data sources, and any other comments | Q5: Baseline (if applicable) | S5: Year of Target | T5: Intended Target | U5: Report Due Date | V5: Verification Method | W5: Verified Result | X5: LFA comments on (a) verified result, (b) source of information used by the PR to report results, including the status of completion of surveys and other methods to measure Impact/Outcome, as applicable, | AC5: Validated Result | AD5: Country Team comments on validated results
G6: Value | H6: Year | Q6: Value | R6: Year
A7: Impact | B7: TB mortality rate Number of deaths attributable to TB (all forms) registered in a specified period per 100,000 populations | G7: 7 | H7: 2014 | I7: 2016 | J7: 6.3 | K7: 2017-02-15 | L7: 3.9 | M7: WHO Global TB Reports (Country Profiles) | N7: The indicator significantly acceeded the intended target contributing to growing treatment success rate. | Q7: - | R7: - | S7: - | T7: - | U7: - | V7: Select | AC7: =W7 -> 0
A8: Outcome | B8: Case notification rate per 100,000 population- all forms of TB i.e. bacteriologically confirmed + clinically diagnosed* *Case notification rate indicators include new and relapse cases | G8: 84 | H8: 2015 | I8: 2016 | J8: 82 | K8: 2017-02-15 | L8: 79.8 | M8: R&R TB system, yearly management report | N8: The overall number of TB cases has been steadily decreasing, although there are no access barriers to services and number of screened presumptive TB cases and contacts has not decreased. | Q8: - | R8: - | S8: - | T8: - | U8: - | V8: Select | AC8: =W8 -> 0
A9: Outcome | B9: Treatment success rate - bacteriologically confirmed: Percentage of bacteriologically confirmed TB cases successfully treated (cured plus treatment completed) | G9: 77 | H9: 2013 | I9: 2014 | J9: 85 | K9: 2017-02-15 | L9: 79.3 | M9: R&R TB system, yearly management report | N9: The actual result demonstrates improvement as compared to baseline value. | Q9: - | R9: - | S9: - | T9: - | U9: - | V9: Select | AC9: 0
A10: Outcome | B10: Treatment success rate- laboratory confirmed RR TB and/or MDR-TB: Percentage of bacteriologically-confirmed RR and/or MDR-TB cases successfully treated (cured plus completed treatment) among those enrolled on second-line anti-TB treatment during the year of assessment | G10: 46 | H10: 2012 | I10: 2013 | J10: 75 | K10: 2017-02-15 | L10: 40 | M10: R&R TB system, yearly management report | N10: Poor treatment outcome among MDR patients is linked to high loss to follow up rate, that partially is explained by long-term (minimum 20 months) treatment recommended by the national guideline. Planned guideline update in line with the latest WHO recommendations will improve treatment outcome as in 2013 cohort, 14% of those identified as lost to follow up (22 patients) completed more than 13 months treatment and three or more consecutive cultures taken at least 30 days apart were negative after the intensive phase, thus met criteria of successful treatment. | Q10: - | R10: - | S10: - | T10: - | U10: - | V10: Select | AC10: 0
A11: Outcome | B11: Case notification rate per 100,000 population- bacteriologically confirmed (new and relapse cases) | G11: 58 | H11: 2015 | I11: 2016 | J11: 57 | K11: 2017-02-15 | L11: 56 | M11: R&R TB system, quarterly reports | N11: The overall number of TB cases has been steadily decreasing, although there are no access barriers to services and number of screened presumptive TB cases and contacts has not decreased. | Q11: - | R11: - | S11: - | T11: - | U11: - | V11: Select | AC11: 0
A12: Select | G12: - | H12: - | I12: - | J12: - | K12: - | L12: - | M12: Select | Q12: - | R12: - | S12: - | T12: - | U12: - | V12: Select | AC12: 0
A13: Select | G13: - | H13: - | I13: - | J13: - | K13: - | L13: - | M13: Select | Q13: - | R13: - | S13: - | T13: - | U13: - | V13: Select | AC13: 0
A14: Select | G14: - | H14: - | I14: - | J14: - | K14: - | L14: - | M14: Select | Q14: - | R14: - | S14: - | T14: - | U14: - | V14: Select | AC14: 0
A15: Select | G15: - | H15: - | I15: - | J15: - | K15: - | L15: - | M15: Select | Q15: - | R15: - | S15: - | T15: - | U15: - | V15: Select | AC15: 0
A16: Select | G16: - | H16: - | I16: - | J16: - | K16: - | L16: - | M16: Select | Q16: - | R16: - | S16: - | T16: - | U16: - | V16: Select | AC16: 0
A17: Select | G17: - | H17: - | I17: - | J17: - | K17: - | L17: - | M17: Select | Q17: - | R17: - | S17: - | T17: - | U17: - | V17: Select | AC17: 0
A18: Select | G18: - | H18: - | I18: - | J18: - | K18: - | L18: - | M18: Select | Q18: - | R18: - | S18: - | T18: - | U18: - | V18: Select | AC18: 0
A19: Select | G19: - | H19: - | I19: - | J19: - | K19: - | L19: - | M19: Select | Q19: - | R19: - | S19: - | T19: - | U19: - | V19: Select | AC19: 0
A20: Select | G20: - | H20: - | I20: - | J20: - | K20: - | L20: - | M20: Select | Q20: - | R20: - | S20: - | T20: - | U20: - | V20: Select | AC20: 0
A21: Select | G21: - | H21: - | I21: - | J21: - | K21: - | L21: - | M21: Select | Q21: - | R21: - | S21: - | T21: - | U21: - | V21: Select | AC21: 0
A22: Select | G22: - | H22: - | I22: - | J22: - | K22: - | L22: - | M22: Select | Q22: - | R22: - | S22: - | T22: - | U22: - | V22: Select | AC22: =W22 -> 0
A23: Select | G23: - | H23: - | I23: - | J23: - | K23: - | L23: - | M23: Select | Q23: - | R23: - | S23: - | T23: - | U23: - | V23: Select | AC23: =W23 -> 0
A24: Select | G24: - | H24: - | I24: - | J24: - | K24: - | L24: - | M24: Select | Q24: - | R24: - | S24: - | T24: - | U24: - | V24: Select | AC24: 0
A25: Select | G25: - | H25: - | I25: - | J25: - | K25: - | L25: - | M25: Select | Q25: - | R25: - | S25: - | T25: - | U25: - | V25: Select | AC25: 0
A26: Select | G26: - | H26: - | I26: - | J26: - | K26: - | L26: - | M26: Select | Q26: - | R26: - | S26: - | T26: - | U26: - | V26: Select | AC26: 0
A27: Select | G27: - | H27: - | I27: - | J27: - | K27: - | L27: - | M27: Select | Q27: - | R27: - | S27: - | T27: - | U27: - | V27: Select | AC27: 0
A28: Select | G28: - | H28: - | I28: - | J28: - | K28: - | L28: - | M28: Select | Q28: - | R28: - | S28: - | T28: - | U28: - | V28: Select | AC28: 0
A29: Select | G29: - | H29: - | I29: - | J29: - | K29: - | L29: - | M29: Select | Q29: - | R29: - | S29: - | T29: - | U29: - | V29: Select | AC29: 0
A30: Select | G30: - | H30: - | I30: - | J30: - | K30: - | L30: - | M30: Select | Q30: - | R30: - | S30: - | T30: - | U30: - | V30: Select | AC30: 0
A31: Select | G31: - | H31: - | I31: - | J31: - | K31: - | L31: - | M31: Select | Q31: - | R31: - | S31: - | T31: - | U31: - | V31: Select | AC31: 0
A32: Select | G32: - | H32: - | I32: - | J32: - | K32: - | L32: - | M32: Select | Q32: - | R32: - | S32: - | T32: - | U32: - | V32: Select | AC32: 0
A33: Select | G33: - | H33: - | I33: - | J33: - | K33: - | L33: - | M33: Select | Q33: - | R33: - | S33: - | T33: - | U33: - | V33: Select | AC33: 0
A34: Select | G34: - | H34: - | I34: - | J34: - | K34: - | L34: - | M34: Select | Q34: - | R34: - | S34: - | T34: - | U34: - | V34: Select | AC34: 0
A35: Select | G35: - | H35: - | I35: - | J35: - | K35: - | L35: - | M35: Select | Q35: - | R35: - | S35: - | T35: - | U35: - | V35: Select | AC35: 0
A36: Select | G36: - | H36: - | I36: - | J36: - | K36: - | L36: - | M36: Select | Q36: - | R36: - | S36: - | T36: - | U36: - | V36: Select | AC36: 0
A37: Select | G37: - | H37: - | I37: - | J37: - | K37: - | L37: - | M37: Select | Q37: - | R37: - | S37: - | T37: - | U37: - | V37: Select | AC37: 0
A38: Select | G38: - | H38: - | I38: - | J38: - | K38: - | L38: - | M38: Select | Q38: - | R38: - | S38: - | T38: - | U38: - | V38: Select | AC38: 0
A39: Select | G39: - | H39: - | I39: - | J39: - | K39: - | L39: - | M39: Select | Q39: - | R39: - | S39: - | T39: - | U39: - | V39: Select | AC39: 0
A40: Select | G40: - | H40: - | I40: - | J40: - | K40: - | L40: - | M40: Select | Q40: - | R40: - | S40: - | T40: - | U40: - | V40: Select | AC40: 0
A41: Select | G41: - | H41: - | I41: - | J41: - | K41: - | L41: - | M41: Select | Q41: - | R41: - | S41: - | T41: - | U41: - | V41: Select | AC41: 0

Sheet Coverage Indicators_1B
A1: On-going Progress Update and Disbursement Request
A2: Section 1: Programmatic Progress
A3: Note: All programmatic indicators contained in the current Performance Framework should be listed, regardless of whether there are targets/results for the period covered by the Progress Update or whether the targets have been met in previous periods.
A4: B. Coverage Indicators | W4: For LFA Use Only | AO4: For the Global Fund Use Only
A5: Objective No. | B5: * Indicator No. | C5: Indicator Description | G5: Tied To | H5: Targets cumulative? | I5: Top 10 indicator? | J5: Baseline | N5: Target | Q5: Result | T5: Achievement Ratio | U5: Reasons for programmatic deviation from intended target and deviations from the related workplan activities | W5: Targets cumulative? | X5: Top 10 indicator? | Y5: Baseline | AC5: Target | AF5: Verified Result | AI5: Achievement Ratio | AJ5: LFA analysis on progress to date and any variance between targets and results, and any other comments (this should not be a “Copy and Paste” of the reasons provided by the PR) | AO5: Validated Result | AR5: Achievement Ratio | AS5: Country Team comments on validated results
J6: Year | K6: N# | L6: D# | M6: % | N6: N# | O6: D# | P6: % | Q6: N# | R6: D# | S6: % | Y6: Year | Z6: N# | AA6: D# | AB6: % | AC6: N# | AD6: D# | AE6: % | AF6: N# | AG6: D# | AH6: % | AO6: N# | AP6: D# | AQ6: %
A7: 2 | B7: 1 | C7: Percentage of TB patients who had an HIV test result recorded in the TB register | G7: Current grant | H7: N-not cumulative | I7: Yes - Top 10 | J7: 2013 | K7: 2535 | L7: 4184 | M7: =IFERROR(K7/L7,"") -> 0.6058795411 | N7: 2100 | O7: 2463 | P7: =IFERROR(N7/O7,"") -> 0.8526187576 | Q7: 1438 | R7: 1501 | S7: =IFERROR(Q7/R7,"") -> 0.9580279813 | T7: =IFERROR(IF(AND(N7<>"",O7="",Q7<>"",R7=""),IF((Q7/N7)>120%,120%,(Q7/N7)),IF((S7/P7)>120%,120%,(S7/P7)))," ") -> 1.123629961 | U7: The indicator is overachieved. The numerator and denominator values are based on the TB Centre database for the said reporting period. The joint effort of PR/SR as well as the state TB program support resulted in the substantial scale-up of HIV testing | W7: Select | X7: Select | AB7: =IFERROR(Z7/AA7,"") ->  | AE7: =IFERROR(AC7/AD7,"") ->  | AH7: =IFERROR(AF7/AG7,"") ->  | AI7: =IFERROR(IF(AND(AC7<>"",AD7="",AF7<>"",AG7=""),IF((AF7/AC7)>120%,120%,(AF7/AC7)),IF((AH7/AE7)>120%,120%,(AH7/AE7)))," ") ->  | AO7: =AF7 -> 0 | AP7: =AG7 -> 0 | AQ7: =IFERROR(AO7/AP7,"") ->  | AR7: =AI7 -> 
A8: 2 | B8: 2 | C8: Number of notified cases of bacteriologically confirmed TB, (new and relapse) | G8: Current grant | H8: Y-cumulative annually | I8: Yes - Top 10 | J8: 2012 | K8: 2464 | M8: =IFERROR(K8/L8,"") ->  | N8: 2839 | O8: 2839 | P8: =IFERROR(N8/O8,"") -> 1 | Q8: 2084 | R8: 2839 | S8: =IFERROR(Q8/R8,"") -> 0.7340612892 | T8: =IFERROR(IF(AND(N8<>"",O8="",Q8<>"",R8=""),IF((Q8/N8)>120%,120%,(Q8/N8)),IF((S8/P8)>120%,120%,(S8/P8)))," ") -> 0.7340612892 | U8: The number comes from the TB Centre database for the said reporting period. Overall number of TB cases has a tendency to decrease. Still planned further roll-out of GeneXpert technology has the potential to increase the number of bacteriologically confirmed cases. | W8: Select | X8: Select | AB8: =IFERROR(Z8/AA8,"") ->  | AE8: =IFERROR(AC8/AD8,"") ->  | AH8: =IFERROR(AF8/AG8,"") ->  | AI8: =IFERROR(IF(AND(AC8<>"",AD8="",AF8<>"",AG8=""),IF((AF8/AC8)>120%,120%,(AF8/AC8)),IF((AH8/AE8)>120%,120%,(AH8/AE8)))," ") ->  | AO8: =AF8 -> 0 | AP8: =AG8 -> 0 | AQ8: =IFERROR(AO8/AP8,"") ->  | AR8: =AI8 -> 
A9: 3 | B9: 1 | C9: Number of notified cases of all forms of TB - (i.e. bacteriologically confirmed +clinically diagnosed) (new and relapse) | G9: National Program | H9: Y-cumulative annually | I9: Yes - Top 10 | J9: 2012 | K9: 3939 | M9: =IFERROR(K9/L9,"") ->  | N9: 4056 | O9: 4056 | P9: 1 | Q9: 2969 | R9: 4056 | S9: 0.7320019724 | T9: 0.7320019724 | U9: The number comes from the TB Centre database for the said reporting period. Overall number of TB cases has a tendency to decrease. | W9: Select | X9: Select | AO9: 0 | AP9: 0
A10: 3 | B10: 2 | C10: Number of bacteriologically confirmed TB cases in a specified period who subsequently were successfully treated (sum of WHO outcome categories "cured” plus "treatment completed”) | G10: National Program | H10: Y-cumulative annually | I10: Yes - Top 10 | J10: 2011 | K10: 1917 | N10: 2249 | O10: 2249 | P10: 1 | Q10: 1764 | R10: 2249 | S10: 0.7843485994 | T10: 0.7843485994 | U10: The actual results falls behing the target value, however demonstrates improvement as compared to the previous year. Treatment success rate for this subgroup in prison is 78,8% (71 patients out of 90). | W10: Select | X10: Select | AO10: 0 | AP10: 0
A11: 3 | B11: 4 | C11: Laboratory-confirmed X/MDR-TB patients enrolled on second line anti-TB treatment in the specified calendar year | G11: National Program | H11: Y-cumulative annually | I11: Yes - Top 10 | J11: 2013 | K11: 659 | N11: 517 | O11: 517 | P11: 1 | Q11: 393 | R11: 517 | S11: 0.7601547389 | T11: 0.7601547389 | U11: The result is in line with the overall trend of decreasing TB cases in the country. | W11: Select | X11: Select | AO11: 0 | AP11: 0
A12: 3 | B12: 5 | C12: Percentage of previously treated TB patients receiving DST | G12: National Program | H12: Y-cumulative annually | I12: Yes - Top 10 | J12: 2012 | K12: 569 | L12: 632 | M12: 0.9003164557 | N12: 313 | O12: 313 | P12: 1 | Q12: 222 | R12: 245 | S12: 0.906122449 | T12: 0.906122449 | U12: The actual result falls behing the target value, however demonstrates improvement as compared to the previous year. Planned decentralization of lab service will further increase proportion of patients receiving DST | W12: Select | X12: Select | AO12: 0 | AP12: 0
A13: 3 | B13: 6 | C13: Percentage of cases with drug resistant TB (RR-TB and/or MDR-TB) started on treatment for MDR-TB who were lost to follow up during the first six months of treatment | G13: National Program | H13: N-not cumulative | I13: Yes - Top 10 | J13: 2013 | K13: 31 | L13: 253 | M13: 0.1225296443 | N13: 25 | O13: 259 | P13: 0.09652509653 | Q13: 26 | R13: 210 | S13: 0.1238095238 | T13: 1.2 | U13: This is a reverse indicator. 12% of the cohort from January-June, 2016 were lost to follow-up during the first six months of treatment. The data is derived from the TB Centre Database. To address the issue PR supported adherence consultants and planned civil society engagement. | W13: Select | X13: Select | AO13: 0 | AP13: 0
A14: 4 | B14: 1 | C14: Number of and percentage of TB patients on 1st line treatment receiving cash incentives for better adherence to treatment | G14: Current grant | H14: Y-cumulative annually | I14: Yes - Top 10 | J14: 2012 | K14: 3217 | L14: 4675 | M14: 0.6881283422 | N14: 3096 | O14: 4409 | P14: 0.7022000454 | Q14: 2822 | R14: 3413 | S14: 0.8268385585 | T14: 1.177497159 | U14: The incidator is overachieved. The data are based on the eTB module. | W14: Select | X14: Select | AO14: 0 | AP14: 0
A15: 4 | B15: 2 | C15: Number and percentage of M/XDR-TB patients on treatment receiving cash incentives for better adherence to treatment during out-patient phase | G15: Current grant | H15: Y-cumulative annually | I15: Yes - Top 10 | J15: 2012 | K15: 405 | L15: 548 | M15: 0.7390510949 | N15: 390 | O15: 517 | P15: 0.7543520309 | Q15: 693 | R15: 792 | S15: 0.875 | T15: 1.159935897 | U15: The incidator is overachieved. The data are based on the eTB module. | W15: Select | X15: Select | AO15: 0 | AP15: 0
G16: Select | H16: Select | I16: Select | W16: Select | X16: Select | AO16: 0 | AP16: 0
G17: Select | H17: Select | I17: Select | W17: Select | X17: Select | AO17: 0 | AP17: 0
G18: Select | H18: Select | I18: Select | W18: Select | X18: Select | AO18: 0 | AP18: 0
G19: Select | H19: Select | I19: Select | W19: Select | X19: Select | AO19: 0 | AP19: 0
G20: Select | H20: Select | I20: Select | W20: Select | X20: Select | AO20: 0 | AP20: 0
G21: Select | H21: Select | I21: Select | W21: Select | X21: Select | AO21: 0 | AP21: 0
G22: Select | H22: Select | I22: Select | W22: Select | X22: Select | AO22: 0 | AP22: 0
G23: Select | H23: Select | I23: Select | W23: Select | X23: Select | AO23: 0 | AP23: 0
G24: Select | H24: Select | I24: Select | M24: =IFERROR(K24/L24,"") ->  | P24: =IFERROR(N24/O24,"") ->  | S24: =IFERROR(Q24/R24,"") ->  | W24: Select | X24: Select | AB24: =IFERROR(Z24/AA24,"") ->  | AE24: =IFERROR(AC24/AD24,"") ->  | AH24: =IFERROR(AF24/AG24,"") ->  | AO24: =AF24 -> 0 | AP24: =AG24 -> 0 | AQ24: =IFERROR(AO24/AP24,"") -> 
G25: Select | H25: Select | I25: Select | W25: Select | X25: Select | AO25: 0 | AP25: 0
G26: Select | H26: Select | I26: Select | W26: Select | X26: Select | AO26: 0 | AP26: 0
G27: Select | H27: Select | I27: Select | W27: Select | X27: Select | AO27: 0 | AP27: 0
G28: Select | H28: Select | I28: Select | W28: Select | X28: Select | AO28: 0 | AP28: 0
G29: Select | H29: Select | I29: Select | W29: Select | X29: Select | AO29: 0 | AP29: 0
G30: Select | H30: Select | I30: Select | W30: Select | X30: Select | AO30: 0 | AP30: 0
G31: Select | H31: Select | I31: Select | W31: Select | X31: Select | AO31: 0 | AP31: 0
G32: Select | H32: Select | I32: Select | W32: Select | X32: Select | AO32: 0 | AP32: 0
G33: Select | H33: Select | I33: Select | W33: Select | X33: Select | AO33: 0 | AP33: 0
G34: Select | H34: Select | I34: Select | W34: Select | X34: Select | AO34: 0 | AP34: 0
G35: Select | H35: Select | I35: Select | M35: =IFERROR(K35/L35,"") ->  | P35: =IFERROR(N35/O35,"") ->  | S35: =IFERROR(Q35/R35,"") ->  | W35: Select | X35: Select | AB35: =IFERROR(Z35/AA35,"") ->  | AE35: =IFERROR(AC35/AD35,"") ->  | AH35: =IFERROR(AF35/AG35,"") ->  | AO35: =AF35 -> 0 | AP35: =AG35 -> 0 | AQ35: =IFERROR(AO35/AP35,"") -> 
G36: Select | H36: Select | I36: Select | W36: Select | X36: Select | AO36: 0 | AP36: 0
G37: Select | H37: Select | I37: Select | W37: Select | X37: Select | AO37: 0 | AP37: 0
G38: Select | H38: Select | I38: Select | W38: Select | X38: Select | AO38: 0 | AP38: 0
G39: Select | H39: Select | I39: Select | W39: Select | X39: Select | AO39: 0 | AP39: 0
G40: Select | H40: Select | I40: Select | W40: Select | X40: Select | AO40: 0 | AP40: 0
G41: Select | H41: Select | I41: Select | W41: Select | X41: Select | AO41: 0 | AP41: 0
G42: Select | H42: Select | I42: Select | W42: Select | X42: Select | AO42: 0 | AP42: 0
G43: Select | H43: Select | I43: Select | W43: Select | X43: Select | AO43: 0 | AP43: 0
G44: Select | H44: Select | I44: Select | W44: Select | X44: Select | AO44: 0 | AP44: 0
G45: Select | H45: Select | I45: Select | W45: Select | X45: Select | AO45: 0 | AP45: 0
G46: Select | H46: Select | I46: Select | W46: Select | X46: Select | AO46: 0 | AP46: 0
G47: Select | H47: Select | I47: Select | W47: Select | X47: Select | AO47: 0 | AP47: 0
G48: Select | H48: Select | I48: Select | W48: Select | X48: Select | AO48: 0 | AP48: 0
G49: Select | H49: Select | I49: Select | W49: Select | X49: Select | AO49: 0 | AP49: 0
G50: Select | H50: Select | I50: Select | W50: Select | X50: Select | AO50: 0 | AP50: 0
G51: Select | H51: Select | I51: Select | W51: Select | X51: Select | AO51: 0 | AP51: 0
G52: Select | H52: Select | I52: Select | W52: Select | X52: Select | AO52: 0 | AP52: 0
G53: Select | H53: Select | I53: Select | W53: Select | X53: Select | AO53: 0 | AP53: 0
G54: Select | H54: Select | I54: Select | W54: Select | X54: Select | AO54: 0 | AP54: 0
G55: Select | H55: Select | I55: Select | W55: Select | X55: Select | AO55: 0 | AP55: 0
G56: Select | H56: Select | I56: Select | W56: Select | X56: Select | AO56: 0 | AP56: 0
G57: Select | H57: Select | I57: Select | K57: - | L57: - | N57: - | O57: - | W57: Select | X57: Select | Z57: - | AA57: - | AC57: - | AD57: - | AP57: 0
G58: Select | H58: Select | I58: Select | K58: - | L58: - | N58: - | O58: - | W58: Select | X58: Select | Z58: - | AA58: - | AC58: - | AD58: - | AP58: 0
G59: Select | H59: Select | I59: Select | K59: - | L59: - | N59: - | O59: - | W59: Select | X59: Select | Z59: - | AA59: - | AC59: - | AD59: - | AP59: 0
G60: Select | H60: Select | I60: Select | K60: - | L60: - | N60: - | O60: - | W60: Select | X60: Select | Z60: - | AA60: - | AC60: - | AD60: - | AP60: 0
G61: Select | H61: Select | I61: Select | K61: - | L61: - | N61: - | O61: - | W61: Select | X61: Select | Z61: - | AA61: - | AC61: - | AD61: - | AP61: 0
G63: Select | H63: Select | I63: Select | K63: - | L63: - | N63: - | O63: - | W63: Select | X63: Select | Z63: - | AA63: - | AC63: - | AD63: -
G64: Select | H64: Select | I64: Select | K64: - | L64: - | N64: - | O64: - | W64: Select | X64: Select | Z64: - | AA64: - | AC64: - | AD64: -
G65: Select | H65: Select | I65: Select | K65: - | L65: - | N65: - | O65: - | W65: Select | X65: Select | Z65: - | AA65: - | AC65: - | AD65: -
G66: Select | H66: Select | I66: Select | K66: - | L66: - | N66: - | O66: - | W66: Select | X66: Select | Z66: - | AA66: - | AC66: - | AD66: -
G67: Select | H67: Select | I67: Select | K67: - | L67: - | N67: - | O67: - | W67: Select | X67: Select | Z67: - | AA67: - | AC67: - | AD67: -

Sheet ImpactOutcomeDisaggData (hidden)
B1: Impact/outcome disaggregation Data
B3: HIV I-1: Percentage of young people aged 15–24 who are living with HIV | C3: HIVI1 | D3: Sex | E3: =CONCATENATE(C3,D3) -> HIVI1Sex | F3: Male | G3: Female | I3: Impact
B4: HIV I-2: HIV incidence among 15-49 age group | C4: HIVI2 | D4: Sex | E4: =CONCATENATE(C4,D4) -> HIVI2Sex | F4: Male | G4: Female | I4: Impact
B5: HIV I-2: HIV incidence among 15-49 age group | C5: HIVI2 | D5: Age | E5: =CONCATENATE(C5,D5) -> HIVI2Age | F5: 15-24
B6: HIV I-4: AIDS related mortality per 100,000 population | C6: HIVI4 | D6: Sex | E6: HIVI4Sex | F6: Male | G6: Female | I6: Impact
B7: HIV I-4: AIDS related mortality per 100,000 population | C7: HIVI4 | D7: Age | E7: HIVI4Age | F7: <15 | G7: 15+ | H7: 15-24 | I7: Impact
B8: HIV I-9a: Percentage of men who have sex with men who are living with HIV | C8: HIVI9a | D8: Age | E8: HIVI9aAge | F8: <25 | G8: 25+ | I8: Impact
B9: HIV I-9b: Percentage of transgender people who are living with HIV | C9: HIVI9b | D9: Age | E9: HIVI9bAge | F9: <25 | G9: 25+ | I9: Impact
B10: Malaria I-1: Reported malaria cases - presumed and confirmed | C10: MalariaI1 | D10: Sex | E10: MalariaI1Sex | F10: Male | G10: Female | I10: Impact
B11: Malaria I-1: Reported malaria cases - presumed and confirmed | C11: MalariaI1 | D11: Age | E11: MalariaI1Age | F11: <5 | G11: 5+ | I11: Impact
B12: Malaria I-2: Confirmed malaria cases (microscopy or RDT) per 1000 persons per year | C12: MalariaI2 | D12: Sex | E12: MalariaI2Sex | F12: Male | G12: Female | I12: Impact
B13: Malaria I-2: Confirmed malaria cases (microscopy or RDT) per 1000 persons per year | C13: MalariaI2 | D13: Age | E13: MalariaI2Age | F13: <5 | G13: 5+ | I13: Impact
B14: Malaria I-2: Confirmed malaria cases (microscopy or RDT) per 1000 persons per year | C14: MalariaI2 | D14: Species | E14: MalariaI2Species | F14: P. Vivax | G14: P. Falciparum | H14: Other - specify | I14: Impact
B15: Malaria I-3: Inpatient malaria deaths per 1000 persons per year | C15: MalariaI3 | D15: Sex | E15: MalariaI3Sex | F15: Male | G15: Female | I15: Impact
B16: Malaria I-3: Inpatient malaria deaths per 1000 persons per year | C16: MalariaI3 | D16: Age | E16: MalariaI3Age | F16: <5 | G16: 5+ | I16: Impact
B17: Malaria I-4: Malaria test positivity rate | C17: MalariaI4 | D17: Species | E17: MalariaI4Species | F17: P. Vivax | G17: P. Falciparum | H17: Other - specify | I17: Impact
B18: Malaria I-4: Malaria test positivity rate | C18: MalariaI4 | D18: Type of testing | E18: =SUBSTITUTE(CONCATENATE(C18,D18)," ","") -> MalariaI4Typeoftesting | F18: Microscopy | G18: RDT | I18: Impact
B19: Malaria I-5: Parasite prevalence: Proportion of children aged 6-59 months with malaria infection | C19: MalariaI5 | D19: Sex | E19: MalariaI5Sex | F19: Male | G19: Female | I19: Impact
B20: Malaria I-5: Parasite prevalence: Proportion of children aged 6-59 months with malaria infection | C20: MalariaI5 | D20: Species | E20: MalariaI5Species | F20: P. Vivax | G20: P. Falciparum | H20: Other - specify
B21: Malaria I-6: All-cause under-5 mortality rate per 1000 live births | C21: MalariaI6 | D21: Sex | E21: MalariaI6Sex | F21: Male | G21: Female | I21: Impact
B22: HIV O-1: Percentage of adults and children with HIV known to be on treatment 12 months after initiation of antiretroviral therapy | C22: HIVO1 | D22: Sex | E22: HIVO1Sex | F22: Male | G22: Female | I22: Outcome
B23: HIV O-1: Percentage of adults and children with HIV known to be on treatment 12 months after initiation of antiretroviral therapy | C23: HIVO1 | D23: Age | E23: HIVO1Age | F23: <15 | G23: 15+ | I23: Outcome
B24: HIV O-1: Percentage of adults and children with HIV known to be on treatment 12 months after initiation of antiretroviral therapy | C24: HIVO1 | D24: Duration of treatment | E24: =SUBSTITUTE(CONCATENATE(C24,D24)," ","") -> HIVO1Durationoftreatment | F24: 24 months | G24: 36 months | I24: Outcome
B25: HIV O-2: Percentage of women and men aged 15-49 who have had sexual intercourse with more than one partner in the past 12 months | C25: HIVO2 | D25: Sex | E25: HIVO2Sex | F25: Male | G25: Female | I25: Outcome
B26: HIV O-2: Percentage of women and men aged 15-49 who have had sexual intercourse with more than one partner in the past 12 months | C26: HIVO2 | D26: Age | E26: HIVO2Age | F26: 15-19 | G26: 20-24 | I26: Outcome
B27: HIV O-3: Percentage of women and men aged 15-49 who had more than one partner in the past 12 months who used a condom during their last sexual intercourse | C27: HIVO3 | D27: Sex | E27: HIVO3Sex | F27: Male | G27: Female | I27: Outcome
B28: HIV O-3: Percentage of women and men aged 15-49 who had more than one partner in the past 12 months who used a condom during their last sexual intercourse | C28: HIVO3 | D28: Age | E28: HIVO3Age | F28: 15-19 | G28: 20-24 | I28: Outcome
B29: HIV O-5: Percentage of sex workers reporting the use of a condom with their most recent client | C29: HIVO5 | D29: Sex | E29: HIVO5Sex | F29: Male | G29: Female | I29: Outcome
B30: HIV O-6: Percentage of people who inject drugs reporting the use of sterile injecting equipment the last time they injected | C30: HIVO6 | D30: Sex | E30: HIVO6Sex | F30: Male | G30: Female | I30: Outcome
B31: HIV O-8: Current school attendance rate among orphans compared to non-orphans | C31: HIVO8 | D31: Sex | E31: HIVO8Sex | F31: Male | G31: Female | I31: Outcome
B32: Malaria O-1a: Proportion of population that slept under an insecticide-treated net* the previous night | C32: MalariaO1a | D32: Sex | E32: MalariaO1aSex | F32: Male | G32: Female | I32: Outcome
B33: Malaria O-3: Proportion of population using an insecticide-treated net* among the population with access to an insecticide-treated net | C33: MalariaO3 | D33: Sex | E33: MalariaO3Sex | F33: Male | G33: Female | I33: Outcome

Sheet Impactoutcome (hidden)
B2: Type1 | C2: Type2 | D2: Type3 | E2: Type4 | F2: Type5 | G2: Type6 | H2: Type7 | I2: Type8 | J2: Type9 | K2: Type10
B3: Malaria I-1: Reported malaria cases - presumed and confirmed | C3: TB I-1: TB prevalence rate (per 100,000 population) | D3: HIV I-1: Percentage of young people aged 15–24 who are living with HIV | E3: HIV I-1: Percentage of young people aged 15–24 who are living with HIV | F3: HSS I-1: Under 5 mortality rate per 1000 live births | G3: Malaria O-1a: Proportion of population that slept under an insecticide-treated net* the previous night | H3: TB O-1a: Case notification rate of all forms of TB per 100,000 population - bacteriologically confirmed plus clinically diagnosed, new and relapse cases | I3: HIV O-1: Percentage of adults and children with HIV known to be on treatment 12 months after initiation of antiretroviral therapy | J3: HIV O-1: Percentage of adults and children with HIV known to be on treatment 12 months after initiation of antiretroviral therapy | K3: HSS O-1: Percentage of women attending antenatal care
B4: Malaria I-2: Confirmed malaria cases (microscopy or RDT) per 1000 persons per year | C4: TB I-2: TB incidence rate (per 100,000 population) | D4: HIV I-2: HIV incidence among 15-49 age group | E4: HIV I-2: HIV incidence among 15-49 age group | F4: HSS I-2: Neonatal mortality rate, per 100,000 population | G4: Malaria O-1b: Proportion of children under five years old who slept under an insecticide-treated net* the previous night | H4: TB O-1b: Case notification rate per 100,000 population- bacteriologically-confirmed TB, new and relapse | I4: HIV O-2: Percentage of women and men aged 15-49 who have had sexual intercourse with more than one partner in the past 12 months | J4: HIV O-2: Percentage of women and men aged 15-49 who have had sexual intercourse with more than one partner in the past 12 months | K4: HSS O-2: Percentage of births attended by skilled health professional
B5: Malaria I-3: Inpatient malaria deaths per 1000 persons per year | C5: TB I-3: TB mortality rate (per 100,000 population) | D5: HIV I-3a: Percentage of antenatal care attendees who were positive for syphilis | E5: HIV I-3a: Percentage of antenatal care attendees who were positive for syphilis | F5: HSS I-3: Maternal mortality ratio, per 100,000 population | G5: Malaria O-1c: Proportion of pregnant women who slept under an insecticide-treated net* the previous night | H5: TB O-2a: Treatment success rate - all forms of TB | I5: HIV O-3: Percentage of women and men aged 15-49 who had more than one partner in the past 12 months who used a condom during their last sexual intercourse | J5: HIV O-3: Percentage of women and men aged 15-49 who had more than one partner in the past 12 months who used a condom during their last sexual intercourse | K5: HSS O-3: Ratio of household out-of-pocket payments for health to total expenditure on health
B6: Malaria I-4: Malaria test positivity rate | C6: TB I-4: MDR-TB prevalence among new TB patients | D6: HIV I-3b: Percentage of men who have sex with men with active syphilis | E6: HIV I-3b: Percentage of men who have sex with men with active syphilis | F6: Custom | G6: Malaria O-2: Proportion of population with access to an ITN within their household | H6: TB O-2b: Treatment success rate - bacteriologically confirmed TB cases | I6: HIV O-4a: Percentage of men reporting the use of a condom the last time they had anal sex with a male partner | J6: HIV O-4a: Percentage of men reporting the use of a condom the last time they had anal sex with a male partner | K6: HSS O-4: General service readiness score for health facilities
B7: Malaria I-5: Parasite prevalence: Proportion of children aged 6-59 months with malaria infection | C7: TB I-5: Modelled lives saved based on latest epidemiological data | D7: HIV I-3c: Percentage of sex workers with active syphilis | E7: HIV I-3c: Percentage of sex workers with active syphilis | G7: Malaria O-3: Proportion of population using an insecticide-treated net* among the population with access to an insecticide-treated net | H7: TB O-3: Notification of RR-TB and/or MDR-TB cases - Percentage of notified cases of bacteriologically confirmed, drug resistant RR-TB and/or MDR-TB? as a proportion of the estimated number of RR-TB and/or MDR-TB cases among notified TB cases | I7: HIV O-4b: Percentage of transgender people who sell sex reporting the use of a condom with their most recent client | J7: HIV O-4b: Percentage of transgender people who sell sex reporting the use of a condom with their most recent client | K7: Custom
B8: Malaria I-6: All-cause under-5 mortality rate per 1000 live births | C8: TB I-6: Modelled infections averted based on latest epidemiological data | D8: HIV I-4: AIDS related mortality per 100,000 population | E8: HIV I-4: AIDS related mortality per 100,000 population | G8: Malaria O-4: Proportion of households with at least one insecticide-treated net for every two people and/or sprayed by IRS within the last 12 months | H8: TB O-4: Treatment success rate of MDR-TB: Percentage of bacteriologically confirmed drug resistant TB cases (RR-TB and/or MDR-TB) successfully treated | I8: HIV O-5: Percentage of sex workers reporting the use of a condom with their most recent client | J8: HIV O-5: Percentage of sex workers reporting the use of a condom with their most recent client
B9: Malaria I-7: Modelled lives saved (based on latest epidemiological data) | C9: TB/HIV I-1: TB/HIV mortality rate, per 100,000 population | D9: HIV I-5: New HIV infections among children | E9: HIV I-5: New HIV infections among children | G9: Malaria O-6: Proportion of households with at least one insecticide-treated net* for every two people | H9: HSS O-1: Percentage of women attending antenatal care | I9: HIV O-6: Percentage of people who inject drugs reporting the use of sterile injecting equipment the last time they injected | J9: HIV O-6: Percentage of people who inject drugs reporting the use of sterile injecting equipment the last time they injected
B10: Malaria I-8: Modelled infections averted (based on latest epidemiological data) | C10: HSS I-1: Under 5 mortality rate per 1000 live births | D10: HIV I-6: Estimated percentage of child HIV infections from HIV-positive women delivering in the past 12 months | E10: HIV I-6: Estimated percentage of child HIV infections from HIV-positive women delivering in the past 12 months | G10: HSS O-1: Percentage of women attending antenatal care | H10: HSS O-2: Percentage of births attended by skilled health professional | I10: HIV O-7: Percentage of other vulnerable populations who report the use of a condom at last sexual intercourse | J10: HIV O-7: Percentage of other vulnerable populations who report the use of a condom at last sexual intercourse
B11: HSS I-1: Under 5 mortality rate per 1000 live births | C11: HSS I-2: Neonatal mortality rate, per 100,000 population | D11: HIV I-7: Modelled lives saved based on latest epidemiological data | E11: HIV I-7: Modelled lives saved based on latest epidemiological data | G11: Malaria O-5: Proportion of households with at least one insecticide-treated net | H11: HSS O-3: Ratio of household out-of-pocket payments for health to total expenditure on health | I11: HIV O-8: Current school attendance rate among orphans compared to non-orphans | J11: HIV O-8: Current school attendance rate among orphans compared to non-orphans
B12: HSS I-2: Neonatal mortality rate, per 100,000 population | C12: HSS I-3: Maternal mortality ratio, per 100,000 population | D12: HIV I-8: Modelled infections averted based on latest epidemiological data | E12: HIV I-8: Modelled infections averted based on latest epidemiological data | G12: HSS O-2: Percentage of births attended by skilled health professional | H12: HSS O-5: Specific services readiness score for health facilities | I12: TB O-1a: Case notification rate of all forms of TB per 100,000 population - bacteriologically confirmed plus clinically diagnosed, new and relapse cases | J12: TB O-1a: Case notification rate of all forms of TB per 100,000 population - bacteriologically confirmed plus clinically diagnosed, new and relapse cases
B13: HSS I-3: Maternal mortality ratio, per 100,000 population | C13: Custom | D13: HIV I-9a: Percentage of men who have sex with men who are living with HIV | E13: HIV I-9a: Percentage of men who have sex with men who are living with HIV | G13: HSS O-3: Ratio of household out-of-pocket payments for health to total expenditure on health | H13: Custom | I13: TB O-1b: Case notification rate per 100,000 population- bacteriologically-confirmed TB, new and relapse | J13: TB O-1b: Case notification rate per 100,000 population- bacteriologically-confirmed TB, new and relapse
B14: Custom | D14: HIV I-9b: Percentage of transgender people who are living with HIV | E14: HIV I-9b: Percentage of transgender people who are living with HIV | G14: HSS O-5: Specific services readiness score for health facilities | I14: TB O-2a: Treatment success rate - all forms of TB | J14: TB O-2a: Treatment success rate - all forms of TB
D15: HIV I-10: Percentage of sex workers who are living with HIV | E15: HIV I-10: Percentage of sex workers who are living with HIV | G15: Custom | I15: TB O-2b: Treatment success rate - bacteriologically confirmed TB cases | J15: TB O-2b: Treatment success rate - bacteriologically confirmed TB cases
D16: HIV I-11: Percentage of people who inject drugs who are living with HIV | E16: HIV I-11: Percentage of people who inject drugs who are living with HIV | I16: TB O-3: Notification of RR-TB and/or MDR-TB cases - Percentage of notified cases of bacteriologically confirmed, drug resistant RR-TB and/or MDR-TB? as a proportion of the estimated number of RR-TB and/or MDR-TB cases among notified TB cases | J16: TB O-3: Notification of RR-TB and/or MDR-TB cases - Percentage of notified cases of bacteriologically confirmed, drug resistant RR-TB and/or MDR-TB? as a proportion of the estimated number of RR-TB and/or MDR-TB cases among notified TB cases
D17: HIV I-12: Percentage of other vulnerable populations (specify) who are living with HIV | E17: HIV I-12: Percentage of other vulnerable populations (specify) who are living with HIV | I17: TB O-4: Treatment success rate of MDR-TB: Percentage of bacteriologically confirmed drug resistant TB cases (RR-TB and/or MDR-TB) successfully treated | J17: TB O-4: Treatment success rate of MDR-TB: Percentage of bacteriologically confirmed drug resistant TB cases (RR-TB and/or MDR-TB) successfully treated
D18: TB I-1: TB prevalence rate (per 100,000 population) | E18: TB/HIV I-1: TB/HIV mortality rate, per 100,000 population | I18: HSS O-1: Percentage of women attending antenatal care | J18: HSS O-1: Percentage of women attending antenatal care
D19: TB I-2: TB incidence rate (per 100,000 population) | E19: HSS I-1: Under 5 mortality rate per 1000 live births | I19: HSS O-2: Percentage of births attended by skilled health professional | J19: HSS O-2: Percentage of births attended by skilled health professional
D20: TB I-3: TB mortality rate (per 100,000 population) | E20: HSS I-2: Neonatal mortality rate, per 100,000 population | I20: HSS O-3: Ratio of household out-of-pocket payments for health to total expenditure on health | J20: HSS O-3: Ratio of household out-of-pocket payments for health to total expenditure on health
D21: TB I-4: MDR-TB prevalence among new TB patients | E21: HSS I-3: Maternal mortality ratio, per 100,000 population | I21: HSS O-5: Specific services readiness score for health facilities | J21: HSS O-5: Specific services readiness score for health facilities
D22: TB I-5: Modelled lives saved based on latest epidemiological data | E22: Custom | I22: Custom | J22: Custom
D23: TB I-6: Modelled infections averted based on latest epidemiological data
D24: TB/HIV I-1: TB/HIV mortality rate, per 100,000 population
D25: HSS I-1: Under 5 mortality rate per 1000 live births
D26: HSS I-2: Neonatal mortality rate, per 100,000 population
D27: HSS I-3: Maternal mortality ratio, per 100,000 population
D28: Custom

Sheet Coverage Indicators (hidden)
P1: HIV/AIDS | Q1: HIV/AIDS | R1: HIV/AIDS | S1: HIV/AIDS | T1: HIV/AIDS | U1: HIV/AIDS | V1: HIV/AIDS | W1: HIV/AIDS
P2: Tuberculosis | Q2: Tuberculosis | R2: Tuberculosis | S2: Tuberculosis | T2: Tuberculosis | U2: Tuberculosis | V2: Tuberculosis | W2: Tuberculosis | X2: Tuberculosis | Y2: Tuberculosis | Z2: HIV/AIDS
O3: HIV/AIDS | P3: Malaria | Q3: Malaria | R3: Malaria | S3: Malaria | T3: Malaria | U3: Malaria | V3: Malaria | W3: Malaria | X3: Malaria | Y3: HIV/AIDS | Z3: Tuberculosis
F4: Tuberculosis | G4: HIV/TB | H4: HIV/TB | I4: HIV/TB | J4: HIV/TB | K4: HIV/TB | L4: HIV/TB | M4: HIV/TB | N4: HIV/TB | O4: Tuberculosis | P4: Health Systems Strengthening | Q4: Health Systems Strengthening | R4: Health Systems Strengthening | S4: Health Systems Strengthening | T4: Health Systems Strengthening | U4: Health Systems Strengthening | V4: Health Systems Strengthening | W4: Health Systems Strengthening | X4: Health Systems Strengthening | Y4: HIV/TB | Z4: Malaria
B5: Malaria | C5: Malaria | D5: Malaria | E5: Tuberculosis | F5: HIV/TB | G5: HIV/AIDS | H5: HIV/AIDS | I5: HIV/AIDS | J5: HIV/AIDS | K5: HIV/AIDS | L5: HIV/AIDS | M5: HIV/AIDS | N5: HIV/AIDS | O5: HIV/TB | P5: HIV/TB | Q5: HIV/TB | R5: HIV/TB | S5: HIV/TB | T5: HIV/TB | U5: HIV/TB | V5: HIV/TB | W5: HIV/TB | X5: HIV/TB | Y5: Malaria | Z5: HIV/TB
B6: Specific prevention interventions (SPI) | C6: Vector control | D6: Case management | E6: TB care and prevention | F6: MDR-TB | G6: Prevention programs for general population | H6: Prevention programs for MSM and TGs | I6: Prevention programs for people who inject drugs (PWID) and their partners | J6: Prevention programs for other vulnerable populations (please specify) | K6: Prevention programs for adolescents and youth, in and out of school | L6: Prevention programs for sex workers and their clients | M6: PMTCT | N6: HIV/AIDS | O6: TB/HIV | P6: Removing legal barriers to access | Q6: HSS - Service delivery | R6: HSS - Health and community workforce | S6: HSS - Health information systems and M&E | T6: Program management | U6: HSS - Procurement supply chain management (PSCM) | V6: HSS - Policy and governance | W6: HSS - Healthcare financing | X6: HSS - Financial management | Y6: Community systems strengthening | Z6: Results based Financing
B7: Module1 | C7: Module2 | D7: Module3 | E7: Module4 | F7: Module5 | G7: Module8 | H7: Module9 | I7: Module10 | J7: Module11 | K7: Module12 | L7: Module13 | M7: Module14 | N7: Module15 | O7: Module24 | P7: Module27 | Q7: Module28 | R7: Module29 | S7: Module30 | T7: Module31 | U7: Module32 | V7: Module33 | W7: Module34 | X7: Module35 | Y7: Module72 | Z7: Module73
B8: SPI-1: Proportion of pregnant women attending antenatal clinics who received three or more doses of intermittent preventive treatment (IPTp) for malaria | C8: VC-1: Number of long-lasting insecticidal nets distributed to at-risk populations through mass campaigns | D8: CM-1a: Proportion of suspected malaria cases that receive a parasitological test at public sector health facilities | E8: DOTS-1a: Number of notified cases of all forms of TB - bacteriologically confirmed plus clinically diagnosed, new and relapses | F8: MDR TB-1: Percentage of previously treated TB patients receiving DST (bacteriologically positive cases only) | G8: GP-1: Number of women and men aged 15+ who received an HIV test and know their results | H8: KP-1a: Percentage of MSM reached with HIV prevention programs - defined package of services | I8: KP-1d: Percentage of PWID reached with HIV prevention programs - defined package of services | J8: KP-1e: Percentage of other vulnerable populations reached with HIV prevention programs - defined package of services | K8: YP-1: Percentage of young people aged 10?24 years reached by life skills?based HIV education in schools | L8: KP-1c: Percentage of sex workers reached with HIV prevention programs - defined package of services | M8: PMTCT-1: Percentage of pregnant women who know their HIV status | N8: TCS-1: Percentage of adults and children currently receiving antiretroviral therapy among all adults and children living with HIV | O8: TB/HIV-1: Percentage of TB patients who had an HIV test result recorded in the TB register | P8: Custom | Q8: SD-1: Number of health facilities per 10,000 population | R8: HW-1: Number of health workers per 10,000 population (report on community health workers as applicable) | S8: M&E-1: Percentage of HMIS or other routine reporting units submitting timely reports according to national guidelines | T8: Custom | U8: PSM-1: Percentage of health facilities reporting no stock-outs of essential drugs | V8: Custom | W8: HF-1: Government expenditure on health as percentage of general government expenditure | X8: Custom | Y8: Custom | Z8: Custom
B9: Custom | C9: VC-2: Proportion of population at risk potentially covered by long lasting insecticidal nets distributed | D9: CM-1b: Proportion of suspected malaria cases that receive a parasitological test in the community | E9: DOTS-1b: Number of notified cases of bacteriologically confirmed TB, new and relapses | F9: MDR TB-2: Number of bacteriologically confirmed, drug resistant TB cases (RR-TB and/or MDR-TB) notified | G9: GP-2: Percentage of individuals from targeted population reached through community outreach with standardized HIV prevention interventions | H9: KP-1b: Percentage of TG reached with HIV prevention programs - defined package of services | I9: KP-2d: Percentage of PWID reached with HIV prevention programs - individual and/or smaller group level interventions | J9: KP-2e: Percentage of other vulnerable populations reached with HIV prevention programs - individual and/or smaller group level interventions | K9: Custom | L9: KP-2c: Percentage of sex workers reached with HIV prevention programs - individual and/or smaller group level interventions | M9: PMTCT-2: Percentage of HIV-positive pregnant women who received antiretrovirals to reduce the risk of mother-to-child transmission | N9: TCS-2: Percentage of people living with HIV that initiated ART with CD4 count of <200 cells/mm³ | O9: TB/HIV-4: Percentage of new HIV-positive patients starting IPT during the reporting period | Q9: SD-2: Number of outpatients visits per 10,000 population | R9: HW-2: Distribution of health workers | S9: M&E-2: Proportion of facility reports received over the reports expected during the reporting period | U9: Custom | W9: Custom
C10: VC-3: Number of long-lasting insecticidal nets distributed to targeted risk groups through continuous distribution | D10: CM-1c: Proportion of suspected malaria cases that receive a parasitological test at private sector sites | E10: DOTS-2a: Percentage of TB cases, all forms, bacteriologically confirmed plus clinically diagnosed, successfully treated (cured plus treatment completed) among all TB cases registered for treatment during a specified period | F10: MDR TB-3: Number of cases with drug resistant TB (RR-TB and/or MDR-TB) that began second-line treatment | G10: GP-3: Proportion of new individuals who test positive for HIV, enrolled in care (pre-ART or ART) services | H10: KP-2a: Percentage of MSM reached with HIV prevention programs - individual and/or smaller group level interventions | I10: KP-3d: Percentage of PWID that have received an HIV test during the reporting period and know their results | J10: KP-3e: Percentage of other vulnerable populations that have received an HIV test during the reporting period and know their results | L10: KP-3c: Percentage of sex workers that have received an HIV test during the reporting period and know their results | M10: PMTCT-3: Percentage of infants born to HIV-positive women receiving a virological test for HIV within 2 months of birth | N10: TCS-3: Percentage of adults and children that initiated ART, with an undetectable viral load at 12 months (<1000 copies/ml) | O10: TB/HIV-3: Percentage of HIV-positive patients who were screened for TB in HIV care or treatment settings | Q10: Custom | R10: HW-3: Number of health workers newly recruited at primary health care facilities in the past 12 months, expressed as a percentage of planned recruitment targets | S10: M&E-3: Percentage of deaths registered (as reported by civil or sample registration systems, hospitals, community-based reporting systems) among the total deaths for the same period and geographical region
C11: VC-4: Proportion of targeted risk groups receiving long-lasting insecticidal-nets | D11: CM-2a: Proportion of confirmed malaria cases that received first-line antimalarial treatment according to national policy at public sector health facilities | E11: DOTS-2b: Percentage of bacteriologically confirmed TB cases successfully treated (cured plus completed treatment) among the bacteriologically confirmed TB cases registered during a specified period | F11: MDR TB-4: Percentage of cases with drug resistant TB (RR-TB and/or MDR-TB) started on treatment for MDR-TB who were lost to follow up at six months | G11: GP-4: Percentage of antenatal care attendees tested for syphilis | H11: KP-2b: Percentage of TG reached with HIV prevention programs - individual and/or smaller group level interventions | I11: KP-4: Number of needles and syringes distributed per person who injects drugs per year by needle and syringe programs | J11: Custom | L11: Custom | M11: Custom | N11: TCS-4: Percentage of health facilities dispensing antiretroviral therapy that experienced a stock-out of at least one required antiretroviral drug in the last 12 month | O11: TB/HIV-2: Percentage of HIV-positive registered TB patients given anti-retroviral therapy during TB treatment | R11: HW-4: Annual rate of retention of service providers at primary health care facilities | S11: Custom
C12: VC-5: Proportion of households in targeted areas that received Indoor Residual Spraying during the reporting period | D12: CM-2b: Proportion of confirmed malaria cases that received first-line antimalarial treatment according to national policy in the community | E12: DOTS-3: Percentage of laboratories showing adequate performance in external quality assurance for smear microscopy among the total number of laboratories that undertake smear microscopy during the reporting period | F12: MDR TB-5: Percentage of DST laboratories showing adequate performance on External Quality Assurance | G12: GP-5: Number of male circumcisions performed according to national standards | H12: KP-3a: Percentage of MSM that have received an HIV test during the reporting period and know their results | I12: KP-5: Percentage of individuals receiving Opioid Substitution Therapy who received treatment for at least 6 months | N12: TCS-5: Proportion of undernourished PLHIV that received therapeutic or supplementary food at any point during the reporting period | O12: Custom | R12: Custom
C13: VC-6: Proportion of population protected by Indoor Residual Spraying within the last 12 months | D13: CM-2c: Proportion of confirmed malaria cases that received first-line antimalarial treatment according to national policy at private sector sites | E13: DOTS-4: Percentage of reporting units reporting no stock-out of first-line anti-TB drugs on the last day of the quarter | F13: Custom | G13: GP-6: Percentage of orphaned and vulnerable children aged 0?17 years whose households received free basic external support in caring for the child according to national guidelines | H13: KP-3b: Percentage of TG that have received an HIV test during the reporting period and know their results | I13: Custom | N13: Custom
C14: Custom | D14: CM-3a: Proportion of estimated malaria cases (presumed and confirmed) that received first line antimalarial treatment at public sector health facilities | E14: DOTS-5: Number of children <5 in contact with TB patients who began IPT | G14: Custom | H14: Custom
D15: CM-3b: Proportion of estimated malaria cases (presumed and confirmed) that received first line anti-malarial treatment in the community | E15: DOTS-6: Number of TB cases (all forms) notified among key affected populations/high risk groups
D16: CM-3c: Proportion of estimated malaria cases (presumed and confirmed) that received first line anti-malarial treatment at private sector sites | E16: DOTS-7a: Percentage of notified TB cases, all forms, contributed by non-NTP providers - private/non-governmental facilities
D17: CM-4: Proportion of health facilities without stock-outs of key commodities during the reporting period | E17: DOTS-7b: Percentage of notified TB cases, all forms, contributed by non-NTP providers - public sector
D18: CM-5: Percentage of confirmed cases fully investigated (malaria elimination phase) | E18: DOTS-7c: Percentage of notified TB cases, all forms, contributed by non-NTP providers - community referrals
D19: CM-6: Percentage of foci fully investigated (malaria elimination phase) | E19: Custom
D20: Custom

Sheet CoverageDisaggregationData (hidden)
B1: Coverage disaggregation Data
B2: Name of Indicator | C2: ShortName | D2: Disaggregation | E2: Concatenatedcode | F2: Module | G2: Categories
B3: GP-1: Number of women and men aged 15+ who received an HIV test and know their results | C3: GP1D | D3: Sex | E3: =SUBSTITUTE(SUBSTITUTE(SUBSTITUTE(CONCATENATE(C3,D3)," ",""),"/",""),"-","") -> GP1DSex | F3: Prevention programs for general population | G3: Male | H3: Female
B4: GP-1: Number of women and men aged 15+ who received an HIV test and know their results | C4: GP1D | D4: HIV status | E4: GP1DHIVstatus | F4: Prevention programs for general population | G4: Positive | H4: Negative
B5: GP-1: Number of women and men aged 15+ who received an HIV test and know their results | C5: GP1D | D5: Age | E5: =SUBSTITUTE(SUBSTITUTE(SUBSTITUTE(CONCATENATE(C5,D5)," ",""),"/",""),"-","") -> GP1DAge | F5: Prevention programs for general population | G5: 15-24
B6: PMTCT-1: Percentage of pregnant women who know their HIV status | C6: PMTCT1 | D6: HIV status-pregnant women | E6: PMTCT1HIVstatuspregnantwomen | F6: PMTCT | G6: Known positive HIV infection at ANC | H6: Newly identified as HIV positive | I6: Testing HIV negative
B7: TCS-1: Percentage of adults and children currently receiving antiretroviral therapy among all adults and children living with HIV | C7: TCS1a | D7: Sex | E7: TCS1aSex | F7: Treatment, care and support | G7: Male | H7: Female
B8: TCS-1: Percentage of adults and children currently receiving antiretroviral therapy among all adults and children living with HIV | C8: TCS1a | D8: Age | E8: TCS1aAge | F8: Treatment, care and support | G8: <15 | H8: 15+ | I8: 15-24
B9: TCS-2: Percentage of people living with HIV that initiated ART with CD4 count of <200 cells/mm³ | C9: TCS2a | D9: Sex | E9: TCS2aSex | F9: Treatment, care and support | G9: Male | H9: Female
B10: TCS-3: Percentage of adults and children that initiated ART, with an undetectable viral load at 12 months (<1000 copies/ml) | C10: TCS3a | D10: Sex | E10: TCS3aSex | F10: Treatment, care and support | G10: Male | H10: Female
B11: TCS-3: Percentage of adults and children that initiated ART, with an undetectable viral load at 12 months (<1000 copies/ml) | C11: TCS3a | D11: Age | E11: TCS3aAge | F11: Treatment, care and support | G11: 15-24
B12: DOTS-1a: Number of notified cases of all forms of TB - bacteriologically confirmed plus clinically diagnosed, new and relapses | C12: DOTS1a | D12: Sex | E12: DOTS1aSex | F12: TB care and prevention | G12: Male | H12: Female
B13: DOTS-1a: Number of notified cases of all forms of TB - bacteriologically confirmed plus clinically diagnosed, new and relapses | C13: DOTS1a | D13: HIV test result | E13: DOTS1aHIVtestresult | F13: TB care and prevention | G13: Positive | H13: Negative | I13: Not documented
B14: DOTS-1a: Number of notified cases of all forms of TB - bacteriologically confirmed plus clinically diagnosed, new and relapses | C14: DOTS1a | D14: Age | E14: DOTS1aAge | F14: TB care and prevention | G14: <15 | H14: 15+
B15: DOTS-2a: Percentage of TB cases, all forms, bacteriologically confirmed plus clinically diagnosed, successfully treated (cured plus treatment completed) among all TB cases registered for treatment during a specified period | C15: DOTS2a | D15: Sex | E15: DOTS2aSex | F15: TB care and prevention | G15: Male | H15: Female
B16: DOTS-2a: Percentage of TB cases, all forms, bacteriologically confirmed plus clinically diagnosed, successfully treated (cured plus treatment completed) among all TB cases registered for treatment during a specified period | C16: DOTS2a | D16: Age | E16: DOTS2aAge | F16: TB care and prevention | G16: <15 | H16: 15+
B17: DOTS-2a: Percentage of TB cases, all forms, bacteriologically confirmed plus clinically diagnosed, successfully treated (cured plus treatment completed) among all TB cases registered for treatment during a specified period | C17: DOTS2a | D17: HIV test result | E17: DOTS2aHIVtestresult | F17: TB care and prevention | G17: Positive | H17: Negative | I17: Not documented
B18: DOTS-6: Number of TB cases (all forms) notified among key affected populations/high risk groups | C18: DOTS6 | D18: KAPs/high risk groups | E18: DOTS6KAPshighriskgroups | F18: TB care and prevention | G18: Prisoners | H18: Migrants/ Refugees/ IDPs | I18: Others - specify
B19: MDR TB-2: Number of bacteriologically confirmed, drug resistant TB cases (RR-TB and/or MDR-TB) notified | C19: MDRTB2 | D19: Sex | E19: MDRTB2Sex | F19: MDR-TB | G19: Male | H19: Female
B20: MDR TB-2: Number of bacteriologically confirmed, drug resistant TB cases (RR-TB and/or MDR-TB) notified | C20: MDRTB2 | D20: Age | E20: MDRTB2Age | F20: MDR-TB | G20: <15 | H20: 15+
B21: MDR TB-3: Number of cases with drug resistant TB (RR-TB and/or MDR-TB) that began second-line treatment | C21: MDRTB3 | D21: Sex | E21: MDRTB3Sex | F21: MDR-TB | G21: Male | H21: Female
B22: MDR TB-3: Number of cases with drug resistant TB (RR-TB and/or MDR-TB) that began second-line treatment | C22: MDRTB3 | D22: Age | E22: MDRTB3Age | F22: MDR-TB | G22: <15 | H22: 15+
B23: VC-3: Number of long-lasting insecticidal nets distributed to targeted risk groups through continuous distribution | C23: VC3a | D23: Targeted risk group | E23: VC3aTargetedriskgroup | F23: Vector control | G23: Pregnant women | H23: Children <5 | I23: Migrant workers/ refugees/ IDPs | J23: Others - specify
B24: VC-4: Proportion of targeted risk groups receiving long-lasting insecticidal-nets | C24: VC4a | D24: Targeted risk group | E24: VC4aTargetedriskgroup | F24: Vector control | G24: Pregnant women | H24: Children <5 | I24: Migrant workers/ refugees/ IDPs | J24: Others - specify
B25: CM-1a: Proportion of suspected malaria cases that receive a parasitological test at public sector health facilities | C25: CM1a | D25: Age | E25: CM1aAge | F25: Case management | G25: <5 | H25: 5+
B26: CM-1a: Proportion of suspected malaria cases that receive a parasitological test at public sector health facilities | C26: CM1a | D26: Type of testing | E26: CM1aTypeoftesting | F26: Case management | G26: Microscopy | H26: RDTs
B27: CM-1b: Proportion of suspected malaria cases that receive a parasitological test in the community | C27: CM1b | D27: Age | E27: CM1bAge | F27: Case management | G27: <5 | H27: 5+
B28: CM-1b: Proportion of suspected malaria cases that receive a parasitological test in the community | C28: CM1b | D28: Type of testing | E28: CM1bTypeoftesting | F28: Case management | G28: Microscopy | H28: RDTs
B29: CM-1c: Proportion of suspected malaria cases that receive a parasitological test at private sector sites | C29: CM1c | D29: Age | E29: CM1cAge | F29: Case management | G29: <5 | H29: 5+
B30: CM-1c: Proportion of suspected malaria cases that receive a parasitological test at private sector sites | C30: CM1c | D30: Type of testing | E30: CM1cTypeoftesting | F30: Case management | G30: Microscopy | H30: RDTs
B31: CM-2a: Proportion of confirmed malaria cases that received first-line antimalarial treatment according to national policy at public sector health facilities | C31: CM2a | D31: Age | E31: CM2aAge | F31: Case management | G31: <5 | H31: 5+
B32: CM-2b: Proportion of confirmed malaria cases that received first-line antimalarial treatment according to national policy in the community | C32: CM2b | D32: Age | E32: CM2bAge | F32: Case management | G32: <5 | H32: 5+
B33: CM-2c: Proportion of confirmed malaria cases that received first-line antimalarial treatment according to national policy at private sector sites | C33: CM2c | D33: Age | E33: CM2cAge | F33: Case management | G33: <5 | H33: 5+
B34: CM-3a: Proportion of estimated malaria cases (presumed and confirmed) that received first line antimalarial treatment at public sector health facilities | C34: CM3a | D34: Age | E34: CM3aAge | F34: Case management | G34: <5 | H34: 5+
B35: CM-3b: Proportion of estimated malaria cases (presumed and confirmed) that received first line anti-malarial treatment in the community | C35: CM3b | D35: Age | E35: CM3bAge | F35: Case management | G35: <5 | H35: 5+
B36: CM-3c: Proportion of estimated malaria cases (presumed and confirmed) that received first line anti-malarial treatment at private sector sites | C36: CM3c | D36: Age | E36: CM3cAge | F36: Case management | G36: <5 | H36: 5+
B37: HW-1: Number of health workers per 10,000 population (report on community health workers as applicable) | C37: HW1a | D37: Specialization | E37: HW1aSpecialization | F37: HSS - Health and community workforce | G37: Doctors | H37: Nurses | I37: Lab technicians | J37: Other - specify

Sheet WPTM_1C
A1: Ongoing Progress Update and Disbursement Request
D2: Section 1: Programmatic Progress
D3: Note: Enter only the Workplan Tracking Measures that are due for the reporting period
A4: C- Workplan Tracking Measures | M4: LFA Use Only | U4: For the Global Fund Use Only
A5: Module | C5: Intervention | D5: Activity | E5: Activity details- milestones/ targets | F5: Criterion for completion | G5: Milestones/Target for the Current Period | H5: Country (relevant for multi-country grants) | I5: Target | J5: Progress Status | K5: Score | L5: Reasons for deviation from workplan activities and milestones | M5: Activity details- milestones/ targets | N5: Criterion for completion | O5: Milestones/Target for the Current Period | P5: Country (relevant for multi-country grants) | Q5: Progress Status | R5: Verified Score | S5: LFA analysis of progress and any variance between targets and results, and any other comments (this should not be a “Copy and Paste” of the reasons provided by the PR) | T5: Progress Status | U5: Validated Score | V5: Country Team Comments on Validated Score
B6: =SUBSTITUTE(SUBSTITUTE(SUBSTITUTE(SUBSTITUTE(SUBSTITUTE(SUBSTITUTE(SUBSTITUTE(A6," ",""),"-",""),"&",""),",",""),"/",""),")",""),"(","") ->  | I6: - | K6: =IFERROR(VLOOKUP(J6,$AA$8:$AB$11,2,FALSE),"") ->  | R6: =IFERROR(VLOOKUP(Q6,$AA$8:$AB$11,2,FALSE),"") ->  | U6: =IFERROR(VLOOKUP(T6,$AA$8:$AB$11,2,FALSE),"") -> 
B7: =SUBSTITUTE(SUBSTITUTE(SUBSTITUTE(SUBSTITUTE(SUBSTITUTE(SUBSTITUTE(SUBSTITUTE(A7," ",""),"-",""),"&",""),",",""),"/",""),")",""),"(","") ->  | I7: - | K7: =IFERROR(VLOOKUP(J7,$AA$8:$AB$11,2,FALSE),"") ->  | R7: =IFERROR(VLOOKUP(Q7,$AA$8:$AB$11,2,FALSE),"") ->  | U7: =IFERROR(VLOOKUP(T7,$AA$8:$AB$11,2,FALSE),"") -> 
I8: - | AA8: Not Started | AB8: 0
I9: - | AA9: Started | AB9: 1
I10: - | AA10: Advancing | AB10: 2
I11: - | AA11: Completed | AB11: 3
I12: -
I13: -
I14: -
I15: -
I16: -
I17: -
I18: -
B19: =SUBSTITUTE(SUBSTITUTE(SUBSTITUTE(SUBSTITUTE(SUBSTITUTE(SUBSTITUTE(SUBSTITUTE(A19," ",""),"-",""),"&",""),",",""),"/",""),")",""),"(","") ->  | I19: - | K19: =IFERROR(VLOOKUP(J19,$AA$8:$AB$11,2,FALSE),"") ->  | R19: =IFERROR(VLOOKUP(Q19,$AA$8:$AB$11,2,FALSE),"") ->  | U19: =IFERROR(VLOOKUP(T19,$AA$8:$AB$11,2,FALSE),"") -> 
I20: -
I21: -
I22: -
I23: -
I24: -
I25: -
I26: -
I27: -
I28: -
I29: -
I30: -
I31: -
I32: -
I33: -
I34: -
I35: -
I36: -
I37: -
I38: -
I39: -
I40: -
I41: -
I42: -

Sheet Intervention By Modules old (hidden)
B6: Specific prevention interventions (SPI) | C6: Vector control | D6: Case management | E6: TBcareandprevention | F6: MDR-TB | G6: TB care and prevention | H6: MDR-TB | I6: Prevention programs for general population | J6: Prevention programs for MSM and TGs | K6: Prevention programs for people who inject drugs (PWID) and their partners | L6: Prevention programs for other vulnerable populations (please specify) | M6: Prevention programs for adolescents and youth, in and out of school | N6: Prevention programs for sex workers and their clients | O6: PMTCT | P6: Treatment, care and support | Q6: Prevention programs for general population | R6: Prevention programs for MSM and TGs | S6: Prevention programs for people who inject drugs (PWID) and their partners | T6: Prevention programs for other vulnerable populations (please specify) | U6: Prevention programs for adolescents and youth, in and out of school | V6: Prevention programs for sex workers and their clients | W6: PMTCT | X6: Treatment, care and support | Y6: TB/HIV | Z6: TB/HIV | AA6: TB/HIV | AB6: Removing legal barriers to access | AC6: HSS - Service delivery | AD6: HSS - Health and community workforce | AE6: HSS - Health information systems and M&E | AF6: Program management | AG6: HSS - Procurement supply chain management (PSCM) | AH6: HSS - Policy and governance | AI6: HSS - Healthcare financing | AJ6: HSS - Financial management | AK6: Removing legal barriers to access | AL6: HSS - Service delivery | AM6: HSS - Health and community workforce | AN6: HSS - Health information systems and M&E | AO6: Program management | AP6: HSS - Procurement supply chain management (PSCM) | AQ6: HSS - Policy and governance | AR6: HSS - Healthcare financing | AS6: HSS - Financial management | AT6: Removing legal barriers to access | AU6: HSS - Service delivery | AV6: HSS - Health and community workforce | AW6: HSS - Health information systems and M&E | AX6: Program management | AY6: HSS - Procurement supply chain management (PSCM) | AZ6: HSS - Policy and governance | BA6: HSS - Healthcare financing | BB6: HSS - Financial management | BC6: Removing legal barriers to access | BD6: HSS - Service delivery | BE6: HSS - Health and community workforce | BF6: HSS - Health information systems and M&E | BG6: Program management | BH6: HSS - Procurement supply chain management (PSCM) | BI6: HSS - Policy and governance | BJ6: HSS - Healthcare financing | BK6: HSS - Financial management | BL6: Removing legal barriers to access | BM6: HSS - Service delivery | BN6: HSS - Health and community workforce | BO6: HSS - Health information systems and M&E | BP6: Program management | BQ6: HSS - Procurement supply chain management (PSCM) | BR6: HSS - Policy and governance | BS6: HSS - Healthcare financing | BT6: HSS - Financial management | BU6: Community systems strengthening | BV6: Results-based Financing | BW6: Community systems strengthening | BX6: Results-based Financing | BY6: Community systems strengthening | BZ6: Results-based Financing | CA6: Community systems strengthening | CB6: Results-based Financing
B7: MalariaModule1 | C7: MalariaModule2 | D7: MalariaModule3 | E7: TuberculosisModule4 | F7: TuberculosisModule5 | G7: HIV/TBModule6 | H7: HIV/TBModule7 | I7: HIV/TBModule8 | J7: HIV/TBModule9 | K7: HIV/TBModule10 | L7: HIV/TBModule11 | M7: HIV/TBModule12 | N7: HIV/TBModule13 | O7: HIV/TBModule14 | P7: HIV/TBModule15 | Q7: HIV/AIDSModule16 | R7: HIV/AIDSModule17 | S7: HIV/AIDSModule18 | T7: HIV/AIDSModule19 | U7: HIV/AIDSModule20 | V7: HIV/AIDSModule21 | W7: HIV/AIDSModule22 | X7: HIV/AIDSModule23 | Y7: HIV/AIDSModule24 | Z7: TuberculosisModule25 | AA7: HIV/TBModule26 | AB7: HIV/AIDSModule27 | AC7: HIV/AIDSModule28 | AD7: HIV/AIDSModule29 | AE7: HIV/AIDSModule30 | AF7: HIV/AIDSModule31 | AG7: HIV/AIDSModule32 | AH7: HIV/AIDSModule33 | AI7: HIV/AIDSModule34 | AJ7: HIV/AIDSModule35 | AK7: TuberculosisModule36 | AL7: TuberculosisModule37 | AM7: TuberculosisModule38 | AN7: TuberculosisModule39 | AO7: TuberculosisModule40 | AP7: TuberculosisModule41 | AQ7: TuberculosisModule42 | AR7: TuberculosisModule43 | AS7: TuberculosisModule44 | AT7: Module45 | AU7: MalariaModule46 | AV7: MalariaModule47 | AW7: MalariaModule48 | AX7: MalariaModule49 | AY7: MalariaModule50 | AZ7: MalariaModule51 | BA7: MalariaModule52 | BB7: MalariaModule53 | BC7: Health Systems StrengtheningModule54 | BD7: Health Systems StrengtheningModule55 | BE7: Health Systems StrengtheningModule56 | BF7: Health Systems StrengtheningModule57 | BG7: Health Systems StrengtheningModule58 | BH7: Health Systems StrengtheningModule59 | BI7: Health Systems StrengtheningModule60 | BJ7: Health Systems StrengtheningModule61 | BK7: Health Systems StrengtheningModule62 | BL7: HIV/TBModule63 | BM7: HIV/TBModule64 | BN7: HIV/TBModule65 | BO7: HIV/TBModule66 | BP7: HIV/TBModule67 | BQ7: HIV/TBModule68 | BR7: HIV/TBModule69 | BS7: HIV/TBModule70 | BT7: HIV/TBModule71 | BU7: HIV/AIDSModule72 | BV7: HIV/AIDSModule73 | BW7: TuberculosisModule74 | BX7: TuberculosisModule75 | BY7: MalariaModule76 | BZ7: MalariaModule77 | CA7: HIV/TBModule78 | CB7: HIV/TBModule79
B8: Intermittent preventive treatment (IPT) - In pregnancy | C8: Long-lasting insecticidal nets (LLIN) - Mass campaign | D8: Facility-based treatment | E8: Case detection and diagnosis | F8: Case detection and diagnosis: MDR-TB | G8: Case detection and diagnosis | H8: Case detection and diagnosis: MDR-TB | I8: RMNCH linkages and gender-based violence (GBV) | J8: Behavioral change as part of programs for MSM and TGs | K8: Needle and Syringe programs as part of programs for PWID and their partners | L8: Condoms as part of programs for other vulnerable populations | M8: Behavioral change as part of programs for adolescent and youth | N8: Behavioral change as part of programs for sex workers and their clients | O8: Prong 1: Primary prevention of HIV infection among women of childbearing age | P8: Pre-ART care | Q8: RMNCH linkages and gender-based violence (GBV) | R8: Behavioral change as part of programs for MSM and TGs | S8: Needle and Syringe programs as part of programs for PWID and their partners | T8: Condoms as part of programs for other vulnerable populations | U8: Behavioral change as part of programs for adolescent and youth | V8: Behavioral change as part of programs for sex workers and their clients | W8: Prong 1: Primary prevention of HIV infection among women of childbearing age | X8: Pre-ART care | Y8: TB/HIV collaborative interventions | Z8: TB/HIV collaborative interventions | AA8: TB/HIV collaborative interventions | AB8: Legal and policy environment assessment and law reform | AC8: Service organization and facility management | AD8: Health and community workers capacity building | AE8: Administrative and finance data sources | AF8: Policy, planning, coordination and management | AG8: Operationalization of procurement and supply chain management system | AH8: Development and implementation of health legislation, strategies and policies | AI8: Financial sustainability | AJ8: Performance,transparency&accountability of financial management system in health | AK8: Legal and policy environment assessment and law reform | AL8: Service organization and facility management | AM8: Health and community workers capacity building | AN8: Administrative and finance data sources | AO8: Policy, planning, coordination and management | AP8: Operationalization of procurement and supply chain management system | AQ8: Development and implementation of health legislation, strategies and policies | AR8: Financial sustainability | AS8: Performance,transparency&accountability of financial management system in health | AT8: Legal and policy environment assessment and law reform | AU8: Service organization and facility management | AV8: Health and community workers capacity building | AW8: Administrative and finance data sources | AX8: Policy, planning, coordination and management | AY8: Operationalization of procurement and supply chain management system | AZ8: Development and implementation of health legislation, strategies and policies | BA8: Financial sustainability | BB8: Performance,transparency&accountability of financial management system in health | BC8: Legal and policy environment assessment and law reform | BD8: Service organization and facility management | BE8: Health and community workers capacity building | BF8: Administrative and finance data sources | BG8: Policy, planning, coordination and management | BH8: Operationalization of procurement and supply chain management system | BI8: Development and implementation of health legislation, strategies and policies | BJ8: Financial sustainability | BK8: Performance,transparency&accountability of financial management system in health | BL8: Legal and policy environment assessment and law reform | BM8: Service organization and facility management | BN8: Health and community workers capacity building | BO8: Administrative and finance data sources | BP8: Policy, planning, coordination and management | BQ8: Operationalization of procurement and supply chain management system | BR8: Development and implementation of health legislation, strategies and policies | BS8: Financial sustainability | BT8: Performance,transparency&accountability of financial management system in health | BU8: Community-based monitoring for accountability | BV8: Results-based financing | BW8: Community-based monitoring for accountability | BX8: Results-based financing | BY8: Community-based monitoring for accountability | BZ8: Results-based financing | CA8: Community-based monitoring for accountability | CB8: Results-based financing
B9: Intermittent preventive treatment (IPT) - In infancy | C9: Long-lasting insecticidal nets (LLIN) - Continuous distribution | D9: Epidemic preparedness and response | E9: Treatment | F9: Treatment: MDR-TB | G9: Treatment | H9: Treatment: MDR-TB | I9: Other interventions for general population - Please specify | J9: Condoms as part of programs for MSM and TGs | K9: OST and other drug dependence treatment (PWIDs and their partners) | L9: Behavioral change as part of programs for other vulnerable populations | M9: Condoms part of programs for adolescent and youth | N9: Condoms as part of programs for sex workers and their clients | O9: Prong 2: Preventing unintended pregnancies among women living with HIV | P9: Antiretroviral Therapy (ART) | Q9: Other interventions for general population - Please specify | R9: Condoms as part of programs for MSM and TGs | S9: OST and other drug dependence treatment (PWIDs and their partners) | T9: Behavioral change as part of programs for other vulnerable populations | U9: Condoms part of programs for adolescent and youth | V9: Condoms as part of programs for sex workers and their clients | W9: Prong 2: Preventing unintended pregnancies among women living with HIV | X9: Antiretroviral Therapy (ART) | Y9: Engaging all care providers | Z9: Engaging all care providers | AA9: Engaging all care providers | AB9: Legal aid services and legal literacy | AC9: Improving laboratory systems | AD9: Scaling up health and community workers | AE9: Vital registration system | AF9: Grant management | AG9: PSM infrastructure and development of tools | AH9: Monitoring and reporting implementation of laws and policies | AI9: Equity of healthcare financing | AK9: Legal aid services and legal literacy | AL9: Improving laboratory systems | AM9: Scaling up health and community workers | AN9: Vital registration system | AO9: Grant management | AP9: PSM infrastructure and development of tools | AQ9: Monitoring and reporting implementation of laws and policies | AR9: Equity of healthcare financing | AT9: Legal aid services and legal literacy | AU9: Improving laboratory systems | AV9: Scaling up health and community workers | AW9: Vital registration system | AX9: Grant management | AY9: PSM infrastructure and development of tools | AZ9: Monitoring and reporting implementation of laws and policies | BA9: Equity of healthcare financing | BC9: Legal aid services and legal literacy | BD9: Improving laboratory systems | BE9: Scaling up health and community workers | BF9: Vital registration system | BG9: Grant management | BH9: PSM infrastructure and development of tools | BI9: Monitoring and reporting implementation of laws and policies | BJ9: Equity of healthcare financing | BL9: Legal aid services and legal literacy | BM9: Improving laboratory systems | BN9: Scaling up health and community workers | BO9: Vital registration system | BP9: Grant management | BQ9: PSM infrastructure and development of tools | BR9: Monitoring and reporting implementation of laws and policies | BS9: Equity of healthcare financing | BU9: Advocacy for social accountability | BW9: Advocacy for social accountability | BY9: Advocacy for social accountability | CA9: Advocacy for social accountability
B10: Seasonal malaria chemoprevention | C10: Indoor residual spraying (IRS) | D10: Integrated community case management (ICCM) | E10: Prevention | F10: Prevention for MDR-TB | G10: Prevention | H10: Prevention for MDR-TB | I10: Behavioral change as part of programs for general population | J10: HIV testing and counseling as part of programs for MSM and TGs | K10: Diagnosis and treatment of viral hepatitis (PWIDs and their partners) | L10: Diagnosis and treatment of STIs (other vulnerable populations) | M10: HIV testing and counseling as part of programs for adolescent and youth | N10: HIV testing and counseling as part of programs for sex workers and their clients | O10: Prong 3: Preventing vertical HIV transmission | P10: Treatment monitoring | Q10: Behavioral change as part of programs for general population | R10: HIV testing and counseling as part of programs for MSM and TGs | S10: Diagnosis and treatment of viral hepatitis (PWIDs and their partners) | T10: Diagnosis and treatment of STIs (other vulnerable populations) | U10: HIV testing and counseling as part of programs for adolescent and youth | V10: HIV testing and counseling as part of programs for sex workers and their clients | W10: Prong 3: Preventing vertical HIV transmission | X10: Treatment monitoring | Y10: Community TB care delivery | Z10: Community TB care delivery | AA10: Community TB care delivery | AB10: Community-based monitoring of legal rights | AC10: Improving service delivery infrastructure | AD10: Retention and distribution of health and community workers | AE10: Routine reporting | AF10: Supporting procurement and supply management | AK10: Community-based monitoring of legal rights | AL10: Improving service delivery infrastructure | AM10: Retention and distribution of health and community workers | AN10: Routine reporting | AO10: Supporting procurement and supply management | AT10: Community-based monitoring of legal rights | AU10: Improving service delivery infrastructure | AV10: Retention and distribution of health and community workers | AW10: Routine reporting | AX10: Supporting procurement and supply management | BC10: Community-based monitoring of legal rights | BD10: Improving service delivery infrastructure | BE10: Retention and distribution of health and community workers | BF10: Routine reporting | BG10: Supporting procurement and supply management | BL10: Community-based monitoring of legal rights | BM10: Improving service delivery infrastructure | BN10: Retention and distribution of health and community workers | BO10: Routine reporting | BP10: Supporting procurement and supply management | BU10: Social mobilization, building community linkages, collaboration and coordination | BW10: Social mobilization, building community linkages, collaboration and coordination | BY10: Social mobilization, building community linkages, collaboration and coordination | CA10: Social mobilization, building community linkages, collaboration and coordination
B11: IEC/BCC | C11: Other vector control measures | D11: Active case detection and investigation (elimination phase) | E11: Other | F11: Other | G11: Other | H11: Other | I11: Condoms as part of programs for general population | J11: Diagnosis and treatment of STIs as part of programs for MSM and TGs | K11: Other interventions for IDUs and their partners - Please specify | L11: Other interventions for other vulnerable populations - Please specify | M11: RMNCH linkages and GBV as part of programs for adolescent youth | N11: Diagnosis and treatment of STIs (sex workers and their clients) | O11: Prong 4: Treatment, care & support to mothers living with HIV, their children & | P11: Treatment adherence | Q11: Condoms as part of programs for general population | R11: Diagnosis and treatment of STIs as part of programs for MSM and TGs | S11: Other interventions for IDUs and their partners - Please specify | T11: Other interventions for other vulnerable populations - Please specify | U11: RMNCH linkages and GBV as part of programs for adolescent youth | V11: Diagnosis and treatment of STIs (sex workers and their clients) | W11: Prong 4: Treatment, care & support to mothers living with HIV, their children & | X11: Treatment adherence | Y11: Key Affected Populations | Z11: Key Affected Populations | AA11: Key Affected Populations | AB11: Policy advocacy on legal rights | AC11: Other | AE11: Analysis, review and transparency | AK11: Policy advocacy on legal rights | AL11: Other | AN11: Analysis, review and transparency | AT11: Policy advocacy on legal rights | AU11: Other | AW11: Analysis, review and transparency | BC11: Policy advocacy on legal rights | BD11: Other | BF11: Analysis, review and transparency | BL11: Policy advocacy on legal rights | BM11: Other | BO11: Analysis, review and transparency | BU11: Institutional capacity building, planning and leadership development | BW11: Institutional capacity building, planning and leadership development | BY11: Institutional capacity building, planning and leadership development | CA11: Institutional capacity building, planning and leadership development
B12: Other | C12: Entomological monitoring | D12: Therapeutic efficacy surveillance | I12: Male circumcision | J12: Diagnosis and treatment of viral hepatitis as part of programs for MSM and TGs | K12: Behavioural change as part of programs for PWID and their partners | L12: HIV testing and counseling as part of programs for other vulnerable populations | M12: Young Key Population interventions as part of programs for adolescent and youth | N12: Harm reduction as part of programs for sex workers and their clients | O12: Other interventions for PMTCT- Please specify | P12: Prevention, diagnosis and treatment of opportunistic infections | Q12: Male circumcision | R12: Diagnosis and treatment of viral hepatitis as part of programs for MSM and TGs | S12: Behavioural change as part of programs for PWID and their partners | T12: HIV testing and counseling as part of programs for other vulnerable populations | U12: Young Key Population interventions as part of programs for adolescent and youth | V12: Harm reduction as part of programs for sex workers and their clients | W12: Other interventions for PMTCT- Please specify | X12: Prevention, diagnosis and treatment of opportunistic infections | Y12: Collaborative activities with other programs and sectors | Z12: Collaborative activities with other programs and sectors | AA12: Collaborative activities with other programs and sectors | AB12: Training on rights for officials, health workers and police | AE12: Surveys | AK12: Training on rights for officials, health workers and police | AN12: Surveys | AT12: Training on rights for officials, health workers and police | AW12: Surveys | BC12: Training on rights for officials, health workers and police | BF12: Surveys | BL12: Training on rights for officials, health workers and police | BO12: Surveys
C13: Other | D13: Severe malaria | I13: HIV testing and counseling as part of programs for general population | J13: Other interventions for MSM and TGs - Please specify | K13: Condoms as part of programs for PWID and their partners | L13: Condoms as part of programs for other vulnerable populations | M13: Other interventions for adolescent and youth | N13: Other interventions for sex workers and their clients - Please specify | P13: Counseling and psycho-social support | Q13: HIV testing and counseling as part of programs for general population | R13: Other interventions for MSM and TGs - Please specify | S13: Condoms as part of programs for PWID and their partners | T13: Condoms as part of programs for other vulnerable populations | U13: Other interventions for adolescent and youth | V13: Other interventions for sex workers and their clients - Please specify | X13: Counseling and psycho-social support
D14: Private sector co-payment mechanism | I14: Diagnosis and treatment of STIs as part of programs for general population | K14: Diagnosis and treatment of STIs as part of programs for PWID and their partners | L14: Behavioral change as part of programs for other vulnerable populations | P14: Out-patient care | Q14: Diagnosis and treatment of STIs as part of programs for general population | S14: Diagnosis and treatment of STIs as part of programs for PWID and their partners | T14: Behavioral change as part of programs for other vulnerable populations | X14: Out-patient care
D15: Private sector case management (other) | I15: Blood safety | K15: Needle and Syringe programs as part of programs for PWID and their partners | L15: Diagnosis and treatment of STIs (other vulnerable populations) | P15: In-patient care | Q15: Blood safety | S15: Needle and Syringe programs as part of programs for PWID and their partners | T15: Diagnosis and treatment of STIs (other vulnerable populations) | X15: In-patient care
K16: OST and other drug dependence treatment (PWIDs and their partners) | L16: Other interventions for other vulnerable populations - Please specify | P16: Other interventions for treatment - Please specify | S16: OST and other drug dependence treatment (PWIDs and their partners) | T16: Other interventions for other vulnerable populations - Please specify | X16: Other interventions for treatment - Please specify
K17: Diagnosis and treatment of viral hepatitis (PWIDs and their partners) | L17: HIV testing and counseling as part of programs for other vulnerable populations | S17: Diagnosis and treatment of viral hepatitis (PWIDs and their partners) | T17: HIV testing and counseling as part of programs for other vulnerable populations
K18: Behavioural change as part of programs for PWID and their partners | S18: Behavioural change as part of programs for PWID and their partners
K19: Condoms as part of programs for PWID and their partners | S19: Condoms as part of programs for PWID and their partners
K20: Diagnosis and treatment of STIs as part of programs for PWID and their partners | S20: Diagnosis and treatment of STIs as part of programs for PWID and their partners

Sheet Intervention By Modules (hidden)
B3: SpecificpreventioninterventionsSPI | C3: Vectorcontrol | D3: Casemanagement | E3: TBcareandprevention | F3: MDR-TB | G3: Preventionprogramsforgeneralpopulation | H3: PreventionprogramsforMSMandTGs | I3: PreventionprogramsforpeoplewhoinjectdrugsPWIDandtheirpartners | J3: Preventionprogramsforothervulnerablepopulationspleasespecify | K3: Preventionprogramsforadolescentsandyouthinandoutofschool | L3: Preventionprogramsforsexworkersandtheirclients | M3: PMTCT | N3: Treatmentcareandsupport | O3: TBHIV | P3: Removinglegalbarrierstoaccess | Q3: HSSServicedelivery | R3: HSSHealthandcommunityworkforce | S3: HSSHealthinformationsystemsandME | T3: Programmanagement | U3: HSSProcurementsupplychainmanagementPSCM | V3: HSSPolicyandgovernance | W3: HSS-Healthcarefinancing | X3: HSSFinancialmanagement | Y3: Communitysystemsstrengthening | Z3: Results basedFinancing
B4: Intermittent preventive treatment (IPT) - In pregnancy | C4: Long-lasting insecticidal nets (LLIN) - Mass campaign | D4: Facility-based treatment | E4: Case detection and diagnosis | F4: Case detection and diagnosis: MDR-TB | G4: RMNCH linkages and gender-based violence (GBV) | H4: Behavioral change as part of programs for MSM and TGs | I4: Needle and Syringe programs as part of programs for PWID and their partners | J4: Condoms as part of programs for other vulnerable populations | K4: Behavioral change as part of programs for adolescent and youth | L4: Behavioral change as part of programs for sex workers and their clients | M4: Prong 1: Primary prevention of HIV infection among women of childbearing age | N4: Pre-ART care | O4: TB/HIV collaborative interventions | P4: Legal and policy environment assessment and law reform | Q4: Service organization and facility management | R4: Health and community workers capacity building | S4: Administrative and finance data sources | T4: Policy, planning, coordination and management | U4: Operationalization of procurement and supply chain management system | V4: Development and implementation of health legislation, strategies and policies | W4: Financial sustainability | X4: Performance,transparency&accountability of financial management system in health | Y4: Community-based monitoring for accountability | Z4: Results-based financing
B5: Intermittent preventive treatment (IPT) - In infancy | C5: Long-lasting insecticidal nets (LLIN) - Continuous distribution | D5: Epidemic preparedness and response | E5: Treatment | F5: Treatment: MDR-TB | G5: Other interventions for general population - Please specify | H5: Condoms as part of programs for MSM and TGs | I5: OST and other drug dependence treatment (PWIDs and their partners) | J5: Behavioral change as part of programs for other vulnerable populations | K5: Condoms part of programs for adolescent and youth | L5: Condoms as part of programs for sex workers and their clients | M5: Prong 2: Preventing unintended pregnancies among women living with HIV | N5: Antiretroviral Therapy (ART) | O5: Engaging all care providers | P5: Legal aid services and legal literacy | Q5: Improving laboratory systems | R5: Scaling up health and community workers | S5: Vital registration system | T5: Grant management | U5: PSM infrastructure and development of tools | V5: Monitoring and reporting implementation of laws and policies | W5: Equity of healthcare financing | Y5: Advocacy for social accountability
B6: Seasonal malaria chemoprevention | C6: Indoor residual spraying (IRS) | D6: Integrated community case management (ICCM) | E6: Prevention | F6: Prevention for MDR-TB | G6: Behavioral change as part of programs for general population | H6: HIV testing and counseling as part of programs for MSM and TGs | I6: Diagnosis and treatment of viral hepatitis (PWIDs and their partners) | J6: Diagnosis and treatment of STIs (other vulnerable populations) | K6: HIV testing and counseling as part of programs for adolescent and youth | L6: HIV testing and counseling as part of programs for sex workers and their clients | M6: Prong 3: Preventing vertical HIV transmission | N6: Treatment monitoring | O6: Community TB care delivery | P6: Community-based monitoring of legal rights | Q6: Improving service delivery infrastructure | R6: Retention and distribution of health and community workers | S6: Routine reporting | T6: Supporting procurement and supply management | Y6: Social mobilization, building community linkages, collaboration and coordination
B7: IEC/BCC | C7: Other vector control measures | D7: Active case detection and investigation (elimination phase) | E7: Other | F7: Other | G7: Condoms as part of programs for general population | H7: Diagnosis and treatment of STIs as part of programs for MSM and TGs | I7: Other interventions for IDUs and their partners - Please specify | J7: Other interventions for other vulnerable populations - Please specify | K7: RMNCH linkages and GBV as part of programs for adolescent youth | L7: Diagnosis and treatment of STIs (sex workers and their clients) | M7: Prong 4: Treatment, care & support to mothers living with HIV, their children & | N7: Treatment adherence | O7: Key Affected Populations | P7: Policy advocacy on legal rights | Q7: Other | S7: Analysis, review and transparency | Y7: Institutional capacity building, planning and leadership development
B8: Other | C8: Entomological monitoring | D8: Therapeutic efficacy surveillance | G8: Male circumcision | H8: Diagnosis and treatment of viral hepatitis as part of programs for MSM and TGs | I8: Behavioural change as part of programs for PWID and their partners | J8: HIV testing and counseling as part of programs for other vulnerable populations | K8: Young Key Population interventions as part of programs for adolescent and youth | L8: Harm reduction as part of programs for sex workers and their clients | M8: Other interventions for PMTCT- Please specify | N8: Prevention, diagnosis and treatment of opportunistic infections | O8: Collaborative activities with other programs and sectors | P8: Training on rights for officials, health workers and police | S8: Surveys
C9: Other | D9: Severe malaria | G9: HIV testing and counseling as part of programs for general population | H9: Other interventions for MSM and TGs - Please specify | I9: Condoms as part of programs for PWID and their partners | J9: Condoms as part of programs for other vulnerable populations | K9: Other interventions for adolescent and youth | L9: Other interventions for sex workers and their clients - Please specify | N9: Counseling and psycho-social support
D10: Private sector co-payment mechanism | G10: Diagnosis and treatment of STIs as part of programs for general population | I10: Diagnosis and treatment of STIs as part of programs for PWID and their partners | J10: Behavioral change as part of programs for other vulnerable populations | N10: Out-patient care
D11: Private sector case management (other) | G11: Blood safety | I11: Needle and Syringe programs as part of programs for PWID and their partners | J11: Diagnosis and treatment of STIs (other vulnerable populations) | N11: In-patient care
I12: OST and other drug dependence treatment (PWIDs and their partners) | J12: Other interventions for other vulnerable populations - Please specify | N12: Other interventions for treatment - Please specify
I13: Diagnosis and treatment of viral hepatitis (PWIDs and their partners) | J13: HIV testing and counseling as part of programs for other vulnerable populations
I14: Other interventions for IDUs and their partners - Please specify
I15: Behavioural change as part of programs for PWID and their partners
I16: Condoms as part of programs for PWID and their partners
I17: Diagnosis and treatment of STIs as part of programs for PWID and their partners

Sheet PR Cash Reconciliation_2A,B,C
A1: Ongoing Progress Update and Disbursement Request
A2: Section 2: Financial Information
B4: A. Principal Recipient Cash Reconciliation Statement in Grant Currency
C5: Principal Recipient | F5: For LFA Use Only | J5: For the Global Fund Use Only
A6: Item No. | B6: Description | C6: Cumulative for Previous Periods | D6: Current Reporting Period | E6: Comments | F6: Cumulative for Previous Periods as validated by Global Fund | G6: LFA Adjustments on Current Reporting Period | H6: As verified by LFA | I6: Comments | J6: CT Adjustments (incl. External Audit adjustments) | K6: The Global Fund Validated Figures | L6: Comments
A7: 1.1 | B7: Cash Balance: Beginning of the Period | C7: 0 | D7: 457181.3061 | G7: 0 | H7: =D7+G7 -> 457181.3061 | J7: 0 | K7: =H7+J7 -> 457181.3061
B8: 2. Grant Income
B9: Add:
A10: 2.1 | B10: Disbursement made to the Principal Recipient | C10: 2676216.6 | D10: =1831227.48+56462.88+338566.95+238.62 -> 2226495.93 | F10: 0 | G10: 0 | H10: =D10+G10 -> 2226495.93 | J10: 0 | K10: =H10+J10 -> 2226495.93
A11: 2.2 | B11: Disbursement to third parties by the Global Fund on behalf of the Principal Recipient | C11: 2521330.07 | D11: =736815.01-238.62 -> 736576.39 | F11: 0 | G11: 0 | H11: =D11+G11 -> 736576.39 | J11: 0 | K11: =H11+J11 -> 736576.39
A12: 2.3 | B12: Interest received on bank accounts | C12: 0 | D12: 0 | F12: 0 | G12: 0 | H12: =D12+G12 -> 0 | J12: 0 | K12: 0
A13: 2.4 | B13: Revenue from income-generating activities (if applicable) | C13: 0 | D13: 0 | F13: 0 | G13: 0 | H13: =D13+G13 -> 0 | J13: 0 | K13: 0
A14: 2.5 | B14: Other income, if applicable (e.g. VAT/Other Tax returns, income from disposal of assets etc.) | C14: 37345.0553 | D14: =41155.89+5698.24/2.7206+1481.81/2.513+9927.52/2.3934 -> 47987.90026 | E14: VAT refund (Corresponds to GEL 130,157.27) | F14: 0 | G14: 0 | H14: =D14+G14 -> 47987.90026 | J14: 0 | K14: 47987.90026
A15: 2.6 | B15: Total Grant Income | C15: =SUM(C10:C14) -> 5234891.725 | D15: =SUM(D10:D14) -> 3011060.22 | F15: =SUM(F10:F14) -> 0 | G15: =SUM(G10:G14) -> 0 | H15: =SUM(H10:H14) -> 3011060.22 | J15: =SUM(J10:J14) -> 0 | K15: =SUM(K10:K14) -> 3011060.22
B16: 3. Grant Cash Outflows
B17: Less:
A18: 3.1 | B18: Principal Recipient Expenditure (including payments and other advance payments) | C18: 1646271.788 | D18: 1711675.015 | F18: 0 | G18: 0 | H18: =D18+G18 -> 1711675.015 | J18: 0 | K18: =H18+J18 -> 1711675.015
A19: 3.2 | B19: Disbursement to third parties by the Global Fund on behalf of the Principal Recipient | C19: =C11 -> 2521330.07 | D19: =D11 -> 736576.39 | F19: =F11 -> 0 | G19: 0 | H19: =D19+G19 -> 736576.39 | J19: =J11 -> 0 | K19: =H19+J19 -> 736576.39
A20: 3.3 | B20: Principal Recipient disbursement to sub-recipients | C20: 576674.7273 | D20: 332703.6393 | F20: 0 | G20: 0 | H20: =D20+G20 -> 332703.6393 | J20: 0 | K20: =H20+J20 -> 332703.6393
A21: 3.4 | B21: Bank charges on disbursements and payments | C21: 200 | D21: 238.62 | F21: 0 | G21: 0 | H21: =D21+G21 -> 238.62 | J21: 0 | K21: 238.62
A22: 3.5 | B22: Total Grant Cash Outflows | C22: =SUM(C18:C21) -> 4744476.585 | D22: =SUM(D18:D21) -> 2781193.664 | F22: =SUM(F18:F21) -> 0 | G22: =SUM(G18:G21) -> 0 | H22: =SUM(H18:H21) -> 2781193.664 | J22: =SUM(J18:J21) -> 0 | K22: =SUM(K18:K21) -> 2781193.664
B23: 4. Reconciling Adjustments
A24: 4.1 | B24: Other reconciliation adjustments (including for prior periods) | C24: 0 | D24: 0 | F24: 0 | G24: 0 | H24: =D24+G24 -> 0 | J24: 0 | K24: =H24+J24 -> 0
A25: 4.2 | B25: Net exchange gains/losses on translation of balances | C25: -33233.83 | D25: -48878.23 | F25: 0 | G25: 0 | H25: =D25+G25 -> -48878.23 | J25: 0 | K25: =H25+J25 -> -48878.23
A26: 4.3 | B26: Ineligible transactions from previous periods for which justification was approved by the Global Fund | C26: 0 | D26: 0 | F26: 0 | G26: 0 | H26: =D26+G26 -> 0 | J26: 0 | K26: 0
A27: 4.4 | B27: Reimbursement of ineligible transaction from previous periods | C27: 0 | D27: 0 | F27: 0 | G27: 0 | H27: =D27+G27 -> 0 | J27: 0 | K27: 0
B28: 5. Total Cash Balances: End of the reporting period
A29: 5.1 | B29: Principal Recipient Cash Balance | C29: 0 | D29: =(D7+D15-D22)+D24+D25+D27 -> 638169.6325 | G29: =(G15-G22)+G25+G24 -> 0 | H29: =(H7+H15-H22)+H24+H25-H26 -> 638169.6325 | J29: =J7+J15-J22+J25+J24 -> 0 | K29: =K7+K15-K22+K25+K24-K26 -> 638169.6325
A30: 5.2 | B30: Sub-Recipient Cash Balance | C30: 0 | D30: ='SR_Cash Reconciliation_2D'!H60 -> 19257.43337 | G30: ='SR_Cash Reconciliation_2D'!K60 -> 0 | H30: ='SR_Cash Reconciliation_2D'!L60 -> 19257.43337 | J30: 0 | K30: =+H30+J30 -> 19257.43337
A31: 5.3 | B31: Total Cash Balance | C31: =C29+C30 -> 0 | D31: =D29+D30 -> 657427.0659 | F31: =F29+F30 -> 0 | G31: =G29+G30 -> 0 | H31: =H29+H30 -> 657427.0659 | J31: =J29+J30 -> 0 | K31: =K29+K30 -> 657427.0659
B32: 6. Commitments & Other Obligations
A33: 6.1 | B33: Unpaid invoices, accrued expenditure for severance pay, leave and other liabilities | C33: 0 | D33: =(103515.58+83947.54+32800+15614.2)/2.794 -> 84422.80601 | F33: 0 | G33: 0 | H33: =D33+G33 -> 84422.80601 | J33: 0 | K33: =H33+J33 -> 84422.80601
A34: 6.2 | B34: Open legal obligations (including signed contracts not yet invoiced) | C34: 0 | D34: =(71490+79747.45+285320.61+41988.28+4200+4500+3000)/2.794 -> 175463.9728 | F34: 0 | G34: 0 | H34: =D34+G34 -> 175463.9728 | J34: 0 | K34: =H34+J34 -> 175463.9728
A35: 6.3 | B35: Tenders and/or procurement contracts initiated but not yet signed as contracts | C35: 0 | F35: 0 | G35: 0 | H35: =D35+G35 -> 0 | J35: 0 | K35: =H35+J35 -> 0
A36: 6.4 | B36: Total Commitments & Other Obligations | C36: =SUM(C33:C35) -> 0 | D36: =SUM(D33:D35) -> 259886.7788 | E36: Excluding commitment to NFM Grant int the amount of USD 428,004 | F36: =SUM(F33:F35) -> 0 | G36: =SUM(G33:G35) -> 0 | H36: =SUM(H33:H35) -> 259886.7788 | J36: =SUM(J33:J35) -> 0 | K36: =SUM(K33:K35) -> 259886.7788
B38: B. Principal Recipient Bank Statement Balance & Cash In Transit in Grant Currency
C39: Principal Recipient | F39: For LFA Use Only | J39: For the Global Fund Use Only
D40: As At End of Current Reporting Period | E40: Comments | G40: LFA Adjustments on Current Reporting Period | H40: As verified by LFA | I40: Comments | J40: CT Adjustments | K40: The Global Fund Validated Figures | L40: Comments
A41: 7.1 | B41: Principal Recipient Cash Balance as per bank statements (For Information Only): | D41: =(1206763.02/2.794)+206257.31 -> 638169.6293 | E41: EUR (The amount consists of GEL 1 206 763,02 and EUR 206 257,31) | G41: 0 | H41: =D41+G41 -> 638169.6293 | J41: 0 | K41: =H41+J41 -> 638169.6293
A42: 7.2 | B42: Cash in Transit for the reporting period | D42: 0 | G42: 0 | H42: =D42+G42 -> 0 | J42: 0 | K42: =H42+J42 -> 0
A43: 7.3 | B43: Cash in Transit after the current reporting period | D43: 0 | G43: 0 | H43: =D43+G43 -> 0 | J43: 0 | K43: 0
B45: C. Principal Recipient Ineligible Transactions in Grant Currency
C46: Principal Recipient | F46: For LFA Use Only | J46: For the Global Fund Use Only
C47: Cumulative for Previous Periods | D47: Current Reporting Period | E47: Comments | F47: Cumulative for Previous Periods as validated by Global Fund | G47: LFA Adjustments on Current Reporting Period | H47: As verified by LFA | I47: Comments | J47: CT Adjustments | K47: The Global Fund Validated Figures | L47: Comments
A48: 8.1 | B48: Ineligible transactions validated for the reporting period | C48: 0 | D48: 0 | F48: 0 | G48: =G31 -> 0 | H48: =D48+G48 -> 0 | J48: 0 | K48: =H48+J48 -> 0
A49: 8.2 | B49: Ineligible transactions from previous periods for which justification was approved by the Global Fund | C49: =C26 -> 0 | D49: =D26 -> 0 | F49: =F26 -> 0 | G49: =G26 -> 0 | H49: =D49+G49 -> 0 | J49: =J26 -> 0 | K49: =H49+J49 -> 0
A50: 8.3 | B50: Reimbursement of ineligible transactions from previous periods | C50: =C27 -> 0 | D50: =D27 -> 0 | F50: =F27 -> 0 | G50: =G27 -> 0 | H50: =D50+G50 -> 0 | J50: =J27 -> 0 | K50: 0
A51: 8.4 | B51: Cumulative ineligible transactions for the implementation period | C51: 0 | D51: =D48+C51 -> 0 | F51: 0 | G51: =H48 -> 0 | H51: =F51+G51 -> 0 | J51: 0 | K51: =H51+J51 -> 0
A52: 8.5 | B52: Open ineligible transactions to be justified and/or reimbursed | C52: =C51-C49-C50 -> 0 | D52: =C52+D48-D49-D50 -> 0 | F52: 0 | H52: =H51-F49-F50-H49-H50 -> 0 | J52: 0 | K52: =K51-J49-J50-K49-K50 -> 0

Sheet SR_Cash Reconciliation_2D
A1: Ongoing Progress Update and Disbursement Request
A3: Section 2: Financial Information
A6: D. Principal Recipient Reconciliation of funds provided to Sub-Recipients for the Current Implementation Period
A8: Principal Recipient | K8: For Local Fund Agent Use Only | N8: For the Global Fund Use Only
A9: (1) Sub-Recipient Name | B9: (2) Cumulative Sub-Recipient expenses for prior periods at Principal Recipient level | C9: (3) Sub-Recipient Open Advances at Principal Recipient Level | D9: (4) Disbursements made by Principal Recipient during the Reporting Period | E9: (5) Other Income* during the Reporting Period | F9: (6) Expenditure validated by Principal Recipient during the Reporting Period | G9: (7) Sub-Recipient Closing Balance at Principal Recipient Level | H9: (8) Actual Sub-Recipient Cash Balance (if applicable) | I9: (9) Variances on Sub-Recipient Balances | J9: Comments | K9: LFA Adjustments | L9: As verified by LFA | M9: Comments | N9: Country Team Adjustments (incl. External Audit adjustments) | O9: The Global Fund Validated Figures | P9: Comments
A10: TB Centre | B10: 0 | C10: 0 | D10: 0 | E10: 0 | F10: 0 | G10: =+C10+D10+E10-F10 -> 0 | H10: =50000/2.5964 -> 19257.43337 | I10: =+H10-G10 -> 19257.43337 | J10: Advance Payment | L10: =H10+K10 -> 19257.43337 | O10: =L10+N10 -> 19257.43337
B11: 0 | C11: 0 | D11: 0 | E11: 0 | F11: 0 | G11: =+C11+D11+E11-F11 -> 0 | H11: 0 | I11: 0 | L11: =H11+K11 -> 0 | O11: 0
B12: 0 | C12: 0 | D12: 0 | E12: 0 | F12: 0 | G12: 0 | H12: 0 | I12: 0 | L12: 0 | O12: 0
B13: 0 | C13: 0 | D13: 0 | E13: 0 | F13: 0 | G13: 0 | H13: 0 | I13: 0 | L13: 0 | O13: 0
B14: 0 | C14: 0 | D14: 0 | E14: 0 | F14: 0 | G14: 0 | H14: 0 | I14: 0 | L14: 0 | O14: 0
B15: 0 | C15: 0 | D15: 0 | E15: 0 | F15: 0 | G15: 0 | H15: 0 | I15: 0 | L15: 0 | O15: 0
B16: 0 | C16: 0 | D16: 0 | E16: 0 | F16: 0 | G16: 0 | H16: 0 | I16: 0 | L16: 0 | O16: 0
B17: 0 | C17: 0 | D17: 0 | E17: 0 | F17: 0 | G17: 0 | H17: 0 | I17: 0 | L17: 0 | O17: 0
B18: 0 | C18: 0 | D18: 0 | E18: 0 | F18: 0 | G18: 0 | H18: 0 | I18: 0 | L18: 0 | O18: 0
B19: 0 | C19: 0 | D19: 0 | E19: 0 | F19: 0 | G19: 0 | H19: 0 | I19: 0 | L19: 0 | O19: 0
B20: 0 | C20: 0 | D20: 0 | E20: 0 | F20: 0 | G20: 0 | H20: 0 | I20: 0 | L20: 0 | O20: 0
B21: 0 | C21: 0 | D21: 0 | E21: 0 | F21: 0 | G21: 0 | H21: 0 | I21: 0 | L21: 0 | O21: 0
B22: 0 | C22: 0 | D22: 0 | E22: 0 | F22: 0 | G22: 0 | H22: 0 | I22: 0 | L22: 0 | O22: 0
B23: 0 | C23: 0 | D23: 0 | E23: 0 | F23: 0 | G23: 0 | H23: 0 | I23: 0 | L23: 0 | O23: 0
B24: 0 | C24: 0 | D24: 0 | E24: 0 | F24: 0 | G24: 0 | H24: 0 | I24: =+H24-G24 -> 0 | L24: =H24+K24 -> 0 | O24: =L24+N24 -> 0
B25: 0 | C25: 0 | D25: 0 | E25: 0 | F25: 0 | G25: 0 | H25: 0 | I25: 0 | L25: 0 | O25: 0
B26: 0 | C26: 0 | D26: 0 | E26: 0 | F26: 0 | G26: 0 | H26: 0 | I26: 0 | L26: 0 | O26: 0
B27: 0 | C27: 0 | D27: 0 | E27: 0 | F27: 0 | G27: 0 | H27: 0 | I27: 0 | L27: 0 | O27: 0
B28: 0 | C28: 0 | D28: 0 | E28: 0 | F28: 0 | G28: 0 | H28: 0 | I28: 0 | L28: 0 | O28: 0
B29: 0 | C29: 0 | D29: 0 | E29: 0 | F29: 0 | G29: 0 | H29: 0 | I29: 0 | L29: 0 | O29: 0
B30: 0 | C30: 0 | D30: 0 | E30: 0 | F30: 0 | G30: 0 | H30: 0 | I30: 0 | L30: 0 | O30: 0
B31: 0 | C31: 0 | D31: 0 | E31: 0 | F31: 0 | G31: =+C31+D31+E31-F31 -> 0 | H31: 0 | I31: 0 | L31: 0 | O31: 0
B32: 0 | C32: 0 | D32: 0 | E32: 0 | F32: 0 | G32: 0 | H32: 0 | I32: 0 | L32: 0 | O32: 0
B33: 0 | C33: 0 | D33: 0 | E33: 0 | F33: 0 | G33: 0 | H33: 0 | I33: 0 | L33: 0 | O33: 0
B34: 0 | C34: 0 | D34: 0 | E34: 0 | F34: 0 | G34: 0 | H34: 0 | I34: 0 | L34: 0 | O34: 0
B35: 0 | C35: 0 | D35: 0 | E35: 0 | F35: 0 | G35: 0 | H35: 0 | I35: 0 | L35: 0 | O35: 0
B36: 0 | C36: 0 | D36: 0 | E36: 0 | F36: 0 | G36: 0 | H36: 0 | I36: 0 | L36: 0 | O36: 0
B37: 0 | C37: 0 | D37: 0 | E37: 0 | F37: 0 | G37: 0 | H37: 0 | I37: 0 | L37: 0 | O37: 0
B38: 0 | C38: 0 | D38: 0 | E38: 0 | F38: 0 | G38: 0 | H38: 0 | I38: 0 | L38: 0 | O38: 0
B39: 0 | C39: 0 | D39: 0 | E39: 0 | F39: 0 | G39: 0 | H39: 0 | I39: 0 | L39: 0 | O39: 0
B40: 0 | C40: 0 | D40: 0 | E40: 0 | F40: 0 | G40: 0 | H40: 0 | I40: 0 | L40: 0 | O40: 0
B41: 0 | C41: 0 | D41: 0 | E41: 0 | F41: 0 | G41: 0 | H41: 0 | I41: 0 | L41: 0 | O41: 0
B42: 0 | C42: 0 | D42: 0 | E42: 0 | F42: 0 | G42: 0 | H42: 0 | I42: 0 | L42: 0 | O42: 0
B43: 0 | C43: 0 | D43: 0 | E43: 0 | F43: 0 | G43: 0 | H43: 0 | I43: 0 | L43: 0 | O43: 0
B44: 0 | C44: 0 | D44: 0 | E44: 0 | F44: 0 | G44: 0 | H44: 0 | I44: =+H44-G44 -> 0 | L44: =H44+K44 -> 0 | O44: =L44+N44 -> 0
B45: 0 | C45: 0 | D45: 0 | E45: 0 | F45: 0 | G45: 0 | H45: 0 | I45: 0 | L45: 0 | O45: 0
B46: 0 | C46: 0 | D46: 0 | E46: 0 | F46: 0 | G46: 0 | H46: 0 | I46: 0 | L46: 0 | O46: 0
B47: 0 | C47: 0 | D47: 0 | E47: 0 | F47: 0 | G47: 0 | H47: 0 | I47: 0 | L47: 0 | O47: 0
B48: 0 | C48: 0 | D48: 0 | E48: 0 | F48: 0 | G48: 0 | H48: 0 | I48: 0 | L48: 0 | O48: 0
B49: 0 | C49: 0 | D49: 0 | E49: 0 | F49: 0 | G49: 0 | H49: 0 | I49: 0 | L49: 0 | O49: 0
B50: 0 | C50: 0 | D50: 0 | E50: 0 | F50: 0 | G50: 0 | H50: 0 | I50: 0 | L50: 0 | O50: 0
B51: 0 | C51: 0 | D51: 0 | E51: 0 | F51: 0 | G51: 0 | H51: 0 | I51: 0 | L51: 0 | O51: 0
B52: 0 | C52: 0 | D52: 0 | E52: 0 | F52: 0 | G52: 0 | H52: 0 | I52: 0 | L52: 0 | O52: 0
B53: 0 | C53: 0 | D53: 0 | E53: 0 | F53: 0 | G53: 0 | H53: 0 | I53: 0 | L53: 0 | O53: 0
B54: 0 | C54: 0 | D54: 0 | E54: 0 | F54: 0 | G54: 0 | H54: 0 | I54: 0 | L54: 0 | O54: 0
B55: 0 | C55: 0 | D55: 0 | E55: 0 | F55: 0 | G55: 0 | H55: 0 | I55: 0 | L55: 0 | O55: 0
B56: 0 | C56: 0 | D56: 0 | E56: 0 | F56: 0 | G56: 0 | H56: 0 | I56: 0 | L56: 0 | O56: 0
B57: 0 | C57: 0 | D57: 0 | E57: 0 | F57: 0 | G57: 0 | H57: 0 | I57: =+H57-G57 -> 0 | L57: =H57+K57 -> 0 | O57: =L57+N57 -> 0
B58: 0 | C58: 0 | D58: 0 | E58: 0 | F58: 0 | G58: 0 | H58: 0 | I58: 0 | L58: 0 | O58: 0
B59: 0 | C59: 0 | D59: 0 | E59: 0 | F59: 0 | G59: 0 | H59: 0 | I59: 0 | L59: 0 | O59: 0
A60: Total for the Reporting Period | B60: =SUM(B10:B59) -> 0 | C60: 0 | D60: 0 | E60: 0 | F60: 0 | G60: 0 | H60: 19257.43337 | I60: 19257.43337 | L60: 19257.43337 | O60: 19257.43337
A62: * Includes interest income, income generating activites etc.

Sheet Budget Variance_2E
A1: Ongoing Progress Update and Disbursement Request
A2: Section 2: Financial Information
A4: E. Total Principal Recipient Budget Variance and Funding Absorption Analysis
D6: Principal Recipient
D7: Budget for Reporting Period | E7: Actual Grant Cash Out-Flow - Cash Basis for Reporting Period | F7: Budget Vs Actual Variances | G7: Absorption Capacity | H7: Reasons for Variance | J7: Cumulative Budget through period of Progress Update | K7: Cumulative Actual Grant Cash-Outflow - Cash Basis through period of Progress Update | L7: Cumulative Budget Vs Actuals Variances | M7: Absorption Capacity | N7: Reasons for Variance
B8: 1. Total Principal Recipient cash outflow vs. budget | D8: =SUM(D9:D10) -> 2324385.037 | E8: =SUM(E9:E10) -> 2781193.664 | F8: =IF(D8="",IF(E8="","",D8-E8),D8-E8) -> -456808.627 | G8: =E8/D8 -> 1.196528811 | J8: =SUM(J9:J10) -> 11182991.92 | K8: =SUM(K9:K10) -> 7525670.249 | L8: =IF(J8="",IF(K8="","",J8-K8),J8-K8) -> 3657321.67 | M8: =K8/J8 -> 0.6729567814
B9: 1a. Principal Recipient's total expenditures (including any direct-disbursements to third-parties) | D9: 2101107.559 | E9: ='PR Cash Reconciliation_2A,B,C'!D18+'PR Cash Reconciliation_2A,B,C'!D19+'PR Cash Reconciliation_2A,B,C'!D21 -> 2448490.025 | F9: =IF(D9="",IF(E9="",0,D9-E9),D9-E9) -> -347382.4653 | G9: =E9/D9 -> 1.165333023 | H9: The net variance of EUR (-347,382) is derived from the following components: Positive Variance EUR 622,424 includes: EUR 1,171 - Actual unit price of fuel turned to be less than projected/budgeted. From the programmatic point of view, activities were performed as planned, though required quantity of fuel was less, despite the 6 months no cost extension period. EUR 533,221- Saving in procurement of SLD include: recalculation of needs; tendency of decreasing the prevalence of TB; BDQ Donation program provided the medicine free-of-charge; General tendency of decreasing cost of TB medicines through GDF; The saving was reallocated partly for no-cost extension and partly for different new activities initiated by PR in agreement with TGF. EUR 42,779 – Actual PSM costs related to SLD and procurement of GeneXperts was less than budgeted. EUR 45,252- Actual cost for Cash Incentives (Sensitive & MDR) was less than budgeted due to actual number of patients (slightly less than projected). Most importantly, budget was made assuming max (100%) compliance to treatment. Reimbursed period covers December 2015- November 2016. The savings were reduced due to no cost extension period. Negative Variance EUR 969,806 includes: EUR 459,253 – overspending in HPHE resulted due to the 6 months extension period PR procured additional lab supplies to cover TB centre needs and launched new activities in agreement with TGF. EUR 4,668 – Procurement of printing of statistical forms for TB Centre (reallocation request approved on 06/02/2015) EUR 6,106- HR costs for cash incentive administration was higher than budgeted due to 6 months no-cost extension. EUR 9,585 – Actual cost for GLC mission was greater than budgeted due to FX rate change. EUR 131,395 – Construction of prefabricated TB DOT center was not budgeted under IE and funds were reallocated from savings, in addition procurement of mobile phones for VOT. EUR 358,799 - Project management actual costs were higher than budgeted due to the following reasons: 6 months no cost extension, HR costs for HIV grant compensated under TB grant (1Q2Q2016); new activities implemented in agreement to TGF such as: transition plan (reallocation request approved on 09/02/16), attending ECHO training and Estonia Study tour (reallocation request approved on 23/08/16 and 02/03/2016) ; projects on country-wide advocacy, communication and social mobilization campaign using Georgian Orthodox Church and project aiming increasing the TB awareness in educational institutions (schools and universities) and seminars for media. (Reallocation request approved on 28/02/2016). Commitments to be reimbursed during the 6 months close-out period from the savings under TB SSF grant are following- Total EUR 635,296 includes: EUR 2,297– SRs fuel costs for December, payment transferred to January 2017. EUR 17,364 – Committed payment for Cash Incentives (Sensitive & MDR) for December 2016; EUR 88,148 – Commitments for: PR fuel cost for December 2016, payable in January 2017; cost for Transitions plan payable in January 2017; Payments transferred to the year 2017 for ERP system development and procurement of infrastructure equipment, to accommodate ERP system development; EUR 698 – remaining Payment for the quality control of pharmaceuticals. EUR 106,307 – Commitment for the construction works of prefabricated TB DOT Centre. EUR 15,028 – Contract signed for MGIT Test Systems upon request of TB Centre. EUR 405,455 – Commitment to the TB NFM Grant in the amount of USD 428,004 | J9: =(D9)+8042499.32321101 -> 10143606.88 | K9: ='PR Cash Reconciliation_2A,B,C'!D18+'PR Cash Reconciliation_2A,B,C'!D19+'PR Cash Reconciliation_2A,B,C'!D21+'PR Cash Reconciliation_2A,B,C'!C18+'PR Cash Reconciliation_2A,B,C'!C19+'PR Cash Reconciliation_2A,B,C'!C21 -> 6616291.882 | L9: =IF(J9="",IF(K9="",0,J9-K9),J9-K9) -> 3527315 | M9: =K9/J9 -> 0.6522622533 | N9: The net variance of EUR 3,527,315 is derived from the following components: Savings – Total EUR 3,891,627 includes: EUR 56,090 - Actual unit price of fuel turned to be less than projected/budgeted. From the programmatic point of view, activities were performed as planned, though required quantity of fuel was less; Fuel cost budgeted under line 4.7 (b) was cancelled due to the following factor: the adherence data is collected and monitored on a regular basis by regional coordinators with further submission to the TB Centre. Activity related to the on site monitoring of the cash incentive scheme was abolished, considering that it is being performed under the current set-up of the scheme. EUR 122,297 - Procurement of lab supplies and respirators (HPHE) caused saving, due to the following factors: 1. Local procurement with competitive bidding with preceding market assessment derived significantly cheaper unit costs compared to the budgeted amounts; 2. Available stock; 3. Re-calculation of average consumption rates; Resulted Savings were reduced by new activities implemented by PR in agreement with TGF and 6 months no cost extension. EUR 766,568- Actual cost of Cash incentives (Sensitive & MDR) covered period June 2014 – November 2016 and was less than budgeted. The following are the reasons for saving: Sensitive - budgeted amount was calculated for 1 year period covering 70% of all sensitive patients with 100% adherence (both installments). Actually patients enrolled in January - May, 2014 did not fit for being beneficiary of the scheme as approved scheme was enrolling patients starting June 1. MDR - budgeted amount was calculated for the entire treatment course (15 months) covering 75% of MDR patients from the 2012, 2013, 2014 cohorts, with100% adherence (all weeks on outpatient treatment). Actually, 5 months were covered, payments started in August, there was no 100% compliance in many cases and number of patients was less than projected/budgeted. EUR 2,632,371– Net saving mainly derived from procurement of SLD, that include several reasons: recalculation of needs; tendency of decreasing prevalence of TB; BDQ Donation program provided the medicine free-of-charge; General tendency of decreasing cost of TB medicines through GDF; The latter saving was used to cover new activities implemented by PR in agreement with TGF, 6 months no cost extension and commitment to TB NFM grant in the amount of USD 428,004. Also procurement of Side effect drugs resulted in savings due to lower unit cost and by State budget financing. EUR 268,492 - Actual PSM costs related to SLD and procurement of Genxperts was less than budgeted. EUR 45,809 – Saving in Project Management costs such as Audit cost, Fuel, supervisions occured less than budgeted, FX rate Change had also effect. Overspending – Total EUR 364,312 includes: EUR 3,517 – Procurement of printing of statistical forms for TB Centre (reallocation request approved on 06/02/2015) ; EUR 131,109 – Construction of prefabricated TB DOT center was not budgeted under IE and funds were reallocated from savings, in addition procurement of mobile phones for VOT. EUR 17,708 – Actual cost for GLC mission was greater than budgeted due to FX rate change. EUR 1,830- HR costs for cash incentive administration was higher than budgeted due to 6 months no-cost extension. EUR 210,148 - Project management actual costs were higher than budgeted due to the following reasons: 6 months no cost extension, HR costs for HIV grant compensated under TB grant (1Q2Q2016); new activities implemented in agreement to TGF such as: transition plan (reallocation request approved on 09/02/16), attending ECHO training and Estonia Study tour (reallocation request approved on 23/08/16 and 02/03/2016) ; projects on country-wide advocacy, communication and social mobilization campaign using Georgian Orthodox Church and project aiming increasing the TB awareness in educational institutions (schools and universities) and seminars for media. (Reallocation request approved on 28/02/2016). Commitments to be reimbursed during the 6 months close-out period from the savings under TB SSF grant are following- Total EUR 635,296 includes: EUR 2,297– SRs fuel costs for December, payment transferred to January 2017. EUR 17,364 – Committed payment for Cash Incentives (Sensitive & MDR) for December 2016; EUR 88,148 – Commitments for: PR fuel cost for December 2016, payable in January 2017; cost for Transitions plan payable in January 2017; Payments transferred to the year 2017 for ERP system development and procurement of infrastructure equipment, to accommodate ERP system development; EUR 698 – remaining Payment for the quality control of pharmaceuticals. EUR 106,307 – Commitment for the construction works of prefabricated TB DOT Centre. EUR 15,028 – Contract signed for MGIT Test Systems upon request of TB Centre. EUR 405,455 – Commitment to the TB NFM Grant in the amount of USD 428,004
B10: 1b. Disbursements to sub-recipients | D10: 223277.4776 | E10: ='PR Cash Reconciliation_2A,B,C'!D20 -> 332703.6393 | F10: =IF(D10="",IF(E10="",0,D10-E10),D10-E10) -> -109426.1617 | G10: 1.49009046 | H10: The reporting period relates to the activities performed by the TB center for January 2016 - December 2016, but according to the contract, SR received reimbursement for December 2015 -November 2016 services (EUR 313,447 ) and advance payment (EUR 19,257). The latter was deducted from the payment made by PR in January 2017 to cover services performed in December 2016. Due to 6 months no cost-extension period actual expenses were higher than budgeted resulting in Net Variance of (-109,426 EUR). Commitments EUR 30,046- December service cost, out of which EUR 19,257 advance payment was deducted and reimbursed in January 2017. | J10: =(D10)+816107.558863334 -> 1039385.036 | K10: ='PR Cash Reconciliation_2A,B,C'!D20+'PR Cash Reconciliation_2A,B,C'!C20 -> 909378.3666 | L10: =IF(J10="",IF(K10="",0,J10-K10),J10-K10) -> 130006.6699 | M10: 0.8749196252 | N10: The Budget relates to the activities performed by the TB Center in April 2014-December 2016. During the cumulative period SR received payment for April 2014-Novemebr 2016 services in the amount of EUR 890,121 and advance payment with remaining balance of EUR 19,257, The latter was deducted from the payment made by PR in January 2017 to cover services performed in December 2016. SR performed all budgeted programatic activities and faced Savings. The Major part of savings was absorbed by 6 months no cost extension. The Positive variance in the amount of EUR 130,007 related to TB Center performance includes: Saving EUR 106,851 - mainly unspent vehicle maintenance costs; less transportation incentives for patients; TA and ME costs were less than budgeted. Commitments EUR 30,046- December service cost, out of which EUR 19,257 advance payment was deducted and reimbursed in January 2017. Negative Variance EUR 6, 891 – Due to 6 months no cost-extension period actual expenses for HR and trainings were higher than budgeted.
B12: Procurement data for analytical purposes | D12: Budget for Reporting Period | E12: Actual Grant Cash Out-Flow - Cash Basis for Reporting Period | F12: Budget Vs Actual Variances | G12: Absorption Capacity | H12: Reasons for Variance | J12: Cumulative Budget through period of Progress Update | K12: Cumulative Actual Grant Cash-Outflow - Cash Basis through period of Progress Update | L12: Cumulative Budget Vs Actuals Variances | M12: Absorption Capacity | N12: Reasons for Variance
B13: 2. Total pharmaceutical & non-pharmaceutical incl. equipment expenditures vs. budget | D13: =D14+D15 -> 1598519.246 | E13: =E14+E15 -> 1524550.345 | F13: =IF(D13="",IF(E13="","",D13-E13),D13-E13) -> 73968.90086 | G13: =E13/D13 -> 0.9537266123 | J13: =J14+J15 -> 7336969.863 | K13: =K14+K15 -> 4582301.71 | L13: =IF(J13="",IF(K13="","",J13-K13),J13-K13) -> 2754668.153 | M13: =K13/J13 -> 0.6245496159
B14: 2a. Health Products- Pharmaceutical Products | D14: 1151470.353 | E14: 618248.9391 | F14: =IF(D14="",IF(E14="",0,D14-E14),D14-E14) -> 533221.4138 | G14: =E14/D14 -> 0.5369212829 | H14: The budget relates to pharmaceuticals procured locally as well as through the GDF. The Positive variance EUR 533,221 is due to the following savings: EUR 509,594 - Saving in procurement of SLD include: recalculation of needs; tendency of decreasing prevalence of TB; BDQ Donation program provided the medicine free-of-charge; General tendency of decreasing cost of TB medicines through GDF; Commitment to NFM Grant in the amount of USD 428,004 will be financed from the saving. EUR 2,988 –The activity was canceled. Procurement (water for injectibles) was carried out by TB Centre. EUR 20,640 – Procurement of side effects drugs cancelled, as the activity was budgeted under the state budget. | J14: =(D14)+4358024.97025976 -> 5509495.323 | K14: =(E14)+2258875.44339463 -> 2877124.383 | L14: =IF(J14="",IF(K14="",0,J14-K14),J14-K14) -> 2632370.941 | M14: =K14/J14 -> 0.5222119657 | N14: The budget relates to pharmaceuticals procured locally as well as through the GDF. The Net positive variance EUR 2,632,371 is due to several reasons: EUR 2,548,769– Net saving in procurement of SLD include several reasons: recalculation of needs; tendency of decreasing prevalence of TB; BDQ Donation program provided the medicine free-of-charge; General tendency of decreasing cost of TB medicines through GDF; The total saving was used for the following activities in agreement with TGF: approved reallocation requests related to new projects such as VOT and procurement of mobile ambulatories; construction of prefabricated TB DoT Centre, procurement of lab equipment for TB center and etc. Commitment to NFM Grant in the amount of USD 428,004 will also be financed from the saving. EUR 1,069 – Line 3.10 was cancelled (ref. PR letter to GF19/11/2014) as the pharmaceutical was included in the GDF Order (Act. 3.1.a) EUR 5,984 –The activity was canceled. Procurement (water for injectibles) was carried out by TB Centre. EUR 76,548 – Cost of Procurement side effects drugs was less than budgeted due to the decreasing number of patients and low prices derived through the local procurement (tender). In addition Procurement of side effects drugs in the year 2016 was cancelled, as the activity was included in the state budget.
B15: 2b. Health Products - Non-Pharmaceuticals & Equipment | D15: 447048.8931 | E15: 906301.406 | F15: =IF(D15="",IF(E15="",0,D15-E15),D15-E15) -> -459252.5129 | G15: 2.027298177 | H15: The budget relates to internationally and locally procured lab supplies, consumables and equipment. Reasons for negative variance in the amount of EUR 459,253 are following: Due to the 6 months extension period PR procured additional lab supplies to cover TB centre needs,; Procurement of 19 GeneXpert machines and cartridges to meet the need for 2016-2017 years which was originally planned in the NFM but due to the change of the NFM launch date was moved within the extension period; in addition procurement of Laboratory equipment for TB center in agreement with TGF (reallocation request approved on 06/11/2015); Procurement of cold boxes and audiometers (reallocation request approved on 01/12/2015); Procurement of mobile ambulatories (reallocation request approved on 01/12/2015) Commitment EUR 15,028 – MGIT test procurement (signed contract) to be paid in the year 2017. | J15: =(D15)+1380425.64663347 -> 1827474.54 | K15: =(E15)+798875.921170987 -> 1705177.327 | L15: =IF(J15="",IF(K15="",0,J15-K15),J15-K15) -> 122297.2125 | M15: 0.9330785683 | N15: The budget relates to internationally and locally procured lab supplies, consumables and equipment. Reasons for Net positive variance ( EUR 122,297) are following: The main Driver of savings from procurement of lab supplies and respirators are derived from 1. Local procurement with competitive bidding with preceding market assessment derived significantly cheaper unit costs compared to the budgeted amounts; 2. Available stocks; 3. Re-calculation of average consumption rates; Despite the above The total savings were reduced by the new activities budgeted under TB grant and 6 months no cost extension during the year 2016: PR procured additional lab supplies to cover TB centre needs for extension period; Procurement of 19 GeneXpert machines and cartridges to meet the need for 2016-2017 years which was originally planned in the NFM but due to the change of the NFM launch date was moved within the extension period; in addition procurement of Laboratory equipment for TB center in agreement with TGF (reallocation request approved on 06/11/2015); Procurement of cold boxes and audiometers (reallocation request approved on 01/12/2015); Procurement of mobile ambulatories (reallocation request approved on 01/12/2015). Commitment EUR 15,028 – MGIT test procurement (signed contract) to be paid in the year 2017.
A18: For LFA Use Only
A19: E. Total Principal Recipient Budget Variance and Absorption Analysis
D21: Local Fund Agent (LFA)
D22: Budget for Reporting Period | E22: Actual Grant Expenditure - Cash Basis for Reporting Period | F22: Budget Vs Actual Variances | G22: Absorption Capacity | H22: LFA comments on thePrincipal Recipient's explanation of variances | J22: Cumulative Budget through period of Progress Update | K22: Cumulative Actual Grant Expenditure - Cash Basis through period of Progress Update | L22: Cumulative Budget Vs Actuals Variances | M22: Absorption Capacity | N22: LFA comments on the Principal Recipient's explanation of variances
B23: 1. Total Principal Recipient cash outflow vs. budget | D23: =SUM(D24:D25) -> 0 | E23: =SUM(E24:E25) -> 2781193.664 | F23: =IF(D23="",IF(E23="","",D23-E23),D23-E23) -> -2781193.664 | G23: =E23/D23 ->  | J23: =SUM(J24:J25) -> 0 | K23: 2781193.664 | L23: =IF(J23="",IF(K23="","",J23-K23),J23-K23) -> -2781193.664 | M23: =K23/J23 -> 
B24: 1a. Principal Recipient's total expenditures (including any direct-disbursements to third-parties) | D24: 0 | E24: ='PR Cash Reconciliation_2A,B,C'!H18+'PR Cash Reconciliation_2A,B,C'!H19+'PR Cash Reconciliation_2A,B,C'!H21 -> 2448490.025 | F24: =IF(D24="",IF(E24="",0,D24-E24),D24-E24) -> -2448490.025 | J24: 0 | K24: ='PR Cash Reconciliation_2A,B,C'!F18+'PR Cash Reconciliation_2A,B,C'!F19+'PR Cash Reconciliation_2A,B,C'!F21+E24 -> 2448490.025 | L24: =IF(J24="",IF(K24="",0,J24-K24),J24-K24) -> -2448490.025 | M24: =K24/J24 -> 
B25: 1b. Disbursements to sub-recipients | D25: 0 | E25: ='PR Cash Reconciliation_2A,B,C'!H20 -> 332703.6393 | F25: =IF(D25="",IF(E25="",0,D25-E25),D25-E25) -> -332703.6393 | J25: 0 | K25: ='PR Cash Reconciliation_2A,B,C'!F20+E25 -> 332703.6393 | L25: =IF(J25="",IF(K25="",0,J25-K25),J25-K25) -> -332703.6393
B27: Procurement data for analytical purposes | D27: Budget for Reporting Period | E27: Actual Grant Expenditure - Cash Basis for Reporting Period | F27: Budget Vs Actual Variances | G27: Absorption Capacity | H27: LFA comments on the Principal Recipient's explanation of variances | J27: Cumulative Budget through period of Progress Update | K27: Cumulative Actual Grant Expenditure - Cash Basis through period of Progress Update | L27: Cumulative Budget Vs Actuals Variances | M27: Absorption Capacity | N27: LFA comments on the Principal Recipient's explanation of variances
B28: 2. Total pharmaceutical & non-pharmaceutical incl. equipment expenditures vs. budget | D28: =D29+D30 -> 0 | E28: =E29+E30 -> 0 | F28: =IF(D28="",IF(E28="","",D28-E28),D28-E28) -> 0 | G28: =E28/D28 ->  | J28: =J29+J30 -> 0 | K28: =K29+K30 -> 0 | L28: =IF(J28="",IF(K28="","",J28-K28),J28-K28) -> 0 | M28: =K28/J28 -> 
B29: 2a. Health Products- Pharmaceutical Products | D29: 0 | E29: 0 | F29: =IF(D29="",IF(E29="",0,D29-E29),D29-E29) -> 0 | J29: 0 | K29: 0 | L29: =IF(J29="",IF(K29="",0,J29-K29),J29-K29) -> 0 | M29: =K29/J29 -> 
B30: 2b. Health Products - Non-Pharmaceuticals & Equipment | D30: 0 | E30: 0 | F30: =IF(D30="",IF(E30="",0,D30-E30),D30-E30) -> 0 | J30: 0 | K30: 0 | L30: =IF(J30="",IF(K30="",0,J30-K30),J30-K30) -> 0

Sheet Procurement_3
M1: Ongoing Progress Review and Disbursement Request
M2: Section 3A: PR - Procurement and Supply Management
S4: Comments
M5: 1. Have you updated the Price Quality Reporting (PQR) with the required information on the pharmaceuticals and health products received during the period covered by this PU/DR’ (if applicable)? If health products procurement information has not been entered into the PQR, please explain why. ! For further guidance on PQR data entry, please refer to the guidelines. | R5: Select | S5: All the info on applicable health products procurement within this reporting period was entered into the PQR system. Following items were processed and submitted accordingly: 1. Second line anti -TB drugs procured through GDF/IDA. a. PO#GF-T/SSP/G-56;inv GEO/DP/14/4376-GS14441: 1. Bedaquiline-100 mg 188 tabs 34 packs 2. Moxifloxacin 400 mg tabs 332 packs, 3. Clofazimine 100mg-94 packs, 4. Cycloserine 250mg Caps ,4972 packs; 5. Linezolide 600mg tab ,1900 packs, 6. Capreomycin 1g powder for inj -30964 packs ; 7. Imipenem+Cilastatin inj. 1g (500mg+500mg) powder for inj- 16598 packs b. PO GF-T/SSP/G-235 /2; GEO/DP/15/5350-15000931 SO: 1. Kanamycin 1g/4 ml inj 10 amps- 480 packs 2. Amoxicillin+Clavulanate - FDC 500mg/125mg tab- 205 packs 3. TB testing consumables/test kits: PO#GF- T/ET/G-299 a) BACTEC MGIT 960 Supplement Kit 100s [245124] – 36 packs b) BD Biosciences TB testing consumables/test kits BACTEC MGIT 960 SIRE Kit 40s [245123] -25 packs c) BD Biosciences TB testing consumables/test kits BBL MGIT 7 ml Tube (100 tests) [245122] -60 packs 3. TB testing consumables/test: PO #GF-T/ET/G-334 SD BIOLINE TB Ag MPT64 Rapid [08FK50] 25 tests, 197 packs 4. TB molecular diagnostics: a. PO# GF –H/ET/G-366: 1. Geno Lyse V1 [51610],96 tests 10 packs; Hain Lifescience GmbH 2. GenoType MTBDRsl Version 2.0 [ 31796A] 96 tests- 10 packs. Hain Lifescience GmbH b. PO # GF-T/ET/G-262: GenoType MTBDRs 12s ,96 s[ 317,31796] 96 tests , 10 packs. Hain Lifescience GmbH 5. HIV RDT and EIA/test kits – PO# GF-H-T/ET/G-282: Advanced Quality HIV rapid Test [ITP02121-TC40] InTec Products Inc. (Xiamen, PR China) , -2010 tests. 6. TB testing consumables/test kits- – PO# GF-H-T/ET/G-299: 1. BACTEC MGIT 960 Supplement Kit 100s [245124] 2. BD Biosciences TB testing consumables/test kits BACTEC MGIT 960 SIRE Kit 40s [245123] 3. BD Biosciences TB testing consumables/test kits BBL MGIT 7 ml Tube (100 tests) [245122]
M7: 2. Based on the most up-to-date stock situation, are there any risks of stock-outs or expiries for the key pharmaceuticals & health products, listed below, at the central level in the next period of implementation? If yes, please comment.
M8: Key Pharmaceuticals & Health Products | O8: Risk of Stock-Out | P8: Risk of Expiry | Q8: Comment (if yes, please provide information on the specific items that are at risk of stock-out or expiry and the mitigation measures in place or to be implemented)
M9: 1. Anti-malaria medicines | O9: Select | P9: Select
M10: 2. Bed nets | O10: Select | P10: Select
M11: 3. In-Vitro Diagnostic Products | O11: Select | P11: Select
M12: 4. Condoms | O12: Select | P12: Select
M13: 5. Anti-retrovirals | O13: Select | P13: Select
M14: 6. Anti-TB medicines | O14: No | P14: Yes | Q14: About 47,000 sachets of PAS is expected to expire in coming 12 months. The issue was anticipated and communicated to GDF and the GF
M15: 7. Lab supplies (e.g. CD4, Viral Load, Cartridges…) | O15: Select | P15: Select
M16: 8. Other (Please specify in the "Comment" column) | O16: Select | P16: Select
M18: 3. Comment on additional issues related to the procurement and supply management of pharmaceuticals and health products.
M19: "Global Test" was contracted for quality check of 5 Anti - TB drugs using the competitive selection (e-tender). Sampling was made in Tbilisi , Batumi and Zugdidi TB facilities. Following products were tested: 1. Capreomycin for Injection . Powder, 1g , Vianex S.A. Greece 2. PAS , 5.52 g -Olainfarm, Latvia 3. Levofloxacin tabs, 250 mg - Micro Labs Limited, India 4. Pyrazinamide tabs, 400 mg, 24x28 ”Macleods Pharmaceuticals Ltd” India 5. Rifampicin 150mg/ Isoniazid 75 mg/ Pirazinamid 400 mg/ Ethambutol Hidrochlorid 275 mg, 24/28 –Lupin Ltd ,India No batches with out-of -specification results observed. Period of reporting: 1 November 2015 - 1 January 2017
M21: For LFA Use Only
M24: Section 3B: LFA-Verified Procurement and Supply Management Information
O27: PR's response | P27: LFA's response | Q27: LFA Comments/Analysis
M28: 1a. Has the PR updated the Price Quality Reporting (PQR) with the required information on the pharmaceuticals and health products received during the period covered by this PU/DR’ (if applicable)? (If health products procurement information has not been entered into the PQR, please explain why in comments box) | O28: =R5 -> Select | P28: Select
M30: 1b. Value of Pharmaceuticals and Health Products in the PQR
M31: (!) This table is included in the PU/DR form with the aim to improve completeness of information in the PQR system and not for comparing PQR amounts vis-à-vis expenditure per se. NB: PQR and expenditure amounts on health products may not be equal due to a timelag between payments and delivery of pharmaceuticals/health products. (!) For further guidance on PQR data entry, please refer to the guidelines.
M32: Reporting Currency
M33: PQR Product Categories | O33: Value of products received during reporting period | P33: Value of products entered by the PR and verified as correct by the LFA in the PQR during reporting period | Q33: Variance | R33: Reason for Variance | T33: Cumulative value of products received since the start of the grant | U33: Cumulative value of products verified as correct by the LFA in the PQR since the start of the grant | V33: Variance | W33: Reason for Variance
M34: 1. Anti-malaria medicines | Q34: =IF(O34="",IF(P34="","",O34-P34),O34-P34) ->  | V34: =IF(T34="",IF(U34="","",T34-U34),T34-U34) -> 
M35: 2. Bed nets
M36: 3. In-Vitro Diagnostic Products
M37: 4. Condoms
M38: 5. Anti-retrovirals
M39: 6. Anti-TB medicines
M40: 7. Indoor Residual Spraying (IRS)
M41: Total | O41: =SUM(O34:O40) -> 0 | P41: =SUM(P34:P40) -> 0 | Q41: =SUM(Q34:Q40) -> 0 | T41: =SUM(T34:T40) -> 0 | U41: =SUM(U34:U40) -> 0 | V41: =SUM(V34:V40) -> 0
M43: 2. Based on best information available to the LFA, are there any risks of drug stock-out or expiries at the central level in the next period of implementation? (If yes, please explain in comments box) ! This section should be completed by the LFA based on best information on stock at the central level available to the LFA and should not require dedicated visits for on-site checks of stocks.
M44: Key Pharmaceuticals & Health Products | O44: Risk of Stock-Out | P44: Risk of Expiry | Q44: Comment (if yes, please provide information on the specific items that are at risk of stock-out or expiry and the mitigation measures in place or to be implemented)
M45: 1. Anti-malaria medicines | O45: Select | P45: Select
M46: 2. Bed nets | O46: Select | P46: Select
M47: 3. In-Vitro Diagnostic Products | O47: Select | P47: Select
M48: 4. Condoms | O48: Select | P48: Select
M49: 5. Anti-retrovirals | O49: Select | P49: Select
M50: 6. Anti-TB medicines | O50: Select | P50: Select
M51: 7. Lab supplies (e.g. CD4, Viral Load, Cartridges…) | O51: Select | P51: Select
M52: 8. Other (Please specify in the "Comment" column) | O52: Select | P52: Select
M55: 3. LFA analysis of issues related to the procurement and supply management of pharmaceuticals and health products

Sheet Grant Management_4
B1: On-going Progress Update and Disbursement Request
B2: Section 4: Grant Management
B4: A. PR and LFA Comments on the Fulfilment of Conditions Precedent and/or Special Conditions Under the Grant Agreement
B6: ! Please include in this table the Condition Precedent number as per Grant Agreement and full text of Conditions Precedent and/or other special conditions due for fulfilment during this period or outstanding from previous periods. ! Some Special Conditions may apply to more than one period of grant implementation. Their fulfilment during one period does not automatically imply fulfilment in subsequent periods. The LFA should verify that the status of such conditions is reported by the PR during each period concerned. | N6: For LFA Use Only | X6: For the Global Fund Use Only
B7: Conditions Precedent and/or other special conditions | G7: Status | H7: PR Comments on Progress of Implementation | N7: Status | O7: LFA Analysis (this should not be a "Copy and Paste" of the comments provided by the PR) | X7: Validate Status | Y7: Country Team Comments
B8: CP1 Condition Precedent to Use of Funds for procurement of Second-Line Anti-Tuberculosis Drugs Prior to the use of Grant funds by the Principal Recipient to finance the procurement of second-line anti-tuberculosis drugs, the Principal Recipient shall deliver to the Global Fund the following items, each in form and substance satisfactory to the Global Fund: a. A current detailed MDR-TB expansion plan (including the number of MDR-TB patients to be treated and the list and quantifications of the medicines to be procured for the MDR-TB program reflecting the Principal Recipient’s finalized forecast for the Grant implementation period covered by this Agreement); and b. The national guidelines for programmatic management of MDR-TB, both of which have been developed in collaboration with a technical partner acceptable to the Global Fund. | G8: Met | H8: The condition was met for procurement of the SLDs in 2016 (Orders to GDF as per approved quantifications by TGF, no. SLD GEO/DP/16/5877, GEO/DP/16/5878, GEO/DP/16/5927 and GEO/DP/16/5976) The Order reflects forecast for the years of 2017 -2018 with quantifications approved by TGF and WHO Euro. The next Order is scheduled to take place in April, 2017 Bedaquiline Implementation Plan was developed and approved by the Global Fund on 2 April 2015. The updated National Guideline for Programmatic Management of MDR-TB was approved on 6 August, 2015 by the MoLHSA Guideline Board. | N8: Select | X8: =N8 -> Select
B9: SC1. No later than 31 December 2016 the CCM shall, or the Principal Recipient shall cause the CCM to submit a Budgeted Sustainability Plan for governmental take-over of financing for the first line TB medicines during the second year of the implementation, and gradual take-over of financing for the NTP by the end of the second implementation period, which at a minimum shall include the financing of second-line anti-tuberculosis medicines and patient support. | G9: Met | H9: The calculations implying gradual handover of the financial responsibilities to the government in 2016-2019 were drafted and integrated in the respective MTEF, as well as are stipulated under the National TB Strategy/Action Plan 2016-2020; The state budget law, 2017 integrates governmental commitments at 1 387 500 GEL. The amount covers funding for cash incentives for 300 beneficiaries (including the income tax), procurement of FLDs (fully), SLDs (up to 25% of total cost) and co-funding of laboratory tests (bacterioscopy and solid media investigations) and supplies (masks/respirators). Procurement of FLDs was carried out in November, 2016 using the GDF mechanism and fully financed via the state budget with the total value of 165 053.04 USD. | N9: Select | X9: =N9 -> Select
B10: SC2. No later than 30 days prior to a scheduled cash transfer that includes funds for the procurement of MDR-TB medicines, the Principal Recipient shall deliver to the Global Fund a pro forma invoice issued by the designated Procurement Agent of the Global Drug Facility, as delegated by the Green Light Committee Initiative. | G10: Met | H10: The condition was met for procurement of the medicines for the MDR-TB treatment for year 2016 (orders to GDF as per approved quantifications by the Global Fund, SLD GEO/DP/16/5877, GEO/DP/16/5878, GEO/DP/16/5927 and GEO/DP/16/5976 ). Bi-laterally signed invoices #16200750 SQ, 16200752 SQ, 16200754 SQ and 16200829 SQ related to the SLD procurement were submitted to GDF on November 11, 2016 | N10: Select | X10: Select
B11: SC3. The Principal Recipient shall cooperate with the Green Light Committee (the “GLC”) in GLC’s efforts to provide technical support and assistance to the Principal Recipient with respect to monitoring and the scaling-up of MDR-TB-related services provided in Georgia. Accordingly, the Principal Recipient shall budget and authorize the Global Fund to disburse up to a maximum of US$ 50,000, or such lower amount as may be agreed between the GLC and the Global Fund, each year to pay for the GLC services. | G11: Met | H11: The GLC fees were reflected in the GEO-T-NCDC Budget. GLC mission to Georgia took place on June 06-10, 2016 (rGLC EUROPE/Europe consultant Dr. Elmira Gurbanova) | N11: Select | X11: Select
B12: SC4. No later than 31 December 2016, the Government of Georgia shall, or the Principal Recipient shall cause the Government of Georgia to, prepare and provide a formal document describing the tuberculosis program coordination mechanisms, with clear segregation of the roles and responsibilities among the implementing entities in Georgia.In addition, the Principal Recipient shall confirm (as verified by the LFA) that each Sub-recipient contract complies with Articles 14, 18 (d) and 20 (a) of the Standard Terms and Conditions of this Agreement. | E12: Select | G12: Met | H12: The National TB Strategy/Action Plan Post-2016 integrates proposed model of TB governance with costed operational strategies implying all necessary components of TB service delivery, including coordination mechanisms, with clear segregation of the roles and responsibilities among the implementing entities in Georgia, etc. The document represents an integral part of the NFM application package and was approved by CCM and later by the Cabinet of Ministers. | N12: Select | X12: Select
G13: Select | N13: Select | X13: Select
E14: Select | G14: Select | N14: Select | X14: Select
E15: Select | G15: Select | N15: Select | X15: Select
G16: Select | N16: Select | X16: Select
E17: Select | G17: Select | N17: Select | X17: Select
G18: Select | N18: Select | X18: Select
G19: Select | N19: Select | X19: Select
E20: Select | G20: Select | N20: Select | X20: Select
E21: Select | G21: Select | N21: Select | X21: Select
E22: Select | G22: Select | N22: Select | X22: =N22 -> Select
E23: Select | G23: Select | N23: Select | X23: Select
E24: Select | G24: Select | N24: Select | X24: Select
E25: Select | G25: Select | N25: Select | X25: Select
E26: Select | G26: Select | N26: Select | X26: Select
E27: Select | G27: Select | N27: Select | X27: Select
E28: Select | G28: Select | N28: Select | X28: Select
E29: Select | G29: Select | N29: Select | X29: Select
E30: Select | G30: Select | N30: Select | X30: Select
E31: Select | G31: Select | N31: Select | X31: Select
E32: Select | G32: Select | N32: Select | X32: Select
E33: Select | G33: Select | N33: Select | X33: Select
E34: Select | G34: Select | N34: Select | X34: Select
E35: Select | G35: Select | N35: Select | X35: Select
E36: Select | G36: Select | N36: Select | X36: Select
E37: Select | G37: Select | N37: Select | X37: Select
G38: Select | N38: Select | X38: Select
G39: Select
G40: Select
G41: Select
G42: Select
G43: Select
G45: Select
G46: Select
G47: Select
B49: B. PR & LFA Review of Progress on Implementation of Outstanding Management Actions from Previous Disbursements
B50: ! Please list all issues raised in the last Performance Letter from the Global Fund or outstanding from previous Performance Letters, and comment on the progress. Please include the date of the Performance Letter and the item number.
N51: For LFA Use Only | X51: For the Global Fund Use Only
B52: Global Fund Management Actions | G52: Status | H52: PR Comments on Progress of Implementation | N52: Status | O52: LFA Review of PR Progress on Global Fund Management Actions | X52: Validate Status | Y52: Country Team Comments of PR Progress on Global Fund Management Actions
B53: M&E Issue 1: Reporting results for the indicator 3•4 "Laboratory-confirmed X/MDR-TB patients enrolled on second line anti-TB treatment in the specified calendar year" Required action: The PR is requested to ensure that the reporting for the indicator 3-4 is based on the actual number of the XDR/MDR-TB patients' as registered in the admissions forms and these results are included in the next progress updates. Timeline: ongoing | G53: Met | H53: PR worked with SR to ensure that the reporting on the said indicators is based on the actual number of the XDR/MDR-TB patients' as registered in the admissions forms. These results are included in the present progress update. | N53: Select | X53: =N53 -> Select
B54: M&E Issue 2: Management of the patients' registry in the Health Management System Required action: The Global Fund notes with concern this data quality issue and requests the PR to follow up with the SR to ensure that the patients' registry is completed and all required information is entered into the system. Timeline: ongoing.The PR is requested to update on the implementation of this management action with the next progress update by no later than 14 August 2015. | G54: Met | H54: PR is working with SR to support improving data-entry processes, including communicating the issue with management, articulating the issue at the meetings with SR staff, as well as by using official correspondence. As a part of his weekly routine M&E officer checks the progress on data entry. It should be emphasized that the process had significantly been improved since initiation of the current grant, though the compliance will further improved as the TB module is fully operationalized. | N54: Select | X54: =N54 -> Select
B55: M&E Issue 3: Reporting on the Impact and Outcome Indicators; Revision of Performance Framework Required action: a) The PR is requested to submit revised Performance Framework for the approval of the Global Fund which includes the targets set according to the latest methodology developed by the WHO. b) The PR is requested to submit revised Performance Framework to update the definitions of the reporting for cohorts according to the WH0 guidelines. c) The PR is requested to submit revised Performance Framework and exclude the line (3) "other retreatment cases" from the comments section of the indicator 3.1. Timeline: 15July 2015 | G55: Met | H55: All required changes were reflected in the PF and submitted to the TGF for approval on July 15. The approval was obtained with the Implementation Letter 2 on August 12. | N55: Select | X55: Select
B56: FM&S Issue 1: Recommendations to be addressed from the Audit of fiscal year 2014 Required Action: During the preparation for the Audit review of the financial statements for fiscal year 2015 we recommend the PR: a) To bring to the Secretariat's attention any specific regulations applied to the PR reporting and preparation of the financial statements, well in advance. The PR is requested to disclose these requirements already at the stage of review and approval of the TORs for the Audit of Financial Statements for fiscal year 2015. b) To further develop and refine the process of preparing the financial statements. c) To ensure that the procedures and related deadlines for all staff involved in preparation of the financial statements are developed in advance and formally documented. Timeline: The PR should submit to the Secretariat the TORs for the Audit review of the financial statements for fiscal year 2015 addressing the actions outlined by no later than 31July 2015. | G56: Met | H56: The required actions were taken/recommendations are considered and followed precisely. ToR was submitted to the TGF for review per indicated deadline. The actual service is procured and the Audit process has undergone by BDO. | N56: Select | X56: Select
B57: FM&S Issue 2: Recording the expenditures in existing bookkeeping system Required Action: a) The PR is expected to follow up on the integration of the new financial software in existing accounting systems. While this activity should have been implemented during the last reporting period and was postponed, the PR is requested to ensure that the transition is completed before the end of fiscal year 2015. Additionally, the Secretariat recommends the PR and SRs to produce semi-annual and monthly reports while reconciling between the financial reports and other accounting data, using MS Excel. b) The PR is requested to ensure that further automation process is taking place, to better facilitate the process of gathering information for the preparation of the grant program financial statements. Additionally, the PR should explore options to incorporate the accounting of PP and HPHE in the new financial software during its integration with the existing accounting systems by the end of fiscal year 2015. Timeline: The PR is requested to report on the progress made concerning the management actions outlined above with the submission of the next progress update by no later than 14 August 2015. | G57: Met | H57: PR and SR’s have integrated budget categories and lines in their existing accounting software and reports are reconciled with the accounting data on regular basis. PR has successfully initiated development of ERP system. Procurement of Microsoft Dynamics AX licenses was carried out under the Agreement between Government of Georgia and Microsoft. The service agreement on the development of ERP system is implemented by the “UGT Intelligent Software Solutions”, the winner identified through tender. The development process is in progress: Business process review, analyses and ToR was defined in the phase 1; Different Module configuration and customizations are carried out, alongside with PR staff trainings; Test and real-time environment is prepared; Testing on data/processes, preparing data for migration from current system to ERP, as well as integration with State treasury is in progress. The ERP system will go live by the end of May, 2017. NCDC started using of the Software for logistic PP and HPHE from 2015. Information regarding GF PIU assets was provided to the LIMS software managers two times during the last year - as of January 1st positions and of Jane 1st positions. However, during the roll out period some technical issues raised by NCDC logistic staff regarding the system, which is now under review (DITRA GH2 project in collaboration with USAD HSSP proved support to NCDC). PR made a decision to develop independent system from NCDC LIMS as a part of the ERP system. Meantime the excel based system is implied. | N57: Select | X57: Select
B58: HIMS Issue 3: Health Management System Module and reporting on cash incentive scheme Action required: The PR is invited to explore the options which will allow to enhance the HMIS module and the data recording mechanism currently being used, in order to facilitate the reporting on the indicators and to be able to generate the updates on the implementation of the cash incentive scheme. The PR is requested to report on the available options and on possible solutions which could enhance the module. Timeline: with submission of the next progress update by no later than 14 August 2015. | G58: Met | H58: The required action was taken: issue was communicated with USAID/HSSP and the respective changes were made to the software, enabling it to generate the reports on the number of patients who had received cash incentives at given period of time | N58: Select | X58: Select
B59: OSDV 2015 Issue 1 (moderate) The contracts of most of TB treatment units being under management of private entities will expire next year and those private health institutions will not be obliged anymore to provide TB treatment services. As a result there is a risk that in 2016 the mentioned health institutions can change their profile and stop providing TB treatment services to their patients. Timeline: end of 2015 Recommendation: PR should investigate this issue with the Ministry of Health and try to find a sustainable solution. | G59: Met | H59: The issue goes far beyond the control of PIU. The rights of the private entities are regulated through the respective legislation. The MoLHSA is well aware with the topic and closely following processes using available legal mechanisms to address the issue. Though we found minor inconsistency – as the agreements with private providers were signed back in 2011-2012 (double-checked). The providers committed to keep TB service points for the coming 7 years, i.e. minimum 2018. Though it was non-standard case of one TB service delivery point in Tbilisi located at the private institution. The management of the facility requested the TB point to move. The MoLHSA reacted immediately and the alternative venue (state-owned) for the TB service point was provided. In-line with the NSP post-2016 over the next program period, a number of measures are planned under the NFM to facilitate the provision of TB services by private providers. To uphold universal access to essential TB care in all areas of the country, the tasks and responsibilities of private providers will be formalized in annual service contracts with MoLHSA / SSA. These agreements will stipulate in detail the scope and volume of services to be provided. The payment conditions will be clearly articulated in the contracts, according to the payments methods (see above under financing and allocation). Additionally, the modes of cooperation, related to referrals and other processes, between private medical centers and public institutions (NCDCPH territorial units and laboratories, public hospitals) will be elaborated. | N59: Select | X59: Select
B60: OSDV 2015 Issue 2 (minor) In the drug inventory documents checked, the batch numbers and expiry dates for TB drugs were not specified (for both FLDs and SLDs). Furthermore, the pharmacy of NCTBLD doesn't indicate the batch numbers and corresponding expiry dates in "handling over documents/acts" that accompany drugs when they are supplied to the regional facilities and SDPs. Timeline: 31 December, 2015 Recommendation: All inventory documents should consistently carry the batch numbers and corresponding expiry dates for all TB drugs (both FLDs and SLDs) all along the distribution chain at all levels. | G60: Met | H60: PR worked closely with SR to follow with the issue on the batch numbers. For all medicines procured through the GEO-T-NCDC – numbers were incorporated within the warehouse el. registry (starting date January 2015). So, the NCTBLD pharmacy indicates/marks the batch numbers and corresponding drug expiry dates in the handover documents/acts accompanying drugs. As for the drugs delivered before the launch of the current Grant, SR is not able to incorporate it into the registry due to technical issues –the system does not allow entering data retrospectively. It was agreed with SR that the batch numbers will be entered manually into the handover documents/acts accompanying drugs at all levels - from central to regional and from regional to district/village level. | N60: Select | X60: Select
B61: OSDV 2015 Issue 3 (minor) There is no mechanism to allow for the redistribution of short-dated medicines. This results in a wastage of significant amount of drugs. Timeline: 31 December, 2015 Recommendation: 1. The PR should ensure that they routinely receive information on the shelf-life and stock-levels of TB medicines. 2. The PR should work with relevant stakeholders to develop a mechanism that enables either more frequent distribution with less stock-holding at SDPs or the redistribution of short-dated medicines in an effort to decrease wastage. | G61: Met | H61: PR has worked to identify the best mechanism to address this problem, such as short shelf-life drugs are ordered for shorter periods with zero buffer stock and with several shipments; monthly reports on stock at hand are obtained from SR including the information on expiration date; drugs are distributed on monthly basis, compared to the previously adopted quarterly based distribution. | N61: Select | X61: Select
G62: Select | N62: Select | X62: Select
G63: Select | N63: Select | X63: Select
G64: Select | N64: Select | X64: Select
G65: Select | N65: Select | X65: Select
G66: Select | N66: Select | X66: Select
G67: Select | N67: Select | X67: =N67 -> Select
G68: Select | N68: Select | X68: Select
G69: Select | N69: Select | X69: Select
G70: Select | N70: Select | X70: Select
G71: Select | N71: Select | X71: Select
G72: Select | N72: Select | X72: Select
G73: Select | N73: Select | X73: Select
G74: Select | N74: Select | X74: Select
G75: Select | N75: Select | X75: Select
G76: Select | N76: Select | X76: Select
G77: Select | N77: Select | X77: Select
G78: Select | N78: Select | X78: Select
G79: Select | N79: Select | X79: Select
G80: Select | N80: Select | X80: Select
G81: Select | N81: Select | X81: Select
G82: Select | N82: Select | X82: Select
G83: Select | N83: Select | X83: Select
B93: C. Comments on Annual Grant Reporting Requirements
B95: ! Please indicate a date for the report due for submission. If a report is overdue, indicate the original due date and explain the reason for delay. | N95: For LFA Use Only | X95: For the Global Fund Use Only
B96: Required Documentation | F96: Due date (dd-mmm-yy) | G96: Status | H96: Comments | N96: Due date (dd-mmm-yy) | P96: Status | T96: Comments | X96: Due date (dd-mmm-yy) | Y96: Validate Status | AC96: Country Team Comments
B97: PR Audit Report | F97: 2017-03-31 | G97: Preparation on track | H97: New deadline agreed with TGF is May 1, 2017 as a result of development of new reporting formats by TGF
B98: Annual Financial Report (AFR) / Enhanced Financial Report (EFR) | F98: 2017-03-01 | G98: Submitted to GF | H98: New deadline agreed with TGF is April 5, 2017 as a result of development of new reporting formats by TGF

Sheet PR-LFA Evaluation_5
A1: Ongoing Progress Update and Disbursement Request
A2: Section 5: PR and LFA Evaluation of Overall Performance
A4: A. PR's Overall Self-Evaluation of Grant Performance (including a summary of how financial performance is linked to programmatic achievements)
A5: ! The self-evaluation should be undertaken by taking into account programmatic achievements, financial performance and program issues in various functional areas (M&E, Finance, Procurement, and Program Management, including management of Sub-Recipients). See Guidelines for more detailed guidance.
A6: Absolute numbers of notified TB cases in Georgia continued to show the trend of decrease in 2016. It is worth mentioning that the trend of decrease is maintained also in re-treated cases that indicates the fact that program is on the right track. Program implementation went in-line with planned objectives, activities and timelines. The latter is well reflected in the overall grant performance - the top 10 indicators, whereas the results are either overachieved or are close to planned targets, several relatively low indicators are in line with the overall trend of decreasing TB cases in the country. Uninterrupted supply of treatment and diagnostic services to TB patients, as well as supervision and monitoring processes were well-maintained. All activities under the GEO-T-NCDC grant, including activities under the extension period (July-December 2016) is either completed or will be finalized during the grant closure period (before June 2017). all management actions raised within the MA EECA/TS/147-07/06/2016 were taken into account as articulated in the respective section of the PU/DR (Grant Management 4). Important projects and initiatives that were started during previous years were carried on further in 2016 i.e.: National TB center continued to implement mobile consilium project and carried out the initial and follow-up monitoring visits throughout the country, including penitentiary sector, whereas the decision on the enrollment the targeted patients based on the analysis of their clinical/diagnostic characteristics and risk assessment are carried out on-the-spot. Enrollment of patients on the new TB treatment continued in 2016. The routine programmatic implementation of Bedaquiline along with Delamanid is steadily progressing in Georgia. Based on the drug susceptibility data and the patient eligibility criteria it is estimated that on average around 8-10 patients should be enrolled on new TB drugs on monthly basis. Overall, as of December 2016, total of 311 patients were enrolled on new treatment regimens: • 246 patients were enrolled on Bedaquiline, out of which 20 were through compassionate use (CU) • 65 patients were enrolled on Delamanid, out of which 12 were through CU • 227 are still on treatment Within frames of USAID/SIAPS technical assistance Georgia has established an adequate pharmacovigilance system for TB in accordance with the latest Active Drug Safety Monitoring Guidelines. As a result of the effective collaboration between the National Center for Tuberculosis and Lung Diseases, USAID/SIAPS, MSF, NCDC and Ministry of Health a comprehensive mechanism for the mandatory reporting of the Serious Adverse Events has been created and approved by the Ministerial decree issued on May 18, 2016. Per the decree, the recording and reporting of all Serious Adverse Events (SAEs) occurring among all drug-resistant TB patients being on treatment has become the mandatory component of programmatic management of Drug Resistant TB (PMDT). Total of 275 TB doctors and PMDT staff have received the active PV training throughout the 16 training sessions of 3 days duration each covering the 100% of need. As of December 31, 2016 total number of 73 SAE terms have been reported to the NCTLD that have encountered to 48 (15%) out of 311 patients enrolled on new TB drugs by then. The year of 2016 also brought some innovative projects and groundbreaking initiatives: The pilot project for using GX machines in the general healthcare facilities to improve TB detection was included in the TB State Program and respective funds were allocated. Order was placed to Cepheid for procurement of additional 19 GX machines through the GF program. Delivery is expected in March 2017. Video Observed Therapy (VOT) project was launched in June. Patients are taking TB drugs with the direct supervision of nurse during the video call in Skype. 53 mobile phones were procured within the project and as of January 2017, 18 MDR-TB patients are on VOT treatment, with no single missed drug dose documented so far. Mobile Ambulatory project was initiated at the end of the year. 3 vans equipped with all necessary tools were procured and handed over to the national TB center. Extension for Community Healthcare Outcomes (ECHO) is another innovative project started in 2016, it is a collaborative model of medical education and care management that provides healthcare professionals with the knowledge and support their need to manage patients with TB. Using teleconference technology, it incorporates case review, consultation, and didactics for clinicians working with TB. Georgia team including PIU and participants from TB center attended the training course at the University of New Mexico. The implementation of TB ECHO project in Georgia is planned in 2017. The project will include TB facilities in regions and the national TB center will serve as an ECHO central clinic in the country. Two projects that aimed strengthening the involvement of the civil society organizations in TB related issues were implemented in 2016: 1. “Country-wide advocacy, communication and social mobilization campaign using Georgian Orthodox Church”; 2. “Increase the TB awareness in educational institutions (schools and universities) and seminars for media” Financial management: To accomplish set objectives two components can be outlined a) external to Georgia - communication with the donor (GFATM), and b) internal to Georgia – communication and reporting with the Ministries of Health and Finance, with NCDC, state statistics department, tax authorities, state revenue service, suppliers, service providers, etc. The former is smooth and efficient, which helps the stable and robust operations. PR has met all of the donor’s requests on the provision of financial and/or operational data. The PR has successfully procured audit service for the year 2016 through tender and contract is signed with BDO. The Audit of Consolidated financial statements is ongoing and as agreed audit report will be submitted in the beginning of May, 2017. PR has successfully initiated development of ERP system. Procurement of Microsoft Dynamics AX licenses was carried out under the Agreement between Government of Georgia and Microsoft. The service agreement on the development of ERP system is implemented by the “UGT Intelligent Software Solutions”, the winner identified through tender. The development process is in progress: Business process review, analyses and ToR was defined in the phase 1; Different Module configuration and customizations are carried out, alongside with PR staff trainings; Test and real-time environment is prepared; Testing on data/processes, preparing data for migration from current system to ERP, as well as integration with State treasury is in progress. The ERP system will go live by the end of May, 2017. During the current reporting period under SSF Grant the following disbursements were carried out by TGF: PR received EUR 2,226 K worth of three transfer and vendors through direct payment received EUR 737 K. In addition, in December 2016, PR received USD 444 K for the implementation of TB NFM Grant (starting from January 1, 2017). PR paid total of EUR 2,044 K to the vendors/providers/patients during the current reporting period. PR manages VAT smoothly. The total refunded amount during the year 2016 comprise EUR 47,988. The surplus of refundable VAT on the State Revenue Service system amounts EUR 37,975 as of 31/12/2016 and additional EUR 38,5 K is submitted as surplus in the first quarter of the year 2017. PR effectively manages TB Cash Incentive Scheme. Total cash incentives paid in the current reporting period is EUR 187 K (in addition EUR 156K was financed through the state budget- income tax and monthly 225 MDR patients) and covered period through December 2015- November 2016, for both MDR and sensitive TB patients.
A12: B. Planned Changes in the Program, if any
A19: C. External factors beyond the control of the Principal Recipient that have impacted or may impact the Program
A26: For LFA Use Only
A28: A. LFA Overall Evaluation and Rating of Grant Performance (including a summary of how financial performance is linked to programmatic achievements)
A29: ! The evaluation should be undertaken by taking into account programmatic achievements, financial performance and program issues in various functional areas (M&E, Finance, Procurement, and Program Management, including management of sub-recipients). See Guidelines for more detailed guidance on the completion of this section.
A31: Indicator rating | B31: Select | D31: Any major management issues resulting in downgrade? | E31: Select | G31: Overall Grant Rating | H31: Select
A40: B. LFA comments on PR planned changes in the program, if any
A49: C. LFA Comments on External Factors Beyond Control of the Principal Recipients that have impacted or may impact program

Sheet LFA_Findings&Recommendations_6
A1: Ongoing Progress Review and Disbursement Request
A2: For LFA Use Only
A3: Section 6: LFA Findings & Recommendations
A5: ! Based on the information provided in the previous sections and your understanding of the grant, please summarise any important management issues, proposing a recommendation for each. NB: an issue is considered as 'important' if it impacts or is likely to impact program implementation and results. ! Instead of repeating detailed descriptions of issues covered in other sections, it is acceptable to state the issue and reference the section containing the details.
A7: Functional Areas | C7: Description of Identified Issues (in order of importance) | F7: LFA Recommendations (in order of importance) | J7: Country Team Comments
A8: Select
A9: Select
A10: Select
A11: Select
A12: Select
A13: Select
A14: Select
A15: Select
A16: Select
A17: Select
A18: Select
A19: Select
A20: Select
A21: Select
A24: Select
A25: Yes
A26: No
A28: Select
A29: Program management (including SR management)
A30: Financial management and systems
A31: Monitoring and evaluation
A32: Pharmaceutical & health product management
A33: Other management issues, including: PR capacity to develop quality programmatic and financial reports

Sheet PR EFR_7A
A1: Ongoing Progress Update and Disbursement Request
A2: Section 7A: PR - Enhanced Financial Reporting
A4: Country | C4: =CoverSheet!D5 -> Georgia | F4: PLEASE REFER TO THE "GUIDANCE FOR COMPLETION OF THE ENHANCED FINANCIAL REPORTING TEMPLATE" DOCUMENT TO ASSIST YOU IN COMPLETING THE TEMPLATE
A5: Grant No. | C5: =CoverSheet!D7 -> GEO-T-NCDC
A6: PR | C6: =CoverSheet!D8 -> NCDC | F6: TO BE COMPLETED ONLY ONCE A YEAR
A7: Currency | C7: =CoverSheet!D11 -> EUR
A8: Disease(Component) | C8: =CoverSheet!D6 -> Tuberculosis | G8: dd-mm-yyyy | K8: dd-mm-yyyy
E9: Current Reporting Period | F9: Start Date: | G9: =CoverSheet!J7 -> 2016-01-01 | I9: Cumulative Reporting Period | J9: Start Date: | K9: 2014-04-01
F10: End Date: | G10: =CoverSheet!L7 -> 2016-12-31 | J10: End Date: | K10: =CoverSheet!L10 -> 2016-12-31
H11: The end date for the current reporting period and cumulative reporting period must be the same
C12: =CONCATENATE("EFR",SUBSTITUTE(SUBSTITUTE(C8,"/","")," ","")) -> EFRTuberculosis
C13: =CONCATENATE("SDA",SUBSTITUTE(SUBSTITUTE(C8,"/","")," ","")) -> SDATuberculosis | E13: The "TOTAL" rows in Table A, B and C will have a RED background if the amounts in each table do not agree. If the Totals for each Table agrees, these rows will have a YELLOW background.
A16: A- BREAKDOWN* BY EXPENDITURE CATEGORY | E16: Current Reporting Period | I16: Cumulative Reporting Period
A17: # | B17: Category | E17: Budget | F17: Expenditures | G17: Variance | H17: Reason for Variance | I17: Cumulative Budget | J17: Cumulative Expenditure | K17: Variance | L17: Reason for Variance
A18: 1 | B18: Human Resources | E18: 135454.1401 | F18: 336623.2958 | G18: =E18-F18 -> -201169.1557 | H18: PR Overspending of EUR (-152,767) – During HIV Grant Extension period, HR costs was covered from TB Grant, and also there was TB grant Extension HR had impact on overspending. SR Overspending of EUR (-48,402) – On one hand there was no need for recruiting additional staff (nurses at penitentiaries), also on HIV screening there were less patients than budgeted. It had saving impact. But on the other hand, there was additional 6 month no cost extension and HR costs exceeded the approved budget. Also, FX rate change had impact. Commitment EUR 10,142 – HR costs for December, 2016. Payment was made in January 2017. | I18: =(E18)+509565.69807758 -> 645019.8381 | J18: 759616.0239 | K18: =I18-J18 -> -114596.1858 | L18: PR Overspending of EUR (-123,198) – During HIV Grant Extension period, HR costs were covered from TB Grant, and also HR component under the TB grant Extension had impact on overspending. SR Saving of EUR 8,602 – Actual costs were less than budgeted, despite the no-cost extension period: this was resulted due to the fact that there was no need for recruiting additional staff (nurses at penitentiaries), and less patients needed HIV screening than budgeted. Commitment EUR 10,142 – HR costs for December, 2016. Payment was made in January 2017.
A19: 2 | B19: Technical Assistance | E19: 13420 | F19: 134674.3831 | G19: =E19-F19 -> -121254.3831 | H19: PR Overspending of EUR (-123,630) – due to 6 months no cost extension period and Project management costs attributed to HIV Grant during Extension period covered from TB grant. New activities, in agreement with TGF, were added: TB support and TB education projects, Transition plan. Commitment – EUR 23,290 – cost for Transitions plan payable in January 2017 SR Saving of EUR 2,376 – Actual TA costs were lee than budgeted. From the programmatic point of view, activities were performed as planned Commitment EUR 862 - TA costs for December, 2016. Payment was made in January 2017 | I19: =(E19)+173648 -> 187068 | J19: 204103.7111 | K19: =I19-J19 -> -17035.71106 | L19: PR Overspending of EUR (-48,058) – due to 6 months no cost extension period and Project management costs attributed to HIV Grant during Extension period covered from TB grant. New activities, in agreement with TGF, were added: TB projects involving NGOs and Transition plan. Commitment – EUR 23,290 – cost for Transitions plan was paid in January 2017 SR Saving of EUR 31,022 – Actual TA costs were less than budgeted. From the programmatic point of view, activities were performed as planned Commitment EUR 862 - TA costs for December, 2016. Payment was made in January 2017
A20: 3 | B20: Training | E20: 3000 | F20: 40894.17017 | G20: -37894.17017 | H20: PR overspending of EUR (- 31,062) - Due to 6 months no cost extension period and Project management costs attributed to HIV Grant during Extension period covered from TB grant. New activities, in agreement with TGF, were added: attending ECHO training and Estonia Study tour. SR overspending of EUR (-6,832) – Actual costs were higher than budgeted due to 6 months no cost extension period | I20: =(E20)+57800 -> 60800 | J20: 87800.91304 | K20: -27000.91304 | L20: PR overspending of EUR (- 21,764) - Due to 6 months no cost extension period and Project management costs attributed to HIV Grant during Extension period covered from TB grant. New activities, in agreement with TGF, were added: attending ECHO training and Estonia Study tour. SR overspending of EUR (- 5,237)– Due to 6 months no cost extension period actual costs were higher than budgeted and attending ECHO project was financed.
A21: 4 | B21: Health Products and Health Equipment | E21: 447048.8931 | F21: 906301.406 | G21: -459252.5129 | H21: The budget relates to internationally and locally procured lab supplies, consumables and equipment. Reasons for negative variance in the amount of EUR 459,253 are following: Due to the 6 months extension period PR procured additional lab supplies to cover TB centre needs,; Procurement of 19 GeneXpert machines and cartridges to meet the need for 2016-2017 years which was originally planned in the NFM but due to the change of the NFM launch date was moved within the extension period; in addition procurement of Laboratory equipment for TB center in agreement with TGF (reallocation request approved on 06/11/2015); Procurement of cold boxes and audiometers (reallocation request approved on 01/12/2015); Procurement of mobile ambulatories (reallocation request approved on 01/12/2015) Commitment EUR 15,028 – MGIT test procurement (signed contract) to be paid in the year 2017. | I21: =(E21)+1380425.64663347 -> 1827474.54 | J21: 1705177.327 | K21: 122297.2125 | L21: The budget relates to internationally and locally procured lab supplies, consumables and equipment. Reasons for Net positive variance ( EUR 122,297) are following: The main Driver of savings from procurement of lab supplies and respirators are derived from 1. Local procurement with competitive bidding with preceding market assessment derived significantly cheaper unit costs compared to the budgeted amounts; 2. Available stocks; 3. Re-calculation of average consumption rates; Despite the above The total savings were reduced by the new activities budgeted under TB grant and 6 months no cost extension during the year 2016: PR procured additional lab supplies to cover TB centre needs for extension period; Procurement of 19 GeneXpert machines and cartridges to meet the need for 2016-2017 years which was originally planned in the NFM but due to the change of the NFM launch date was moved within the extension period; in addition procurement of Laboratory equipment for TB center in agreement with TGF (reallocation request approved on 06/11/2015); Procurement of cold boxes and audiometers (reallocation request approved on 01/12/2015); Procurement of mobile ambulatories (reallocation request approved on 01/12/2015). Commitment EUR 15,028 – MGIT test procurement (signed contract) to be paid in the year 2017.
A22: 5 | B22: Medicines and Pharmaceutical Products | E22: 1151470.353 | F22: 618248.9391 | G22: 533221.4138 | H22: The budget relates to pharmaceuticals procured locally as well as through the GDF. The Positive variance EUR 533,221 is due to the following savings: EUR 509,594 - Saving in procurement of SLD include: recalculation of needs; tendency of decreasing prevalence of TB; BDQ Donation program provided the medicine free-of-charge; General tendency of decreasing cost of TB medicines through GDF; Commitment to NFM Grant in the amount of USD 428,004 will be financed from the saving. EUR 2,988 –The activity was canceled. Procurement (water for injectibles) was carried out by TB Centre. EUR 20,640 – Procurement of side effects drugs cancelled, as the activity was budgeted under the state budget. | I22: =(E22)+4358024.97025976 -> 5509495.323 | J22: 2877124.383 | K22: 2632370.941 | L22: The budget relates to pharmaceuticals procured locally as well as through the GDF. The Net positive variance EUR 2,632,371 is due to several reasons: EUR 2,548,769– Net saving in procurement of SLD include several reasons: recalculation of needs; tendency of decreasing prevalence of TB; BDQ Donation program provided the medicine free-of-charge; General tendency of decreasing cost of TB medicines through GDF; The total saving was used for the following activities in agreement with TGF: approved reallocation requests related to new projects such as VOT and procurement of mobile ambulatories; construction of prefabricated TB DoT Centre, procurement of lab equipment for TB center and etc. Commitment to NFM Grant in the amount of USD 428,004 will also be financed from the saving. EUR 1,069 – Line 3.10 was cancelled (ref. PR letter to GF19/11/2014) as the pharmaceutical was included in the GDF Order (Act. 3.1.a) EUR 5,984 –The activity was canceled. Procurement (water for injectibles) was carried out by TB Centre. EUR 76,548 – Cost of Procurement side effects drugs was less than budgeted due to the decreasing number of patients and low prices derived through the local procurement (tender). In addition Procurement of side effects drugs in the year 2016 was cancelled, as the activity was included in the state budget.
A23: 6 | B23: Procurement and Supply Management Costs | E23: 126085.1481 | F23: 83306.39597 | G23: 42778.75216 | H23: PR -Saving of EUR 42,779 – Actual PSM cost was less than budgeted. Saving mainly was occurred due to the savings in MPP categories. Commitment: EUR 698 – remaining Payment for the quality control of pharmaceuticals. | I23: =(E23)+480438.77937708 -> 606523.9275 | J23: 338031.5118 | K23: 268492.4157 | L23: PR -Saving of EUR 268,492 – Actual PSM cost was less than budgeted. Saving mainly was occurred due to the savings in MPP and HPHE categories. Commitment: EUR 698 – remaining Payment for the quality control of pharmaceuticals.
A24: 7 | B24: Infrastructure and Other Equipment | E24: 7864.182907 | F24: 191331.9395 | G24: -183467.7565 | H24: PR Overspending of EUR (-183,431) – Costs exceeded the budgeted amount due to the construction of new prefabricated TB DOT Center, procurement of mobile phones to implement VOT project and ERP system development costs. Saving from MPP category was reallocated. Commitment: EUR 64,548 Payments transferred to the year 2017 for ERP system development and procurement of infrastructure equipment, to accommodate ERP system development; EUR 106,307 – Commitment for the construction works of prefabricated TB DOT Centre. SR – Overspending of EUR (-37) – Actual vehicle maintenance costs were higher than budgeted due to 6 months no cost extension period | I24: =(E24)+80128.9025399315 -> 87993.08545 | J24: 232435.4989 | K24: -144442.4134 | L24: PR Overspending of EUR (-150,067) – Costs exceeded the budgeted amount due to the construction of new prefabricated TB DOT Center, procurement of mobile phones to implement VOT project and ERP system development costs. Saving from MPP category was reallocated. Commitment: EUR 64,548 Payments transferred to the year 2017 for ERP system development and procurement of infrastructure equipment, to accommodate ERP system development; EUR 106,307 – Commitment for the construction works of prefabricated TB DOT Centre. SR – Saving of EUR 5,624 – Actual vehicle maintenance costs were less than budgeted
A25: 8 | B25: Communication Materials | E25: 0 | F25: 0 | G25: 0 | H25: N/A | I25: =(E25)+0 -> 0 | J25: 0 | K25: 0 | L25: N/A
A26: 9 | B26: Monitoring & Evaluation | E26: 43629.71169 | F26: 68099.66824 | G26: -24469.95655 | H26: PR saving of EUR 5,008 – Activities performed in accordance with the workplan, but actual costs were less than budgeted, also Actual fuel cost budgeted under ME for TB center was less than budgeted. Commitment – EUR 368 fuel cost provided to SR for December, 2016. Payment was made in January 2017 SR – Overspending of EUR (-29,478) – Actual costs were higher than budgeted due to 6 months no cost extension period and covering Mobile consilium , that was not initially budgeted ( reallocation request approved on 16/06/2015). Commitment – EUR 3,312 - ME costs for December, 2016. Payment was made in January 2017. | I26: =(E26)+184789.516849844 -> 228419.2285 | J26: 182426.9143 | K26: 45992.31421 | L26: PR saving of EUR 32,266 – Activities performed in accordance with the workplan, but actual costs were less than budgeted, also Actual fuel cost budgeted under ME for TB center was less than budgeted. Commitment – EUR 368 fuel cost provided to SR for December, 2016. Payment was made in January 2017 SR – saving of EUR 13,726 – Actual costs were less than budgeted, though all planned activities were carried out. Commitment – EUR 3,312 - ME costs for December, 2016. Payment was made in January 2017.
A27: 10 | B27: Living Support to Clients/Target Populations | E27: 338856.12 | F27: 334025.0721 | G27: 4831.047876 | H27: PR Saving of EUR 43,570 - Actual cost for Cash Incentives (Sensitive & MDR) was less than budgeted due to actual number of patients (slightly less than projected). Most importantly, budget was made assuming max (100%) compliance to treatment. Reimbursed period covers December 2015- November 2016. The actual savings were reduced due to no cost extension period. Also Actual fuel costs budgeted under LS for TB center was less than budgeted. Commitment: EUR 17,363 – Committed payment for Cash Incentives (Sensitive & MDR) for December 2016; EUR 1,929 fuel cost provided to SR for December, 2016. Payment was made in January 2017 SR – Overspending of EUR (-38,739) – Actual costs for LS was less than budgeted due to less patients required transportation allowence, less DOT nurses were recruited; but due to 6 months no-cost extension period costs exceeded budget. Commitment EUR 3,985 – LS costs for December, 2016. Payment was made in January 2017. | I27: =(E27)+1493843.22 -> 1832699.34 | J27: 949633.6913 | K27: 883065.6487 | L27: PR Saving of EUR 802,057 - Actual cost of Cash incentives (Sensitive & MDR) covered period June 2014 – November 2016 and was less than budgeted. The following are the reasons for saving: Sensitive - budgeted amount was calculated for 1 year period covering 70% of all sensitive patients with 100% adherence (both installments). Actually patients enrolled in January - May, 2014 did not fit for being beneficiary of the scheme as approved scheme was enrolling patients starting June 1. MDR - budgeted amount was calculated for the entire treatment course (15 months) covering 75% of MDR patients from the 2012, 2013, 2014 cohorts, with100% adherence (all weeks on outpatient treatment). Actually, 5 months were covered, payments started in August, there was no 100% compliance in many cases and number of patients was less than projected/budgeted. Commitment: EUR 17,363 – Committed payment for Cash Incentives (Sensitive & MDR) for December 2016; EUR 1,929 fuel cost provided to SR for December, 2016. Payment was made in January 2017 SR – Saving EUR 81,009 – Actual costs for LS was less than budgeted due to less patients required transportation allowence, less DOT nurses were recruited; Commitment EUR 3,985 – LS costs for December, 2016. Payment was made in January 2017.
A28: 11 | B28: Planning and Administration | E28: 53317.40384 | F28: 74082.55787 | G28: -20765.15403 | H28: PR Overspending of EUR (- 21,545) - PA costs attributed to HIV Grant during Extension period, was covered from TB grant such as Audit costs. Actual cost for GLC mission was greater than budgeted due to FX rate change and Procurement of printing of statistical forms for TB Centre (reallocation request approved on 06/02/2015) SR Saving of EUR 780 – Actual PA costs were less than budgeted. | I28: =(E28)+124951.359987523 -> 178268.7638 | J28: 172398.7835 | K28: 5869.980315 | L28: PR Overspending of EUR (- 21,225) - PA costs attributed to HIV Grant during Extension period, was covered from TB grant such as Audit costs. Actual cost for GLC mission was greater than budgeted due to FX rate change and Procurement of printing of statistical forms for TB Centre (reallocation request approved on 06/02/2015); Saving EUR 24,756 – Actual Project management PA costs like audit service was less than budgeted. SR Saving of EUR 2,339 – Actual PA costs were less than budgeted.
A29: 12 | B29: Overheads | E29: 4239.084208 | F29: 4511.344632 | G29: -272.2604237 | H29: PR Overspending of EUR (-272) – Actual costs were less than budgeted but due to 6 months no cost extension period costs slightly exceeded budget. Commitment EUR 310 –fuel cost for December, 2016. Payment was made in January 2017 | I29: =(E29)+14990.7883491529 -> 19229.87256 | J29: 9842.576492 | K29: 9387.296065 | L29: PR Saving EUR 9,387– Actual costs were less than budgeted Commitment EUR 310 –fuel cost for December, 2016. Payment was made in January 2017
A30: 13 | B30: Other | E30: 0 | F30: 0.007383248154 | G30: -0.007383248154 | H30: N/A | I30: =(E30)+0 -> 0 | J30: 0.01048435521 | K30: -0.01048435521 | L30: N/A
D31: TOTAL | E31: =E18+E19+E20+E21+E22+E23+E24+E25+E27+E26+E28+E29+E30 -> 2324385.037 | F31: =F18+F19+F21+F20+F22+F23+F24+F25+F26+F27+F28+F29+F30 -> 2792099.18 | G31: =SUM(G18:G30) -> -467714.143 | I31: =SUM(I18:I30) -> 11182991.92 | J31: =SUM(J18:J30) -> 7518591.344 | K31: =SUM(K18:K30) -> 3664400.574
A34: B- BREAKDOWN* BY PROGRAM ACTIVITY | E34: Current Reporting Period | I34: Cumulative Reporting Period
A35: # | B35: Macro-category | C35: Objectives | D35: Service Delivery Area | E35: Budget | F35: Expenditures | G35: Variance | H35: Reason for Variance | I35: Cumulative Budget | J35: Cumulative Expenditure | K35: Variance | L35: Reason for Variance
A36: 1 | B36: Supportive Environment | C36: To strengthen the National TB Control Program management, coordination, monitoring and evaluation | D36: Program Management, M&E, Capacity Building | E36: 118010.8888 | F36: 175168.7343 | G36: =E36-F36 -> -57157.84548 | H36: Overspending of EUR (-57,158) - Activities performed in-line with approved work plan Additional costs occurred due to the 6 months no-cost extension period. Commitments: PR – EUR 368 - fuel cost provided to SR for December, 2016. SR – EUR 11,934 M&E costs for December, 2016. Payments were made in January 2017. | I36: =(E36)+424324.897891549 -> 542335.7867 | J36: 503605.3703 | K36: =I36-J36 -> 38730.41641 | L36: Saving EUR 38,730 - Activities performed in-line with approved work plan and actual costs were less than budgeted. Mainly fuel cost unit price was less through consolidated state procurement. Commitments: PR – EUR 368 - fuel cost provided to SR for December, 2016. SR – EUR 11,934 M&E costs for December, 2016. Payments were made in January 2017.
A37: 2 | B37: TB Detection | C37: To improve diagnosis of TB including M/XDR-TB | D37: Improving diagnosis | E37: 404547.2081 | F37: 910287.6652 | G37: =E37-F37 -> -505740.4571 | H37: Overspending of EUR (-505,740) – All activities were performed as planned. Actual Savings, occurred due to lower procurement costs of lab supplies, available stocks and average consumption rates at SR level, was reduced by new activities implemented during the year 2016 in agreement with TGF. The latter relates to: construction of new prefabricated TB DOT Center, Procurement of 19 GeneXpert machines and cartridges to meet the need for 2016-2017 years which was originally planned in the NFM but due to the change of the NFM launch date was moved within the extension period; In addition overspending in HPHE resulted due to the 6 months extension period PR procured additional lab supplies to cover TB centre need. Commitment: PR - EUR 15,028 – MGIT test procurement (signed contract) to be paid in the year 2017 and EUR 106,307 – Commitment for the construction works of prefabricated TB DOT Centre. SR – EUR 1,303 HR costs for December, 2016. Payments were made in January 2017. | I37: =(E37)+1242279.06033019 -> 1646826.268 | J37: 1681604.432 | K37: =I37-J37 -> -34778.16374 | L37: Overspending of EUR (-34,778) – All activities were performed as planned. Actual Savings, occurred due to lower procurement costs of lab supplies, available stocks and average consumption rates at SR level, was reduced by new activities implemented during the year 2016 in agreement with TGF. The latter relates to: construction of new prefabricated TB DOT Center, Procurement of 19 GeneXpert machines and cartridges to meet the need for 2016-2017 years which was originally planned in the NFM but due to the change of the NFM launch date was moved within the extension period; In addition overspending in HPHE resulted due to the 6 months extension period PR procured additional lab supplies to cover TB centre need. Commitment: PR - EUR 15,028 – MGIT test procurement (signed contract) to be paid in the year 2017 and EUR 106,307 – Commitment for the construction works of prefabricated TB DOT Centre. SR – EUR 1,303 HR costs for December, 2016. Payments were made in January 2017.
A38: 3 | B38: TB Treatment | C38: To ensure quality treatment of all forms of TB | D38: Quality Treatment of all forms of TB, including M/XDR-TB | E38: 1364060.175 | F38: 894277.8867 | G38: =E38-F38 -> 469782.2882 | H38: Saving of EUR 469,782 - All activities were performed in line with approved work plan. Saving in procurement of SLD include: recalculation of needs; tendency of decreasing prevalence of TB; BDQ Donation program provided the medicine free-of-charge; General tendency of decreasing cost of TB medicines through GDF; Commitment to NFM Grant in the amount of USD 428,004 will be financed from the saving. Commitments PR : EUR 698 – remaining Payment for the quality control of pharmaceuticals. | I38: =(E38)+5123348.78576098 -> 6487408.961 | J38: 3555198.812 | K38: =I38-J38 -> 2932210.149 | L38: Saving of EUR 2,932,210 - Net saving mainly derived from procurement of SLD and its relevant PSM costs, that include several reasons: recalculation of needs; tendency of decreasing prevalence of TB; BDQ Donation program provided the medicine free-of-charge; General tendency of decreasing cost of TB medicines through GDF; The latter saving was used to cover new activities implemented by PR in agreement with TGF, 6 months no cost extension and commitment to TB NFM grant in the amount of USD 428,004. Also procurement of Side effect drugs resulted in savings due to lower unit cost and by State budget financing. Commitments PR: EUR 698 – remaining Payment for the quality control of pharmaceuticals.
A39: 4 | B39: TB Treatment | C39: To ensure adherence to TB treatment by intensive patient support and follow up | D39: Patient Support | E39: 365916.9329 | F39: 380529.6911 | G39: -14612.75826 | H39: Overspending EUR (-14,613) - Cash incentive scheme is functioning well. Savings occurred mainly due to budget assumptions used to project cash incentives. Actual compliance was not 100%, also number of patients was less than projected/budgeted. State budget participation (Cash incentives for 225 MDR patients) also was driver for saving. Actual Incentives paid by SR was also less than budgeted. But due to the 6 months no cost extension period actual expenses occurred greater than budgeted. Commitment – PR EUR 17,364 – Payment for Cash Incentives (Sensitive & MDR) for December 2016; EUR 1,929 fuel cost provided to SR for December, 2016. Payment was made in January 2017; SR – EUR 4,629 LS costs for December, 2016. Payments were made in January 2017. | I39: =(E39)+1576406.06505682 -> 1942322.998 | J39: 1048558.999 | K39: 893763.9994 | L39: Saving EUR 893,764 - Cash incentive scheme is functioning well. Actual cost of Cash incentives (Sensitive & MDR) covered period June 2014 – November 2016 and was less than budgeted. The following are the reasons for saving: Sensitive - budgeted amount was calculated for 1 year period covering 70% of all sensitive patients with 100% adherence (both installments). Actually patients enrolled in January - May, 2014 did not fit for being beneficiary of the scheme as approved scheme was enrolling patients starting June 1. MDR - budgeted amount was calculated for the entire treatment course (15 months) covering 75% of MDR patients from the 2012, 2013, 2014 cohorts, with100% adherence (all weeks on outpatient treatment). Actually, 5 months were covered, payments started in August, there was no 100% compliance in many cases and number of patients was less than projected/budgeted. Commitment – PR EUR 17,364 – Payment for Cash Incentives (Sensitive & MDR) for December 2016; EUR 1,929 fuel cost provided to SR for December, 2016. Payment was made in January 2017; SR – EUR 4,629 LS costs for December, 2016. Payments were made in January 2017.
A40: 5 | B40: Supportive Environment | C40: Project management - PR | D40: Supportive environment: Program management and administration | E40: 71849.83221 | F40: 431835.2024 | G40: =E40-F40 -> -359985.3701 | H40: Overspending of EUR 359,985 - PR Office is fully functional. Drivers of overspending were: Project Management costs attributed to HIV Grant during Extension period, was covered from TB grant, 6 months no cost extension period and new activities implemented in agreement with TGF (transition plan, projects on country-wide advocacy, communication and social mobilization campaign using Georgian Orthodox Church and project aiming increasing the TB awareness in educational institutions (schools and universities) and seminars for media Commitment PR: – EUR 23,290 – cost for Transitions plan payable in January 2017; EUR 310 –fuel cost for December, 2016. Payment was made in January 2017; EUR 64,548 Payments transferred to the year 2017 for ERP system development and procurement of infrastructure equipment, to accommodate ERP system development; | I40: =(E40)+492248.073034801 -> 564097.9052 | J40: 729623.7336 | K40: =I40-J40 -> -165525.8284 | L40: Overspending of EUR 165,526 - PR Office is fully functional. Drivers of overspending were: Project Management costs attributed to HIV Grant during Extension period, was covered from TB grant, 6 months no cost extension period and new activities implemented in agreement with TGF (transition plan, projects on country-wide advocacy, communication and social mobilization campaign using Georgian Orthodox Church and project aiming increasing the TB awareness in educational institutions (schools and universities) and seminars for media Commitment PR: – EUR 23,290 – cost for Transitions plan payable in January 2017; EUR 310 –fuel cost for December, 2016. Payment was made in January 2017; EUR 64,548 Payments transferred to the year 2017 for ERP system development and procurement of infrastructure equipment, to accommodate ERP system development;
B41: Please Select… | D41: please select… | E41: 0 | F41: 0 | G41: =E41-F41 -> 0 | I41: 0 | J41: 0 | K41: =I41-J41 -> 0
B42: Please Select… | D42: please select… | E42: 0 | F42: 0 | G42: =E42-F42 -> 0 | I42: 0 | J42: 0 | K42: =I42-J42 -> 0
B43: Please Select… | D43: please select… | E43: 0 | F43: 0 | G43: 0 | I43: 0 | J43: 0 | K43: 0
B44: Please Select… | D44: please select… | E44: 0 | F44: 0 | G44: 0 | I44: 0 | J44: 0 | K44: 0
B45: Please Select… | D45: please select… | E45: 0 | F45: 0 | G45: =E45-F45 -> 0 | I45: 0 | J45: 0 | K45: =I45-J45 -> 0
B46: Please Select… | D46: please select… | E46: 0 | F46: 0 | G46: =E46-F46 -> 0 | I46: 0 | J46: 0 | K46: =I46-J46 -> 0
B47: Please Select… | D47: please select… | E47: 0 | F47: 0 | G47: =E47-F47 -> 0 | I47: 0 | J47: 0 | K47: =I47-J47 -> 0
B48: Please Select… | D48: please select… | E48: 0 | F48: 0 | G48: 0 | I48: 0 | J48: 0 | K48: 0
B49: Please Select… | D49: please select… | E49: 0 | F49: 0 | G49: 0 | I49: 0 | J49: 0 | K49: 0
B50: Please Select… | D50: please select… | E50: 0 | F50: 0 | G50: 0 | I50: 0 | J50: 0 | K50: 0
B51: Please Select… | D51: please select… | E51: 0 | F51: 0 | G51: 0 | I51: 0 | J51: 0 | K51: 0
B52: Please Select… | D52: please select… | E52: 0 | F52: 0 | G52: =E52-F52 -> 0 | I52: 0 | J52: 0 | K52: =I52-J52 -> 0
B53: Please Select… | D53: please select… | E53: 0 | F53: 0 | G53: =E53-F53 -> 0 | I53: 0 | J53: 0 | K53: =I53-J53 -> 0
B54: Please Select… | D54: please select… | E54: 0 | F54: 0 | G54: =E54-F54 -> 0 | I54: 0 | J54: 0 | K54: =I54-J54 -> 0
B55: Please Select… | D55: please select… | E55: 0 | F55: 0 | G55: 0 | I55: 0 | J55: 0 | K55: 0
B56: Please Select… | D56: please select… | E56: 0 | F56: 0 | G56: 0 | I56: 0 | J56: 0 | K56: 0
B57: Please Select… | D57: please select… | E57: 0 | F57: 0 | G57: 0 | I57: 0 | J57: 0 | K57: 0
B58: Please Select… | D58: please select… | E58: 0 | F58: 0 | G58: 0 | I58: 0 | J58: 0 | K58: 0
B59: Please Select… | D59: please select… | E59: 0 | F59: 0 | G59: =E59-F59 -> 0 | I59: 0 | J59: 0 | K59: =I59-J59 -> 0
B60: Please Select… | D60: please select… | E60: 0 | F60: 0 | G60: 0 | I60: 0 | J60: 0 | K60: 0
B61: Please Select… | D61: please select… | E61: 0 | F61: 0 | G61: 0 | I61: 0 | J61: 0 | K61: 0
B62: Please Select… | D62: please select… | E62: 0 | F62: 0 | G62: =E62-F62 -> 0 | I62: 0 | J62: 0 | K62: =I62-J62 -> 0
B63: Please Select… | D63: please select… | E63: 0 | F63: 0 | G63: =E63-F63 -> 0 | I63: 0 | J63: 0 | K63: =I63-J63 -> 0
B64: Please Select… | D64: please select… | E64: 0 | F64: 0 | G64: =E64-F64 -> 0 | I64: 0 | J64: 0 | K64: =I64-J64 -> 0
B65: Please Select… | D65: please select… | E65: 0 | F65: 0 | G65: 0 | I65: 0 | J65: 0 | K65: 0
B66: Please Select… | D66: please select… | E66: 0 | F66: 0 | G66: 0 | I66: 0 | J66: 0 | K66: 0
B67: Please Select… | D67: please select… | E67: 0 | F67: 0 | G67: =E67-F67 -> 0 | I67: 0 | J67: 0 | K67: =I67-J67 -> 0
B68: Please Select… | D68: please select… | E68: 0 | F68: 0 | G68: =E68-F68 -> 0 | I68: 0 | J68: 0 | K68: =I68-J68 -> 0
B69: Please Select… | D69: please select… | E69: 0 | F69: 0 | G69: =E69-F69 -> 0 | I69: 0 | J69: 0 | K69: =I69-J69 -> 0
B70: Please Select… | D70: please select… | E70: 0 | F70: 0 | G70: 0 | I70: 0 | J70: 0 | K70: 0
B71: Please Select… | D71: please select… | E71: 0 | F71: 0 | G71: 0 | I71: 0 | J71: 0 | K71: 0
B72: Please Select… | D72: please select… | E72: 0 | F72: 0 | G72: 0 | I72: 0 | J72: 0 | K72: 0
B73: Please Select… | D73: please select… | E73: 0 | F73: 0 | G73: 0 | I73: 0 | J73: 0 | K73: 0
B74: Please Select… | D74: please select… | E74: 0 | F74: 0 | G74: =E74-F74 -> 0 | I74: 0 | J74: 0 | K74: =I74-J74 -> 0
B75: Please Select… | D75: please select… | E75: 0 | F75: 0 | G75: =E75-F75 -> 0 | I75: 0 | J75: 0 | K75: =I75-J75 -> 0
B76: Please Select… | D76: please select… | E76: 0 | F76: 0 | G76: =E76-F76 -> 0 | I76: 0 | J76: 0 | K76: =I76-J76 -> 0
B77: Please Select… | D77: please select… | E77: 0 | F77: 0 | G77: 0 | I77: 0 | J77: 0 | K77: 0
B78: Please Select… | D78: please select… | E78: 0 | F78: 0 | G78: 0 | I78: 0 | J78: 0 | K78: 0
B79: Please Select… | D79: please select… | E79: 0 | F79: 0 | G79: =E79-F79 -> 0 | I79: 0 | J79: 0 | K79: =I79-J79 -> 0
B80: Please Select… | D80: please select… | E80: 0 | F80: 0 | G80: =E80-F80 -> 0 | I80: 0 | J80: 0 | K80: =I80-J80 -> 0
B81: Please Select… | D81: please select… | E81: 0 | F81: 0 | G81: =E81-F81 -> 0 | I81: 0 | J81: 0 | K81: =I81-J81 -> 0
B82: Please Select… | D82: please select… | E82: 0 | F82: 0 | G82: 0 | I82: 0 | J82: 0 | K82: 0
B83: Please Select… | D83: please select… | E83: 0 | F83: 0 | G83: 0 | I83: 0 | J83: 0 | K83: 0
B84: Please Select… | D84: please select… | E84: 0 | F84: 0 | G84: 0 | I84: 0 | J84: 0 | K84: 0
B85: Please Select… | D85: please select… | E85: 0 | F85: 0 | G85: 0 | I85: 0 | J85: 0 | K85: 0
B86: Please Select… | D86: please select… | E86: 0 | F86: 0 | G86: 0 | I86: 0 | J86: 0 | K86: 0
B87: Please Select… | D87: please select… | E87: 0 | F87: 0 | G87: 0 | I87: 0 | J87: 0 | K87: 0
B88: Please Select… | D88: please select… | E88: 0 | F88: 0 | G88: 0 | I88: 0 | J88: 0 | K88: 0
B89: Please Select… | D89: please select… | E89: 0 | F89: 0 | G89: =E89-F89 -> 0 | I89: 0 | J89: 0 | K89: =I89-J89 -> 0
B90: Please Select… | D90: please select… | E90: 0 | F90: 0 | G90: =E90-F90 -> 0 | I90: 0 | J90: 0 | K90: =I90-J90 -> 0
B91: Please Select… | D91: please select… | E91: 0 | F91: 0 | G91: =E91-F91 -> 0 | I91: 0 | J91: 0 | K91: =I91-J91 -> 0
B92: Please Select… | D92: please select… | E92: 0 | F92: 0 | G92: 0 | I92: 0 | J92: 0 | K92: 0
B93: Please Select… | D93: please select… | E93: 0 | F93: 0 | G93: =E93-F93 -> 0 | I93: 0 | J93: 0 | K93: =I93-J93 -> 0
B94: Please Select… | D94: please select… | E94: 0 | F94: 0 | G94: =E94-F94 -> 0 | I94: 0 | J94: 0 | K94: =I94-J94 -> 0
B95: Please Select… | D95: please select… | E95: 0 | F95: 0 | G95: =E95-F95 -> 0 | I95: 0 | J95: 0 | K95: =I95-J95 -> 0
B96: Please Select… | D96: please select… | E96: 0 | F96: 0 | G96: 0 | I96: 0 | J96: 0 | K96: 0
B97: Please Select… | D97: please select… | E97: 0 | F97: 0 | G97: =E97-F97 -> 0 | I97: 0 | J97: 0 | K97: =I97-J97 -> 0
B98: Please Select… | D98: please select… | E98: 0 | F98: 0 | G98: 0 | I98: 0 | J98: 0 | K98: 0
B99: Please Select… | D99: please select… | E99: 0 | F99: 0 | G99: 0 | I99: 0 | J99: 0 | K99: 0
B100: Please Select… | D100: please select… | E100: 0 | F100: 0 | G100: =E100-F100 -> 0 | I100: 0 | J100: 0 | K100: =I100-J100 -> 0
B101: Please Select… | D101: please select… | E101: 0 | F101: 0 | G101: =E101-F101 -> 0 | I101: 0 | J101: 0 | K101: =I101-J101 -> 0
B102: Please Select… | D102: please select… | E102: 0 | F102: 0 | G102: =E102-F102 -> 0 | I102: 0 | J102: 0 | K102: =I102-J102 -> 0
B103: Please Select… | D103: please select… | E103: 0 | F103: 0 | G103: 0 | I103: 0 | J103: 0 | K103: 0
B104: Please Select… | D104: please select… | E104: 0 | F104: 0 | G104: 0 | I104: 0 | J104: 0 | K104: 0
B105: Please Select… | D105: please select… | E105: 0 | F105: 0 | G105: =E105-F105 -> 0 | I105: 0 | J105: 0 | K105: =I105-J105 -> 0
B106: Please Select… | D106: please select… | E106: 0 | F106: 0 | G106: =E106-F106 -> 0 | I106: 0 | J106: 0 | K106: =I106-J106 -> 0
B107: Please Select… | D107: please select… | E107: 0 | F107: 0 | G107: =E107-F107 -> 0 | I107: 0 | J107: 0 | K107: =I107-J107 -> 0
B108: Please Select… | D108: please select… | E108: 0 | F108: 0 | G108: 0 | I108: 0 | J108: 0 | K108: 0
B109: Please Select… | D109: please select… | E109: 0 | F109: 0 | G109: 0 | I109: 0 | J109: 0 | K109: 0
B110: Please Select… | D110: please select… | E110: 0 | F110: 0 | G110: 0 | I110: 0 | J110: 0 | K110: 0
A111: TOTAL | E111: =SUM(E36:E110) -> 2324385.037 | F111: =SUM(F36:F110) -> 2792099.18 | G111: =SUM(G36:G110) -> -467714.1428 | I111: =SUM(I36:I110) -> 11182991.92 | J111: =SUM(J36:J110) -> 7518591.346 | K111: =SUM(K36:K110) -> 3664400.573
A116: C- BREAKDOWN* BY IMPLEMENTING ENTITY | E116: Current Reporting Period | I116: Cumulative Reporting Period
A117: # | B117: PR/SR | C117: Name | D117: Type of Implementing Entity | E117: Budget | F117: Expenditures | G117: Variance | H117: Reason for Variance | I117: Cumulative Budget | J117: Cumulative Expenditure | K117: Variance | L117: Reason for Variance
A118: 1 | B118: PR | C118: National Center for Disease Control and Public Health | D118: Other Government | E118: 2101107.559 | F118: 2448490.025 | G118: =E118-F118 -> -347382.4653 | H118: The net variance of EUR (-347,382) is derived from the following components: Positive Variance EUR 622,424 includes: EUR 1,171 - Actual unit price of fuel turned to be less than projected/budgeted. From the programmatic point of view, activities were performed as planned, though required quantity of fuel was less, despite the 6 months no cost extension period. EUR 533,221- Saving in procurement of SLD include: recalculation of needs; tendency of decreasing the prevalence of TB; BDQ Donation program provided the medicine free-of-charge; General tendency of decreasing cost of TB medicines through GDF; The saving was reallocated partly for no-cost extension and partly for different new activities initiated by PR in agreement with TGF. EUR 42,779 – Actual PSM costs related to SLD and procurement of GeneXperts was less than budgeted. EUR 45,252- Actual cost for Cash Incentives (Sensitive & MDR) was less than budgeted due to actual number of patients (slightly less than projected). Most importantly, budget was made assuming max (100%) compliance to treatment. Reimbursed period covers December 2015- November 2016. The savings were reduced due to no cost extension period. Negative Variance EUR 969,806 includes: EUR 459,253 – overspending in HPHE resulted due to the 6 months extension period PR procured additional lab supplies to cover TB centre needs and launched new activities in agreement with TGF. EUR 4,668 – Procurement of printing of statistical forms for TB Centre (reallocation request approved on 06/02/2015) EUR 6,106- HR costs for cash incentive administration was higher than budgeted due to 6 months no-cost extension. EUR 9,585 – Actual cost for GLC mission was greater than budgeted due to FX rate change. EUR 131,395 – Construction of prefabricated TB DOT center was not budgeted under IE and funds were reallocated from savings, in addition procurement of mobile phones for VOT. EUR 358,799 - Project management actual costs were higher than budgeted due to the following reasons: 6 months no cost extension, HR costs for HIV grant compensated under TB grant (1Q2Q2016); new activities implemented in agreement to TGF such as: transition plan (reallocation request approved on 09/02/16), attending ECHO training and Estonia Study tour (reallocation request approved on 23/08/16 and 02/03/2016) ; projects on country-wide advocacy, communication and social mobilization campaign using Georgian Orthodox Church and project aiming increasing the TB awareness in educational institutions (schools and universities) and seminars for media. (Reallocation request approved on 28/02/2016). Commitments to be reimbursed during the 6 months close-out period from the savings under TB SSF grant are following- Total EUR 635,296 includes: EUR 2,297– SRs fuel costs for December, payment transferred to January 2017. EUR 17,364 – Committed payment for Cash Incentives (Sensitive & MDR) for December 2016; EUR 88,148 – Commitments for: PR fuel cost for December 2016, payable in January 2017; cost for Transitions plan payable in January 2017; Payments transferred to the year 2017 for ERP system development and procurement of infrastructure equipment, to accommodate ERP system development; EUR 698 – remaining Payment for the quality control of pharmaceuticals. EUR 106,307 – Commitment for the construction works of prefabricated TB DOT Centre. EUR 15,028 – Contract signed for MGIT Test Systems upon request of TB Centre. EUR 405,455 – Commitment to the TB NFM Grant in the amount of USD 428,004 | I118: =(E118)+8042499.32321101 -> 10143606.88 | J118: 6616291.882 | K118: =I118-J118 -> 3527315 | L118: The net variance of EUR 3,527,315 is derived from the following components: Savings – Total EUR 3,891,627 includes: EUR 56,090 - Actual unit price of fuel turned to be less than projected/budgeted. From the programmatic point of view, activities were performed as planned, though required quantity of fuel was less; Fuel cost budgeted under line 4.7 (b) was cancelled due to the following factor: the adherence data is collected and monitored on a regular basis by regional coordinators with further submission to the TB Centre. Activity related to the on site monitoring of the cash incentive scheme was abolished, considering that it is being performed under the current set-up of the scheme. EUR 122,297 - Procurement of lab supplies and respirators (HPHE) caused saving, due to the following factors: 1. Local procurement with competitive bidding with preceding market assessment derived significantly cheaper unit costs compared to the budgeted amounts; 2. Available stock; 3. Re-calculation of average consumption rates; Resulted Savings were reduced by new activities implemented by PR in agreement with TGF and 6 months no cost extension. EUR 766,568- Actual cost of Cash incentives (Sensitive & MDR) covered period June 2014 – November 2016 and was less than budgeted. The following are the reasons for saving: Sensitive - budgeted amount was calculated for 1 year period covering 70% of all sensitive patients with 100% adherence (both installments). Actually patients enrolled in January - May, 2014 did not fit for being beneficiary of the scheme as approved scheme was enrolling patients starting June 1. MDR - budgeted amount was calculated for the entire treatment course (15 months) covering 75% of MDR patients from the 2012, 2013, 2014 cohorts, with100% adherence (all weeks on outpatient treatment). Actually, 5 months were covered, payments started in August, there was no 100% compliance in many cases and number of patients was less than projected/budgeted. EUR 2,632,371– Net saving mainly derived from procurement of SLD, that include several reasons: recalculation of needs; tendency of decreasing prevalence of TB; BDQ Donation program provided the medicine free-of-charge; General tendency of decreasing cost of TB medicines through GDF; The latter saving was used to cover new activities implemented by PR in agreement with TGF, 6 months no cost extension and commitment to TB NFM grant in the amount of USD 428,004. Also procurement of Side effect drugs resulted in savings due to lower unit cost and by State budget financing. EUR 268,492 - Actual PSM costs related to SLD and procurement of Genxperts was less than budgeted. EUR 45,809 – Saving in Project Management costs such as Audit cost, Fuel, supervisions occured less than budgeted, FX rate Change had also effect. Overspending – Total EUR 364,312 includes: EUR 3,517 – Procurement of printing of statistical forms for TB Centre (reallocation request approved on 06/02/2015) ; EUR 131,109 – Construction of prefabricated TB DOT center was not budgeted under IE and funds were reallocated from savings, in addition procurement of mobile phones for VOT. EUR 17,708 – Actual cost for GLC mission was greater than budgeted due to FX rate change. EUR 1,830- HR costs for cash incentive administration was higher than budgeted due to 6 months no-cost extension. EUR 210,148 - Project management actual costs were higher than budgeted due to the following reasons: 6 months no cost extension, HR costs for HIV grant compensated under TB grant (1Q2Q2016); new activities implemented in agreement to TGF such as: transition plan (reallocation request approved on 09/02/16), attending ECHO training and Estonia Study tour (reallocation request approved on 23/08/16 and 02/03/2016) ; projects on country-wide advocacy, communication and social mobilization campaign using Georgian Orthodox Church and project aiming increasing the TB awareness in educational institutions (schools and universities) and seminars for media. (Reallocation request approved on 28/02/2016). Commitments to be reimbursed during the 6 months close-out period from the savings under TB SSF grant are following- Total EUR 635,296 includes: EUR 2,297– SRs fuel costs for December, payment transferred to January 2017. EUR 17,364 – Committed payment for Cash Incentives (Sensitive & MDR) for December 2016; EUR 88,148 – Commitments for: PR fuel cost for December 2016, payable in January 2017; cost for Transitions plan payable in January 2017; Payments transferred to the year 2017 for ERP system development and procurement of infrastructure equipment, to accommodate ERP system development; EUR 698 – remaining Payment for the quality control of pharmaceuticals. EUR 106,307 – Commitment for the construction works of prefabricated TB DOT Centre. EUR 15,028 – Contract signed for MGIT Test Systems upon request of TB Centre. EUR 405,455 – Commitment to the TB NFM Grant in the amount of USD 428,004
A119: 2 | B119: SR | C119: National Center for Tuberculosis and Lung Diseases | D119: Other Government | E119: 223277.4776 | F119: 343609.1451 | G119: =E119-F119 -> -120331.6674 | H119: The reporting period relates to the activities performed by the TB center for January 2016 - December 2016, but according to the contract, SR received reimbursement for December 2015 -November 2016 services (EUR 313,447 ) and advance payment (EUR 19,257). The latter was deducted from the payment made by PR in January 2017 to cover services performed in December 2016. Due to 6 months no cost-extension period actual expenses reimbursed by SR were higher than budgeted resulting in Net Variance of (-120,332 EUR). Commitments EUR 30,046- December service cost, out of which EUR 19,257 advance payment was deducted and reimbursed in January 2017. | I119: =(E119)+816107.558863334 -> 1039385.036 | J119: 902299.454 | K119: =I119-J119 -> 137085.5825 | L119: The Budget relates to the activities performed by the TB Center in April 2014-December 2016. During the cumulative period SR received payment for April 2014-Novemebr 2016 services in the amount of EUR 890,121 and advance payment with remaining balance of EUR 19,257, The latter was deducted from the payment made by PR in January 2017 to cover services performed in December 2016. SR performed all budgeted programatic activities and faced Savings. The Major part of savings was absorbed by 6 months no cost extension. The Positive variance in the amount of EUR 137,086 related to TB Center performance includes mainly unspent vehicle maintenance costs; less transportation incentives for patients; TA and ME costs were less than budgeted. Commitments EUR 30,046- December service cost, out of which EUR 12,178 was spent by SR in December from advance payment.
B120: Please Select … | D120: Please Select… | E120: 0 | F120: 0 | G120: 0 | I120: 0 | J120: 0 | K120: 0
B121: Please Select … | D121: Please Select… | E121: 0 | F121: 0 | G121: 0 | I121: 0 | J121: 0 | K121: 0
B122: Please Select … | D122: Please Select… | E122: 0 | F122: 0 | G122: 0 | I122: 0 | J122: 0 | K122: 0
B123: Please Select … | D123: Please Select… | E123: 0 | F123: 0 | G123: 0 | I123: 0 | J123: 0 | K123: 0
B124: Please Select … | D124: Please Select… | E124: 0 | F124: 0 | G124: =E124-F124 -> 0 | I124: 0 | J124: 0 | K124: =I124-J124 -> 0
B125: Please Select … | D125: Please Select… | E125: 0 | F125: 0 | G125: 0 | I125: 0 | J125: 0 | K125: 0
B126: Please Select … | D126: Please Select… | E126: 0 | F126: 0 | G126: 0 | I126: 0 | J126: 0 | K126: 0
B127: Please Select … | D127: Please Select… | E127: 0 | F127: 0 | G127: 0 | I127: 0 | J127: 0 | K127: 0
B128: Please Select … | D128: Please Select… | E128: 0 | F128: 0 | G128: 0 | I128: 0 | J128: 0 | K128: 0
B129: Please Select … | D129: Please Select… | E129: 0 | F129: 0 | G129: 0 | I129: 0 | J129: 0 | K129: 0
B130: Please Select … | D130: Please Select… | E130: 0 | F130: 0 | G130: 0 | I130: 0 | J130: 0 | K130: 0
B131: Please Select … | D131: Please Select… | E131: 0 | F131: 0 | G131: =E131-F131 -> 0 | I131: 0 | J131: 0 | K131: =I131-J131 -> 0
B132: Please Select … | D132: Please Select… | E132: 0 | F132: 0 | G132: 0 | I132: 0 | J132: 0 | K132: 0
B133: Please Select … | D133: Please Select… | E133: 0 | F133: 0 | G133: 0 | I133: 0 | J133: 0 | K133: 0
B134: Please Select … | D134: Please Select… | E134: 0 | F134: 0 | G134: =E134-F134 -> 0 | I134: 0 | J134: 0 | K134: =I134-J134 -> 0
B135: Please Select … | D135: Please Select… | E135: 0 | F135: 0 | G135: 0 | I135: 0 | J135: 0 | K135: 0
B136: Please Select … | D136: Please Select… | E136: 0 | F136: 0 | G136: 0 | I136: 0 | J136: 0 | K136: 0
B137: Please Select … | D137: Please Select… | E137: 0 | F137: 0 | G137: =E137-F137 -> 0 | I137: 0 | J137: 0 | K137: =I137-J137 -> 0
B138: Please Select … | D138: Please Select… | E138: 0 | F138: 0 | G138: 0 | I138: 0 | J138: 0 | K138: 0
B139: Please Select … | D139: Please Select… | E139: 0 | F139: 0 | G139: 0 | I139: 0 | J139: 0 | K139: 0
B140: Please Select … | D140: Please Select… | E140: 0 | F140: 0 | G140: 0 | I140: 0 | J140: 0 | K140: 0
B141: Please Select … | D141: Please Select… | E141: 0 | F141: 0 | G141: 0 | I141: 0 | J141: 0 | K141: 0
B142: Please Select … | D142: Please Select… | E142: 0 | F142: 0 | G142: 0 | I142: 0 | J142: 0 | K142: 0
B143: Please Select … | D143: Please Select… | E143: 0 | F143: 0 | G143: 0 | I143: 0 | J143: 0 | K143: 0
B144: Please Select … | D144: Please Select… | E144: 0 | F144: 0 | G144: 0 | I144: 0 | J144: 0 | K144: 0
B145: Please Select … | D145: Please Select… | E145: 0 | F145: 0 | G145: 0 | I145: 0 | J145: 0 | K145: 0
B146: Please Select … | D146: Please Select… | E146: 0 | F146: 0 | G146: 0 | I146: 0 | J146: 0 | K146: 0
B147: Please Select … | D147: Please Select… | E147: 0 | F147: 0 | G147: 0 | I147: 0 | J147: 0 | K147: 0
B148: Please Select … | D148: Please Select… | E148: 0 | F148: 0 | G148: 0 | I148: 0 | J148: 0 | K148: 0
B149: Please Select … | D149: Please Select… | E149: 0 | F149: 0 | G149: 0 | I149: 0 | J149: 0 | K149: 0
B150: Please Select … | D150: Please Select… | E150: 0 | F150: 0 | G150: 0 | I150: 0 | J150: 0 | K150: 0
B151: Please Select … | D151: Please Select… | E151: 0 | F151: 0 | G151: 0 | I151: 0 | J151: 0 | K151: 0
B152: Please Select … | D152: Please Select… | E152: 0 | F152: 0 | G152: 0 | I152: 0 | J152: 0 | K152: 0
B153: Please Select … | D153: Please Select… | E153: 0 | F153: 0 | G153: 0 | I153: 0 | J153: 0 | K153: 0
B154: Please Select … | D154: Please Select… | E154: 0 | F154: 0 | G154: 0 | I154: 0 | J154: 0 | K154: 0
B155: Please Select … | D155: Please Select… | E155: 0 | F155: 0 | G155: 0 | I155: 0 | J155: 0 | K155: 0
B156: Please Select … | D156: Please Select… | E156: 0 | F156: 0 | G156: 0 | I156: 0 | J156: 0 | K156: 0
B157: Please Select … | D157: Please Select… | E157: 0 | F157: 0 | G157: =E157-F157 -> 0 | I157: 0 | J157: 0 | K157: =I157-J157 -> 0
B158: Please Select … | D158: Please Select… | E158: 0 | F158: 0 | G158: 0 | I158: 0 | J158: 0 | K158: 0
B159: Please Select … | D159: Please Select… | E159: 0 | F159: 0 | G159: 0 | I159: 0 | J159: 0 | K159: 0
B160: Please Select … | D160: Please Select… | E160: 0 | F160: 0 | G160: 0 | I160: 0 | J160: 0 | K160: 0
D161: TOTAL | E161: =SUM(E118:E160) -> 2324385.037 | F161: =SUM(F118:F160) -> 2792099.17 | G161: =SUM(G118:G160) -> -467714.1328 | I161: =SUM(I118:I160) -> 11182991.92 | J161: =SUM(J118:J160) -> 7518591.336 | K161: =SUM(K118:K160) -> 3664400.583
A166: * The sum of all three breakdowns should be equal (A- Budget Line-item, B- Program Activity, C- Implementing Entity).
A167: ** For the purposes of this report, the SDA Program management and administration should be included in the Supportive Environment Macro Category.
A169: D- ADDITIONAL INFORMATION
A170: Please disclose any relevant information concerning the information in the above tables. Refer to the Guidelines for Completing the Template if required.
A177: E- DISBURSEMENTS BREAKDOWN BY IMPLEMENTING ENTITY | E177: Cumulative Reporting Period
A178: # | B178: Name | C178: Type of Implementing Entity | D178: Cumulative Disbursements | E178: Comments
A179: 1 | B179: National Center for Tuberculosis and Lung Diseases | C179: Other Government | D179: ='Budget Variance_2E'!K10 -> 909378.3666 | E179: The actual disbursements paid to SR covers period April 2014-November 2016 and advance payment carried forward and deducted from payment made in January 2017. Diff-ce between disbursed amount by PR and EFR expenditure spent by SR amounts EUR 7,079 and represents cash balance at SR level per Bank Statement
C180: Please Select… | D180: 0
C181: Please Select… | D181: 0
C182: Please Select… | D182: 0
C183: Please Select… | D183: 0
C184: Please Select… | D184: 0
C185: Please Select… | D185: 0
C186: Please Select… | D186: 0
C187: Please Select… | D187: 0
C188: Please Select… | D188: 0
C189: Please Select… | D189: 0
C190: Please Select… | D190: 0
C191: Please Select… | D191: 0
C192: Please Select… | D192: 0
C193: Please Select… | D193: 0
C194: Please Select… | D194: 0
C195: Please Select… | D195: 0
C196: Please Select… | D196: 0
C197: Please Select… | D197: 0
C198: Please Select… | D198: 0
C199: Please Select… | D199: 0
C200: Please Select… | D200: 0
C201: Please Select… | D201: 0
C202: Please Select… | D202: 0
C203: Please Select… | D203: 0
C204: Please Select… | D204: 0
C205: Please Select… | D205: 0
C206: TOTAL | D206: =SUM(D179:D205) -> 909378.3666

Sheet LFA EFR_7B
A1: Ongoing Progress Update and Disbursement Request
A2: Section 7B: LFA - Enhanced Financial Reporting
A4: Country | C4: =CoverSheet!D5 -> Georgia | G4: PLEASE REFER TO THE "GUIDANCE FOR COMPLETION OF THE ENHANCED FINANCIAL REPORTING TEMPLATE" DOCUMENT TO ASSIST YOU IN COMPLETING THE TEMPLATE
A5: Grant No. | C5: =CoverSheet!D7 -> GEO-T-NCDC
A6: PR | C6: =CoverSheet!D8 -> NCDC | G6: TO BE COMPLETED ONLY ONCE A YEAR
A7: Currency | C7: =CoverSheet!D11 -> EUR
A8: Disease(Component) | C8: =CoverSheet!D6 -> Tuberculosis | I8: dd-mm-yyyy | N8: dd-mm-yyyy
G9: Current Reporting Period | H9: Start Date: | L9: Cumulative Reporting Period | M9: Start Date:
H10: End Date: | M10: End Date:
K11: The end date for the current reporting period and cumulative reporting period must be the same
C12: =CONCATENATE("EFR",SUBSTITUTE(SUBSTITUTE(C8,"/","")," ","")) -> EFRTuberculosis
C13: =CONCATENATE("SDA",SUBSTITUTE(SUBSTITUTE(C8,"/","")," ","")) -> SDATuberculosis | E13: The "TOTAL" rows in Table A, B and C will have a RED background if the amounts in each table do not agree. If the Totals for each Table agrees, these rows will have a YELLOW background.
A16: A- BREAKDOWN* BY EXPENDITURE CATEGORY | E16: Current Reporting Period | L16: Cumulative Reporting Period | T16: =IF('[3]PR_Programmatic Progress_1A'!R15="Select","Please select currency on Page 'PR_Programmatic Achievement (1)'", "All amounts are in: "&'[3]PR_Programmatic Progress_1A'!R15) -> All amounts are in: | V16: Budget for Reporting Period | W16: Actual Cash Outflow for Reporting Period | X16: Variance | Y16: Reason for Variance | AA16: Cumulative Budget through period of Progress Update | AB16: Cumulative Actual Cash Outflow through period of Progress Update | AC16: Variance | AD16: Reason for Variance
A17: # | B17: Category | E17: Budget for Reporting Period | F17: LFA Adjustment on Budget | G17: Actual Expenditure | H17: LFA Adjustment on Actual Expenditure | I17: Budget v/s Actuals Variance | J17: Absorption Capacity | K17: LFA comments on the Principal Recipient's explanation of variances | L17: Cumulative Budget | M17: Cumulative Expenditure | N17: Cumulative Budget v/s Variance | O17: Absorption Capacity | P17: LFA comments on the Principal Recipient's explanation of variances | T17: 1. Total PR cash outflow vs. budget | V17: =V18+V19 -> 0 | W17: =W18+W19 -> 0 | X17: =IF(V17="",IF(W17="","",V17-W17),V17-W17) -> 0 | AA17: =AA18+AA19 -> 0 | AB17: =AB18+AB19 -> 0 | AC17: =IF(AA17="",IF(AB17="","",AA17-AB17),AA17-AB17) -> 0
A18: 1 | B18: Human Resources | E18: ='PR EFR_7A'!E18 -> 135454.1401 | F18: 0 | G18: ='PR EFR_7A'!F18 -> 336623.2958 | H18: 0 | I18: =(E18+F18)-(G18+H18) -> -201169.1557 | J18: =IF(AND((E18+F18)=0,(G18+H18)=0),"N/A",IF(AND((E18+F18)=0,(G18+H18)<>0),"Not Budgeted",(G18+H18)/(E18+F18))) -> 2.485145862 | L18: =E18+F18 -> 135454.1401 | M18: =G18+H18 -> 336623.2958 | N18: =L18-M18 -> -201169.1557 | O18: =IF(AND(L18=0,M18=0),"N/A",IF(AND(L18=0,M18<>0),"Not Budgeted",M18/L18)) -> 2.485145862 | T18: 1a. PR's total expenditures | V18: ='[3]PR_Total PR Cash Outflow_3A'!C13 -> 0 | W18: ='[3]PR_Total PR Cash Outflow_3A'!D13 -> 0 | X18: =IF(V18="",IF(W18="",0,V18-W18),V18-W18) -> 0 | AA18: ='[3]PR_Total PR Cash Outflow_3A'!H13 -> 0 | AB18: ='[3]PR_Total PR Cash Outflow_3A'!I13 -> 0 | AC18: =IF(AA18="",IF(AB18="",0,AA18-AB18),AA18-AB18) -> 0
A19: 2 | B19: Technical Assistance | E19: ='PR EFR_7A'!E19 -> 13420 | F19: 0 | G19: ='PR EFR_7A'!F19 -> 134674.3831 | H19: 0 | I19: =(E19+F19)-(G19+H19) -> -121254.3831 | J19: =IF(AND((E19+F19)=0,(G19+H19)=0),"N/A",IF(AND((E19+F19)=0,(G19+H19)<>0),"Not Budgeted",(G19+H19)/(E19+F19))) -> 10.03534896 | L19: =E19+F19 -> 13420 | M19: =G19+H19 -> 134674.3831 | N19: =L19-M19 -> -121254.3831 | O19: =IF(AND(L19=0,M19=0),"N/A",IF(AND(L19=0,M19<>0),"Not Budgeted",M19/L19)) -> 10.03534896 | T19: 1b. Disbursements to sub-recipients | V19: ='[3]PR_Total PR Cash Outflow_3A'!C14 -> 0 | W19: ='[3]PR_Total PR Cash Outflow_3A'!D14 -> 0 | X19: =IF(V19="",IF(W19="",0,V19-W19),V19-W19) -> 0 | AA19: ='[3]PR_Total PR Cash Outflow_3A'!H14 -> 0 | AB19: ='[3]PR_Total PR Cash Outflow_3A'!I14 -> 0 | AC19: =IF(AA19="",IF(AB19="",0,AA19-AB19),AA19-AB19) -> 0
A20: 3 | B20: Training | E20: ='PR EFR_7A'!E20 -> 3000 | F20: 0 | G20: ='PR EFR_7A'!F20 -> 40894.17017 | H20: 0 | I20: -37894.17017 | J20: 13.63139006 | L20: =E20+F20 -> 3000 | M20: =G20+H20 -> 40894.17017 | N20: -37894.17017 | O20: 13.63139006
A21: 4 | B21: Health Products and Health Equipment | E21: ='PR EFR_7A'!E21 -> 447048.8931 | F21: 0 | G21: ='PR EFR_7A'!F21 -> 906301.406 | H21: 0 | I21: -459252.5129 | J21: 2.027298177 | L21: 447048.8931 | M21: 906301.406 | N21: -459252.5129 | O21: 2.027298177 | V21: Budget for Reporting Period* | W21: Actual Cash Outflow for Reporting Period | X21: Variance | Y21: Reason for Variance | AA21: Cumulative Budget through period of Progress Update | AB21: Cumulative Actual Cash Outflow through period of Progress Update | AC21: Variance | AD21: Reason for Variance
A22: 5 | B22: Medicines and Pharmaceutical Products | E22: ='PR EFR_7A'!E22 -> 1151470.353 | F22: 0 | G22: ='PR EFR_7A'!F22 -> 618248.9391 | H22: 0 | I22: 533221.4138 | J22: 0.5369212829 | L22: 1151470.353 | M22: 618248.9391 | N22: 533221.4138 | O22: 0.5369212829 | T22: 2. Total pharmaceutical & health product expenditures vs. budget | V22: =V23+V24 -> 0 | W22: =W23+W24 -> 0 | X22: =IF(V22="",IF(W22="","",V22-W22),V22-W22) -> 0 | AA22: =AA23+AA24 -> 0 | AB22: =AB23+AB24 -> 0 | AC22: =IF(AA22="",IF(AB22="","",AA22-AB22),AA22-AB22) -> 0
A23: 6 | B23: Procurement and Supply Management Costs | E23: ='PR EFR_7A'!E23 -> 126085.1481 | F23: 0 | G23: ='PR EFR_7A'!F23 -> 83306.39597 | H23: 0 | I23: 42778.75216 | J23: 0.6607153753 | L23: 126085.1481 | M23: 83306.39597 | N23: 42778.75216 | O23: 0.6607153753 | T23: 2a. Medicines and pharmaceutical products | V23: ='[3]PR_Total PR Cash Outflow_3A'!C18 -> 0 | W23: ='[3]PR_Total PR Cash Outflow_3A'!D18 -> 0 | X23: =IF(V23="",IF(W23="",0,V23-W23),V23-W23) -> 0 | AA23: ='[3]PR_Total PR Cash Outflow_3A'!H18 -> 0 | AB23: ='[3]PR_Total PR Cash Outflow_3A'!I18 -> 0 | AC23: =IF(AA23="",IF(AB23="",0,AA23-AB23),AA23-AB23) -> 0
A24: 7 | B24: Infrastructure and Other Equipment | E24: ='PR EFR_7A'!E24 -> 7864.182907 | F24: 0 | G24: ='PR EFR_7A'!F24 -> 191331.9395 | H24: 0 | I24: -183467.7565 | J24: 24.32953833 | L24: 7864.182907 | M24: 191331.9395 | N24: -183467.7565 | O24: 24.32953833 | T24: 2b. Health products and health equipment | V24: ='[3]PR_Total PR Cash Outflow_3A'!C19 -> 0 | W24: ='[3]PR_Total PR Cash Outflow_3A'!D19 -> 0 | X24: =IF(V24="",IF(W24="",0,V24-W24),V24-W24) -> 0 | AA24: ='[3]PR_Total PR Cash Outflow_3A'!H19 -> 0 | AB24: ='[3]PR_Total PR Cash Outflow_3A'!I19 -> 0 | AC24: =IF(AA24="",IF(AB24="",0,AA24-AB24),AA24-AB24) -> 0
A25: 8 | B25: Communication Materials | E25: ='PR EFR_7A'!E25 -> 0 | F25: 0 | G25: ='PR EFR_7A'!F25 -> 0 | H25: 0 | I25: 0 | J25: N/A | L25: 0 | M25: 0 | N25: 0 | O25: N/A
A26: 9 | B26: Monitoring & Evaluation | E26: ='PR EFR_7A'!E26 -> 43629.71169 | F26: 0 | G26: ='PR EFR_7A'!F26 -> 68099.66824 | H26: 0 | I26: -24469.95655 | J26: 1.560855335 | L26: 43629.71169 | M26: 68099.66824 | N26: -24469.95655 | O26: 1.560855335
A27: 10 | B27: Living Support to Clients/Target Populations | E27: ='PR EFR_7A'!E27 -> 338856.12 | F27: 0 | G27: ='PR EFR_7A'!F27 -> 334025.0721 | H27: 0 | I27: 4831.047876 | J27: 0.9857430703 | L27: 338856.12 | M27: 334025.0721 | N27: 4831.047876 | O27: 0.9857430703
A28: 11 | B28: Planning and Administration | E28: ='PR EFR_7A'!E28 -> 53317.40384 | F28: 0 | G28: ='PR EFR_7A'!F28 -> 74082.55787 | H28: 0 | I28: -20765.15403 | J28: 1.389462962 | L28: 53317.40384 | M28: 74082.55787 | N28: -20765.15403 | O28: 1.389462962
A29: 12 | B29: Overheads | E29: ='PR EFR_7A'!E29 -> 4239.084208 | F29: 0 | G29: ='PR EFR_7A'!F29 -> 4511.344632 | H29: 0 | I29: -272.2604237 | J29: 1.064226236 | L29: 4239.084208 | M29: 4511.344632 | N29: -272.2604237 | O29: 1.064226236
A30: 13 | B30: Other | E30: ='PR EFR_7A'!E30 -> 0 | F30: 0 | G30: ='PR EFR_7A'!F30 -> 0.007383248154 | H30: 0 | I30: -0.007383248154 | J30: Not Budgeted | L30: 0 | M30: 0.007383248154 | N30: -0.007383248154 | O30: Not Budgeted
D31: TOTAL | E31: =SUM(E18:E30) -> 2324385.037 | F31: =SUM(F18:F30) -> 0 | G31: =SUM(G18:G30) -> 2792099.18 | H31: =SUM(H18:H30) -> 0 | I31: =SUM(I18:I30) -> -467714.143 | J31: =G31/E31 -> 1.201220596 | L31: =SUM(L18:L30) -> 2324385.037 | M31: =SUM(M18:M30) -> 2792099.18 | N31: -467714.143 | O31: =M31/L31 -> 1.201220596
A34: B- BREAKDOWN* BY PROGRAM ACTIVITY | E34: Current Reporting Period | L34: Cumulative Reporting Period
A35: # | B35: Macro-category | C35: Objectives | D35: Service Delivery Area | E35: Budget for Reporting Period | F35: LFA Adjustment on Budget | G35: Actual Expenditure | H35: LFA Adjustment on Actual Expenditure | I35: Budget v/s Actuals Variance | J35: Absorption Capacity | K35: LFA comments on the Principal Recipient's explanation of variances | L35: Cumulative Budget | M35: Cumulative Expenditure | N35: Variance | O35: Absorption Capacity | P35: LFA comments on the Principal Recipient's explanation of variances
A36: ='PR EFR_7A'!A36 -> 1 | B36: ='PR EFR_7A'!B36 -> Supportive Environment | C36: ='PR EFR_7A'!C36 -> To strengthen the National TB Control Program management, coordination, monitoring and evaluation | D36: ='PR EFR_7A'!D36 -> Program Management, M&E, Capacity Building | E36: ='PR EFR_7A'!E36 -> 118010.8888 | F36: 0 | G36: ='PR EFR_7A'!F36 -> 175168.7343 | H36: 0 | I36: =(E36+F36)-(G36+H36) -> -57157.84548 | J36: =IF(AND((E36+F36)=0,(G36+H36)=0),"N/A",IF(AND((E36+F36)=0,(G36+H36)<>0),"Not Budgeted",(G36+H36)/(E36+F36))) -> 1.484343827 | L36: =E36+F36 -> 118010.8888 | M36: =G36+H36 -> 175168.7343 | N36: =L36-M36 -> -57157.84548 | O36: =IF(AND(L36=0,M36=0),"N/A",IF(AND(L36=0,M36<>0),"Not Budgeted",M36/L36)) -> 1.484343827
A37: ='PR EFR_7A'!A37 -> 2 | B37: ='PR EFR_7A'!B37 -> TB Detection | C37: ='PR EFR_7A'!C37 -> To improve diagnosis of TB including M/XDR-TB | D37: ='PR EFR_7A'!D37 -> Improving diagnosis | E37: ='PR EFR_7A'!E37 -> 404547.2081 | F37: 0 | G37: ='PR EFR_7A'!F37 -> 910287.6652 | H37: 0 | I37: -505740.4571 | J37: 2.250139531 | L37: 404547.2081 | M37: =G37+H37 -> 910287.6652 | N37: =L37-M37 -> -505740.4571 | O37: 2.250139531
A38: ='PR EFR_7A'!A38 -> 3 | B38: ='PR EFR_7A'!B38 -> TB Treatment | C38: ='PR EFR_7A'!C38 -> To ensure quality treatment of all forms of TB | D38: ='PR EFR_7A'!D38 -> Quality Treatment of all forms of TB, including M/XDR-TB | E38: ='PR EFR_7A'!E38 -> 1364060.175 | F38: 0 | G38: ='PR EFR_7A'!F38 -> 894277.8867 | H38: 0 | I38: 469782.2882 | J38: 0.6556000264 | L38: 1364060.175 | M38: =G38+H38 -> 894277.8867 | N38: 469782.2882 | O38: 0.6556000264
A39: ='PR EFR_7A'!A39 -> 4 | B39: ='PR EFR_7A'!B39 -> TB Treatment | C39: ='PR EFR_7A'!C39 -> To ensure adherence to TB treatment by intensive patient support and follow up | D39: ='PR EFR_7A'!D39 -> Patient Support | E39: ='PR EFR_7A'!E39 -> 365916.9329 | F39: 0 | G39: ='PR EFR_7A'!F39 -> 380529.6911 | H39: 0 | I39: -14612.75826 | J39: 1.039934633 | L39: 365916.9329 | M39: 380529.6911 | N39: -14612.75826 | O39: 1.039934633
A40: ='PR EFR_7A'!A40 -> 5 | B40: ='PR EFR_7A'!B40 -> Supportive Environment | C40: ='PR EFR_7A'!C40 -> Project management - PR | D40: ='PR EFR_7A'!D40 -> Supportive environment: Program management and administration | E40: ='PR EFR_7A'!E40 -> 71849.83221 | F40: 0 | G40: ='PR EFR_7A'!F40 -> 431835.2024 | H40: 0 | I40: -359985.3701 | J40: 6.010246497 | L40: 71849.83221 | M40: 431835.2024 | N40: -359985.3701 | O40: 6.010246497
A41: ='PR EFR_7A'!A41 -> 0 | B41: ='PR EFR_7A'!B41 -> Please Select… | C41: ='PR EFR_7A'!C41 -> 0 | D41: ='PR EFR_7A'!D41 -> please select… | E41: ='PR EFR_7A'!E41 -> 0 | F41: 0 | G41: ='PR EFR_7A'!F41 -> 0 | H41: 0 | I41: 0 | J41: N/A | L41: 0 | M41: 0 | N41: 0 | O41: N/A
A42: ='PR EFR_7A'!A42 -> 0 | B42: ='PR EFR_7A'!B42 -> Please Select… | C42: ='PR EFR_7A'!C42 -> 0 | D42: ='PR EFR_7A'!D42 -> please select… | E42: ='PR EFR_7A'!E42 -> 0 | F42: 0 | G42: ='PR EFR_7A'!F42 -> 0 | H42: 0 | I42: 0 | J42: N/A | L42: 0 | M42: 0 | N42: 0 | O42: N/A
A43: ='PR EFR_7A'!A43 -> 0 | B43: ='PR EFR_7A'!B43 -> Please Select… | C43: ='PR EFR_7A'!C43 -> 0 | D43: ='PR EFR_7A'!D43 -> please select… | E43: ='PR EFR_7A'!E43 -> 0 | F43: 0 | G43: ='PR EFR_7A'!F43 -> 0 | H43: 0 | I43: 0 | J43: N/A | L43: 0 | M43: 0 | N43: 0 | O43: N/A
A44: ='PR EFR_7A'!A44 -> 0 | B44: ='PR EFR_7A'!B44 -> Please Select… | C44: ='PR EFR_7A'!C44 -> 0 | D44: ='PR EFR_7A'!D44 -> please select… | E44: ='PR EFR_7A'!E44 -> 0 | F44: 0 | G44: ='PR EFR_7A'!F44 -> 0 | H44: 0 | I44: 0 | J44: N/A | L44: 0 | M44: 0 | N44: 0 | O44: N/A
A45: ='PR EFR_7A'!A45 -> 0 | B45: ='PR EFR_7A'!B45 -> Please Select… | C45: ='PR EFR_7A'!C45 -> 0 | D45: ='PR EFR_7A'!D45 -> please select… | E45: ='PR EFR_7A'!E45 -> 0 | F45: 0 | G45: ='PR EFR_7A'!F45 -> 0 | H45: 0 | I45: 0 | J45: N/A | L45: 0 | M45: 0 | N45: 0 | O45: N/A
A46: ='PR EFR_7A'!A46 -> 0 | B46: ='PR EFR_7A'!B46 -> Please Select… | C46: ='PR EFR_7A'!C46 -> 0 | D46: ='PR EFR_7A'!D46 -> please select… | E46: ='PR EFR_7A'!E46 -> 0 | F46: 0 | G46: ='PR EFR_7A'!F46 -> 0 | H46: 0 | I46: 0 | J46: N/A | L46: 0 | M46: 0 | N46: 0 | O46: N/A
A47: ='PR EFR_7A'!A47 -> 0 | B47: ='PR EFR_7A'!B47 -> Please Select… | C47: ='PR EFR_7A'!C47 -> 0 | D47: ='PR EFR_7A'!D47 -> please select… | E47: ='PR EFR_7A'!E47 -> 0 | F47: 0 | G47: ='PR EFR_7A'!F47 -> 0 | H47: 0 | I47: 0 | J47: N/A | L47: 0 | M47: 0 | N47: 0 | O47: N/A
A48: ='PR EFR_7A'!A48 -> 0 | B48: ='PR EFR_7A'!B48 -> Please Select… | C48: ='PR EFR_7A'!C48 -> 0 | D48: ='PR EFR_7A'!D48 -> please select… | E48: ='PR EFR_7A'!E48 -> 0 | F48: 0 | G48: ='PR EFR_7A'!F48 -> 0 | H48: 0 | I48: 0 | J48: N/A | L48: 0 | M48: 0 | N48: 0 | O48: N/A
A49: ='PR EFR_7A'!A49 -> 0 | B49: ='PR EFR_7A'!B49 -> Please Select… | C49: ='PR EFR_7A'!C49 -> 0 | D49: ='PR EFR_7A'!D49 -> please select… | E49: ='PR EFR_7A'!E49 -> 0 | F49: 0 | G49: ='PR EFR_7A'!F49 -> 0 | H49: 0 | I49: 0 | J49: N/A | L49: 0 | M49: 0 | N49: 0 | O49: N/A
A50: ='PR EFR_7A'!A50 -> 0 | B50: ='PR EFR_7A'!B50 -> Please Select… | C50: ='PR EFR_7A'!C50 -> 0 | D50: ='PR EFR_7A'!D50 -> please select… | E50: ='PR EFR_7A'!E50 -> 0 | F50: 0 | G50: ='PR EFR_7A'!F50 -> 0 | H50: 0 | I50: 0 | J50: N/A | L50: 0 | M50: 0 | N50: 0 | O50: N/A
A51: ='PR EFR_7A'!A51 -> 0 | B51: ='PR EFR_7A'!B51 -> Please Select… | C51: ='PR EFR_7A'!C51 -> 0 | D51: ='PR EFR_7A'!D51 -> please select… | E51: ='PR EFR_7A'!E51 -> 0 | F51: 0 | G51: ='PR EFR_7A'!F51 -> 0 | H51: 0 | I51: 0 | J51: N/A | L51: 0 | M51: 0 | N51: =L51-M51 -> 0 | O51: N/A
A52: ='PR EFR_7A'!A52 -> 0 | B52: ='PR EFR_7A'!B52 -> Please Select… | C52: ='PR EFR_7A'!C52 -> 0 | D52: ='PR EFR_7A'!D52 -> please select… | E52: ='PR EFR_7A'!E52 -> 0 | F52: 0 | G52: ='PR EFR_7A'!F52 -> 0 | H52: 0 | I52: 0 | J52: N/A | L52: 0 | M52: 0 | N52: 0 | O52: N/A
A53: ='PR EFR_7A'!A53 -> 0 | B53: ='PR EFR_7A'!B53 -> Please Select… | C53: ='PR EFR_7A'!C53 -> 0 | D53: ='PR EFR_7A'!D53 -> please select… | E53: ='PR EFR_7A'!E53 -> 0 | F53: 0 | G53: ='PR EFR_7A'!F53 -> 0 | H53: 0 | I53: 0 | J53: N/A | L53: 0 | M53: 0 | N53: 0 | O53: N/A
A54: ='PR EFR_7A'!A54 -> 0 | B54: ='PR EFR_7A'!B54 -> Please Select… | C54: ='PR EFR_7A'!C54 -> 0 | D54: ='PR EFR_7A'!D54 -> please select… | E54: ='PR EFR_7A'!E54 -> 0 | F54: 0 | G54: ='PR EFR_7A'!F54 -> 0 | H54: 0 | I54: 0 | J54: N/A | L54: 0 | M54: 0 | N54: 0 | O54: N/A
A55: ='PR EFR_7A'!A55 -> 0 | B55: ='PR EFR_7A'!B55 -> Please Select… | C55: ='PR EFR_7A'!C55 -> 0 | D55: ='PR EFR_7A'!D55 -> please select… | E55: ='PR EFR_7A'!E55 -> 0 | F55: 0 | G55: ='PR EFR_7A'!F55 -> 0 | H55: 0 | I55: 0 | J55: N/A | L55: 0 | M55: 0 | N55: 0 | O55: N/A
A56: ='PR EFR_7A'!A56 -> 0 | B56: ='PR EFR_7A'!B56 -> Please Select… | C56: ='PR EFR_7A'!C56 -> 0 | D56: ='PR EFR_7A'!D56 -> please select… | E56: ='PR EFR_7A'!E56 -> 0 | F56: 0 | G56: ='PR EFR_7A'!F56 -> 0 | H56: 0 | I56: 0 | J56: N/A | L56: 0 | M56: 0 | N56: 0 | O56: N/A
A57: ='PR EFR_7A'!A57 -> 0 | B57: ='PR EFR_7A'!B57 -> Please Select… | C57: ='PR EFR_7A'!C57 -> 0 | D57: ='PR EFR_7A'!D57 -> please select… | E57: ='PR EFR_7A'!E57 -> 0 | F57: 0 | G57: ='PR EFR_7A'!F57 -> 0 | H57: 0 | I57: 0 | J57: N/A | L57: 0 | M57: 0 | N57: 0 | O57: N/A
A58: ='PR EFR_7A'!A58 -> 0 | B58: ='PR EFR_7A'!B58 -> Please Select… | C58: ='PR EFR_7A'!C58 -> 0 | D58: ='PR EFR_7A'!D58 -> please select… | E58: ='PR EFR_7A'!E58 -> 0 | F58: 0 | G58: ='PR EFR_7A'!F58 -> 0 | H58: 0 | I58: 0 | J58: N/A | L58: 0 | M58: 0 | N58: 0 | O58: N/A
A59: ='PR EFR_7A'!A59 -> 0 | B59: ='PR EFR_7A'!B59 -> Please Select… | C59: ='PR EFR_7A'!C59 -> 0 | D59: ='PR EFR_7A'!D59 -> please select… | E59: ='PR EFR_7A'!E59 -> 0 | F59: 0 | G59: ='PR EFR_7A'!F59 -> 0 | H59: 0 | I59: 0 | J59: N/A | L59: 0 | M59: 0 | N59: 0 | O59: N/A
A60: ='PR EFR_7A'!A60 -> 0 | B60: ='PR EFR_7A'!B60 -> Please Select… | C60: ='PR EFR_7A'!C60 -> 0 | D60: ='PR EFR_7A'!D60 -> please select… | E60: ='PR EFR_7A'!E60 -> 0 | F60: 0 | G60: ='PR EFR_7A'!F60 -> 0 | H60: 0 | I60: 0 | J60: N/A | L60: 0 | M60: 0 | N60: 0 | O60: N/A
A61: ='PR EFR_7A'!A61 -> 0 | B61: ='PR EFR_7A'!B61 -> Please Select… | C61: ='PR EFR_7A'!C61 -> 0 | D61: ='PR EFR_7A'!D61 -> please select… | E61: ='PR EFR_7A'!E61 -> 0 | F61: 0 | G61: ='PR EFR_7A'!F61 -> 0 | H61: 0 | I61: 0 | J61: N/A | L61: 0 | M61: 0 | N61: 0 | O61: N/A
